Body Name,Body,Service Label,Service Code,CIPFA Detailed Expenditure Type,CIPFA Detailed Expenditure Code,Date,Transaction Number,Net Amount,Supplier Name
Nottinghamshire County Council,1111/1001,Children and Young People,CYP,Premises Related,BAA,07/09/2021,06-11199,"5,845.00",ARC Property Services Partnership L
Nottinghamshire County Council,1111/1001,Children and Young People,CYP,Premises Related,BAA,16/09/2021,06-12839,6736.25,ARC Property Services Partnership L
Nottinghamshire County Council,1111/1001,Children and Young People,CYP,Premises Related,BAA,23/09/2021,06-13277,4090.94,ARC Property Services Partnership L
Nottinghamshire County Council,1111/1001,Children and Young People,CYP,Premises Related,BAA,28/09/2021,06-15819,8152.26,ARC Property Services Partnership L
Nottinghamshire County Council,1111/1001,Children and Young People,CYP,Premises Related,BDA,01/09/2021,06-10008,1085,High Peak Borough Council
Nottinghamshire County Council,1111/1001,Children and Young People,CYP,Premises Related,BDA,01/09/2021,06-10009,"3,500.00",Diocese of Hallam Trustee
Nottinghamshire County Council,1111/1001,Children and Young People,CYP,Premises Related,BDA,01/09/2021,06-10011,886,Derbyshire Dales District Council
Nottinghamshire County Council,1111/1001,Children and Young People,CYP,Premises Related,BDA,01/09/2021,06-10014,8274.24,Ekmw Summit Centre
Nottinghamshire County Council,1111/1001,Children and Young People,CYP,Premises Related,BDA,01/09/2021,06-10017,"7,500.00",Capita Property & Infrastructure Lt
Nottinghamshire County Council,1111/1001,Children and Young People,CYP,Premises Related,BDA,01/09/2021,06-10020,920,Portland College
Nottinghamshire County Council,1111/1001,Children and Young People,CYP,Premises Related,BDA,01/09/2021,06-10023,"1,500.00",Portland College
Nottinghamshire County Council,1111/1001,Children and Young People,CYP,Premises Related,BEA,15/09/2021,06-12741,9690,Att Of Earn/Bus Rates Bassetlaw D C
Nottinghamshire County Council,1111/1001,Children and Young People,CYP,Premises Related,BEA,29/09/2021,06-15867,63709.6,Newark & Sherwood District Council
Nottinghamshire County Council,1111/1001,Children and Young People,CYP,Transport Related,CAA,13/09/2021,06-11396,759.94,Via East Midlands Ltd
Nottinghamshire County Council,1111/1001,Children and Young People,CYP,Transport Related,CAA,13/09/2021,06-11403,205.15,Via East Midlands Ltd
Nottinghamshire County Council,1111/1001,Children and Young People,CYP,Transport Related,CAA,20/09/2021,06-12874,1221,Via East Midlands Ltd
Nottinghamshire County Council,1111/1001,Children and Young People,CYP,Transport Related,CAA,20/09/2021,06-12881,1067.63,Via East Midlands Ltd
Nottinghamshire County Council,1111/1001,Children and Young People,CYP,Transport Related,CCA,03/09/2021,06-10216,297.6,Alert Cars Ltd
Nottinghamshire County Council,1111/1001,Children and Young People,CYP,Transport Related,CCA,03/09/2021,06-10239,2502,Trevor Bailey t/a Trevor Bailey Tra
Nottinghamshire County Council,1111/1001,Children and Young People,CYP,Transport Related,CCA,03/09/2021,06-10240,2780,Trevor Bailey t/a Trevor Bailey Tra
Nottinghamshire County Council,1111/1001,Children and Young People,CYP,Transport Related,CCA,03/09/2021,06-10241,2225,Nottingham Cars Ltd
Nottinghamshire County Council,1111/1001,Children and Young People,CYP,Transport Related,CCA,07/09/2021,06-11097,1800,Wrights Coaches T/A Little Transpor
Nottinghamshire County Council,1111/1001,Children and Young People,CYP,Transport Related,CCA,07/09/2021,06-11121,"1,955.35",Marshalls Of Sutton On Trent Ltd
Nottinghamshire County Council,1111/1001,Children and Young People,CYP,Transport Related,CCA,10/09/2021,06-11265,"1,440.00",Wrights Coaches T/A Little Transpor
Nottinghamshire County Council,1111/1001,Children and Young People,CYP,Transport Related,CCA,10/09/2021,06-11266,1540,Wrights Coaches T/A Little Transpor
Nottinghamshire County Council,1111/1001,Children and Young People,CYP,Transport Related,CCA,10/09/2021,06-11267,"1,200.00",Wrights Coaches T/A Little Transpor
Nottinghamshire County Council,1111/1001,Children and Young People,CYP,Transport Related,CCA,10/09/2021,06-11274,"4,555.04",Stagecoach Services Ltd
Nottinghamshire County Council,1111/1001,Children and Young People,CYP,Transport Related,CCA,10/09/2021,06-11276,"2,674.24",Stagecoach Services Ltd
Nottinghamshire County Council,1111/1001,Children and Young People,CYP,Transport Related,CCA,10/09/2021,06-11278,5677.65,Stagecoach Services Ltd
Nottinghamshire County Council,1111/1001,Children and Young People,CYP,Transport Related,CCA,10/09/2021,06-11304,"1,869.15",Wallis Coachways
Nottinghamshire County Council,1111/1001,Children and Young People,CYP,Transport Related,CCA,10/09/2021,06-11305,2023,Wallis Coachways
Nottinghamshire County Council,1111/1001,Children and Young People,CYP,Transport Related,CCA,10/09/2021,06-11307,"1,407.60",A Place To Call Our Own Ltd
Nottinghamshire County Council,1111/1001,Children and Young People,CYP,Transport Related,CCA,20/09/2021,06-12861,2380,6 Five 2s
Nottinghamshire County Council,1111/1001,Children and Young People,CYP,Transport Related,CCA,20/09/2021,06-12888,1049.75,Galaxy Cabs Ltd
Nottinghamshire County Council,1111/1001,Children and Young People,CYP,Transport Related,CCA,20/09/2021,06-12889,12722.21,Nunns Taxis Ltd
Nottinghamshire County Council,1111/1001,Children and Young People,CYP,Transport Related,CCA,20/09/2021,06-12898,"1,546.80",Skills Motor Coaches Ltd
Nottinghamshire County Council,1111/1001,Children and Young People,CYP,Transport Related,CCA,20/09/2021,06-12899,980,Skills Motor Coaches Ltd
Nottinghamshire County Council,1111/1001,Children and Young People,CYP,Transport Related,CCA,20/09/2021,06-12900,640,Skills Motor Coaches Ltd
Nottinghamshire County Council,1111/1001,Children and Young People,CYP,Transport Related,CCA,20/09/2021,06-12901,5155.32,Silverdale Tours Nottm Ltd
Nottinghamshire County Council,1111/1001,Children and Young People,CYP,Transport Related,CCA,20/09/2021,06-12903,"4,104.31",Stagecoach Services Ltd
Nottinghamshire County Council,1111/1001,Children and Young People,CYP,Transport Related,CCA,20/09/2021,06-12905,"5,947.00",Freeway Coaches Ltd
Nottinghamshire County Council,1111/1001,Children and Young People,CYP,Transport Related,CCA,20/09/2021,06-12906,5634,Freeway Coaches Ltd
Nottinghamshire County Council,1111/1001,Children and Young People,CYP,Transport Related,CCA,20/09/2021,06-12907,3762,Freeway Coaches Ltd
Nottinghamshire County Council,1111/1001,Children and Young People,CYP,Transport Related,CCA,20/09/2021,06-12908,3564,Freeway Coaches Ltd
Nottinghamshire County Council,1111/1001,Children and Young People,CYP,Transport Related,CCA,20/09/2021,06-12909,"2,732.00",Nottingham Coaches Ltd
Nottinghamshire County Council,1111/1001,Children and Young People,CYP,Transport Related,CCA,20/09/2021,06-12910,589.08,Nottingham Coaches Ltd
Nottinghamshire County Council,1111/1001,Children and Young People,CYP,Transport Related,CCA,22/09/2021,06-13265,1728,Shelleys Taxis Ltd
Nottinghamshire County Council,1111/1001,Children and Young People,CYP,Transport Related,CCA,22/09/2021,06-13266,"1,668.00",Shelleys Taxis Ltd
Nottinghamshire County Council,1111/1001,Children and Young People,CYP,Transport Related,CCA,22/09/2021,06-13268,"1,960.00",Shelleys Taxis Ltd
Nottinghamshire County Council,1111/1001,Children and Young People,CYP,Transport Related,CCA,22/09/2021,06-13269,832,Shelleys Taxis Ltd
Nottinghamshire County Council,1111/1001,Children and Young People,CYP,Transport Related,CCA,22/09/2021,06-13270,"1,088.00",Shelleys Taxis Ltd
Nottinghamshire County Council,1111/1001,Children and Young People,CYP,Transport Related,CCA,22/09/2021,06-13271,1190,Shelleys Taxis Ltd
Nottinghamshire County Council,1111/1001,Children and Young People,CYP,Transport Related,CCA,22/09/2021,06-13272,1260,Shelleys Taxis Ltd
Nottinghamshire County Council,1111/1001,Children and Young People,CYP,Transport Related,CCA,22/09/2021,06-13273,"1,280.00",Notts school Run
Nottinghamshire County Council,1111/1001,Children and Young People,CYP,Transport Related,CCA,24/09/2021,06-13353,1589.5,Ace Cars & Minibuses Ltd
Nottinghamshire County Council,1111/1001,Children and Young People,CYP,Transport Related,CCA,24/09/2021,06-13360,"2,533.00",Butler Brothers Ltd
Nottinghamshire County Council,1111/1001,Children and Young People,CYP,Transport Related,CCA,24/09/2021,06-13361,1899.75,Butler Brothers Ltd
Nottinghamshire County Council,1111/1001,Children and Young People,CYP,Transport Related,CCA,24/09/2021,06-13362,"3,315.25",Butler Brothers Ltd
Nottinghamshire County Council,1111/1001,Children and Young People,CYP,Transport Related,CCA,29/09/2021,06-15846,6910.5,Arrow Specialised Transport Ltd
Nottinghamshire County Council,1111/1001,Children and Young People,CYP,Transport Related,CCA,29/09/2021,06-15847,2191.8,Arrow Specialised Transport Ltd
Nottinghamshire County Council,1111/1001,Children and Young People,CYP,Transport Related,CCA,29/09/2021,06-15848,3220.5,Ace Cars & Minibuses Ltd
Nottinghamshire County Council,1111/1001,Children and Young People,CYP,Transport Related,CCA,29/09/2021,06-15849,"3,051.00",Ace Cars & Minibuses Ltd
Nottinghamshire County Council,1111/1001,Children and Young People,CYP,Transport Related,CCA,29/09/2021,06-15850,3220.5,Ace Cars & Minibuses Ltd
Nottinghamshire County Council,1111/1001,Children and Young People,CYP,Transport Related,CCA,29/09/2021,06-15851,"3,763.50",Rushcliffe Travel Ltd
Nottinghamshire County Council,1111/1001,Children and Young People,CYP,Transport Related,CCA,29/09/2021,06-15852,2840.5,Rushcliffe Travel Ltd
Nottinghamshire County Council,1111/1001,Children and Young People,CYP,Transport Related,CCA,29/09/2021,06-15853,1942.5,Rushcliffe Travel Ltd
Nottinghamshire County Council,1111/1001,Children and Young People,CYP,Transport Related,CCA,29/09/2021,06-15854,"1,792.50",Rushcliffe Travel Ltd
Nottinghamshire County Council,1111/1001,Children and Young People,CYP,Transport Related,CCA,29/09/2021,06-15855,2000,Rushcliffe Travel Ltd
Nottinghamshire County Council,1111/1001,Children and Young People,CYP,Transport Related,CCA,29/09/2021,06-15856,3790,Rushcliffe Travel Ltd
Nottinghamshire County Council,1111/1001,Children and Young People,CYP,Transport Related,CCA,29/09/2021,06-15857,4940,Rushcliffe Travel Ltd
Nottinghamshire County Council,1111/1001,Children and Young People,CYP,Transport Related,CCA,29/09/2021,06-15858,2295,Rushcliffe Travel Ltd
Nottinghamshire County Council,1111/1001,Children and Young People,CYP,Transport Related,CCA,29/09/2021,06-15859,1942.5,Rushcliffe Travel Ltd
Nottinghamshire County Council,1111/1001,Children and Young People,CYP,Transport Related,CCA,29/09/2021,06-15860,2900,Rushcliffe Travel Ltd
Nottinghamshire County Council,1111/1001,Children and Young People,CYP,Transport Related,CCA,29/09/2021,06-15861,1971,Rushcliffe Travel Ltd
Nottinghamshire County Council,1111/1001,Children and Young People,CYP,Transport Related,CCA,29/09/2021,06-15862,2990,Rushcliffe Travel Ltd
Nottinghamshire County Council,1111/1001,Children and Young People,CYP,Transport Related,CCA,29/09/2021,06-15863,2900,Rushcliffe Travel Ltd
Nottinghamshire County Council,1111/1001,Children and Young People,CYP,Transport Related,CCA,29/09/2021,06-15864,2590,Rushcliffe Travel Ltd
Nottinghamshire County Council,1111/1001,Children and Young People,CYP,Transport Related,CCA,29/09/2021,06-15865,2565,Rushcliffe Travel Ltd
Nottinghamshire County Council,1111/1001,Children and Young People,CYP,Transport Related,CCA,30/09/2021,06-15996,2237.44,Arrow Specialised Transport Ltd
Nottinghamshire County Council,1111/1001,Children and Young People,CYP,Transport Related,CCA,30/09/2021,06-15997,2151,Rushcliffe Travel Ltd
Nottinghamshire County Council,1111/1001,Children and Young People,CYP,Transport Related,CCA,30/09/2021,06-15999,904,Vectare Ltd
Nottinghamshire County Council,1111/1001,Children and Young People,CYP,Transport Related,CDA,03/09/2021,06-10233,31020,Silverdale Tours Nottm Ltd
Nottinghamshire County Council,1111/1001,Children and Young People,CYP,Transport Related,CDA,24/09/2021,06-13352,2342,Shelleys Taxis Ltd
Nottinghamshire County Council,1111/1001,Children and Young People,CYP,Transport Related,CEA,06/09/2021,06-10210,1658.98,Reed Employment Plc
Nottinghamshire County Council,1111/1001,Children and Young People,CYP,Transport Related,CEA,13/09/2021,06-11172,3131.69,Reed Employment Plc
Nottinghamshire County Council,1111/1001,Children and Young People,CYP,Transport Related,CEA,20/09/2021,06-12737,2149.89,Reed Employment Plc
Nottinghamshire County Council,1111/1001,Children and Young People,CYP,Transport Related,CEA,27/09/2021,06-13253,2833.27,Reed Employment Plc
Nottinghamshire County Council,1111/1001,Children and Young People,CYP,Supplies & Services,DAA,10/09/2021,06-11249,261292.32,Abbey Primary Academy(Believe Acade
Nottinghamshire County Council,1111/1001,Children and Young People,CYP,Supplies & Services,DBA,01/09/2021,06-10042,595.73,Brake Bros Ltd
Nottinghamshire County Council,1111/1001,Children and Young People,CYP,Supplies & Services,DBA,06/09/2021,06-11094,352.19,M Maloney Country Butchers & B Ltd
Nottinghamshire County Council,1111/1001,Children and Young People,CYP,Supplies & Services,DBA,10/09/2021,06-11387,325.72,M Maloney Country Butchers & B Ltd
Nottinghamshire County Council,1111/1001,Children and Young People,CYP,Supplies & Services,DBA,27/09/2021,06-11137,666.46,Brake Bros Ltd
Nottinghamshire County Council,1111/1001,Children and Young People,CYP,Supplies & Services,DBA,28/09/2021,06-15807,260.89,M Maloney Country Butchers & B Ltd
Nottinghamshire County Council,1111/1001,Children and Young People,CYP,Supplies & Services,DBA,28/09/2021,06-15840,186.56,M Maloney Country Butchers & B Ltd
Nottinghamshire County Council,1111/1001,Children and Young People,CYP,Supplies & Services,DBA,28/09/2021,06-15843,318.48,M Maloney Country Butchers & B Ltd
Nottinghamshire County Council,1111/1001,Children and Young People,CYP,Supplies & Services,DBA,29/09/2021,06-12733,773.66,Brake Bros Ltd
Nottinghamshire County Council,1111/1001,Children and Young People,CYP,Supplies & Services,DEA,06/09/2021,06-10811,1700,Cambridge Education / Mott Macdonal
Nottinghamshire County Council,1111/1001,Children and Young People,CYP,Supplies & Services,DEA,23/09/2021,06-13274,1930.67,Cambridge Education / Mott Macdonal
Nottinghamshire County Council,1111/1001,Children and Young People,CYP,Supplies & Services,DEA,27/09/2021,06-15552,1440,Leicestershire County Council
Nottinghamshire County Council,1111/1001,Children and Young People,CYP,Supplies & Services,DEA,27/09/2021,06-15553,4600,Cambridge Education / Mott Macdonal
Nottinghamshire County Council,1111/1001,Children and Young People,CYP,Supplies & Services,DKA,01/09/2021,06-10112,1000,"""[Redacted]"""
Nottinghamshire County Council,1111/1001,Children and Young People,CYP,Supplies & Services,DKA,03/09/2021,06-10107,800,Naaz Properties Ltd
Nottinghamshire County Council,1111/1001,Children and Young People,CYP,Supplies & Services,DKA,08/09/2021,06-11205,2000,Norman Galloway Ltd
Nottinghamshire County Council,1111/1001,Children and Young People,CYP,Supplies & Services,DKA,08/09/2021,06-11207,515,Mansfield Property Services LtdT/A
Nottinghamshire County Council,1111/1001,Children and Young People,CYP,Supplies & Services,DKA,08/09/2021,06-11208,314.42,Positive Independence Ltd (Allowanc
Nottinghamshire County Council,1111/1001,Children and Young People,CYP,Supplies & Services,DKA,08/09/2021,06-11210,1990,Sixteen Plus Ltd
Nottinghamshire County Council,1111/1001,Children and Young People,CYP,Supplies & Services,DKA,08/09/2021,06-11211,698.9,Sunrise Homes Services Ltd
Nottinghamshire County Council,1111/1001,Children and Young People,CYP,Supplies & Services,DKA,08/09/2021,06-11213,236.44,Boston Womens Aid
Nottinghamshire County Council,1111/1001,Children and Young People,CYP,Supplies & Services,DKA,15/09/2021,06-12731,464.5,Positive Independence Ltd (Allowanc
Nottinghamshire County Council,1111/1001,Children and Young People,CYP,Supplies & Services,DKA,22/09/2021,06-13258,488.28,Positive Independence Ltd (Allowanc
Nottinghamshire County Council,1111/1001,Children and Young People,CYP,Supplies & Services,DKA,22/09/2021,06-13260,978.24,Hits Homes Trust
Nottinghamshire County Council,1111/1001,Children and Young People,CYP,Supplies & Services,DKA,22/09/2021,06-13262,650,"""[Redacted]"""
Nottinghamshire County Council,1111/1001,Children and Young People,CYP,Supplies & Services,DKA,22/09/2021,06-13263,676.5,Bridge Together Ltd
Nottinghamshire County Council,1111/1001,Children and Young People,CYP,Supplies & Services,DKA,29/09/2021,06-15868,650,"""[Redacted]"""
Nottinghamshire County Council,1111/1001,Children and Young People,CYP,Third Party Payments,EDA,02/09/2021,06-10105,6480.9,All Saints Catholic Voluntary Acade
Nottinghamshire County Council,1111/1001,Children and Young People,CYP,Third Party Payments,EDA,02/09/2021,06-10109,72519.1,All Saints Catholic Voluntary Acade
Nottinghamshire County Council,1111/1001,Children and Young People,CYP,Third Party Payments,EDA,03/09/2021,06-10050,1580,Greenwood Primary & Nursery School
Nottinghamshire County Council,1111/1001,Children and Young People,CYP,Third Party Payments,EDA,03/09/2021,06-10051,900,Samworth Church Academy
Nottinghamshire County Council,1111/1001,Children and Young People,CYP,Third Party Payments,EDA,03/09/2021,06-10052,900,Oak Tree Lane Primary Academy
Nottinghamshire County Council,1111/1001,Children and Young People,CYP,Third Party Payments,EDA,03/09/2021,06-10053,900,Abbey Primary Academy(Believe Acade
Nottinghamshire County Council,1111/1001,Children and Young People,CYP,Third Party Payments,EDA,03/09/2021,06-10054,"1,080.00",St Patricks Catholic Voluntary Acad
Nottinghamshire County Council,1111/1001,Children and Young People,CYP,Third Party Payments,EDA,03/09/2021,06-10055,"37,127.00",Heymann Primary School
Nottinghamshire County Council,1111/1001,Children and Young People,CYP,Third Party Payments,EDA,03/09/2021,06-10056,39600,Greythorn Primary Academy
Nottinghamshire County Council,1111/1001,Children and Young People,CYP,Third Party Payments,EDA,03/09/2021,06-10057,8000,St Mary Magdalene C of E Primary Ac
Nottinghamshire County Council,1111/1001,Children and Young People,CYP,Third Party Payments,EDA,03/09/2021,06-10058,"14,000.00",Leamington Primary & Nursery Academ
Nottinghamshire County Council,1111/1001,Children and Young People,CYP,Third Party Payments,EDA,03/09/2021,06-10059,"34,000.00",Hillocks Primary Academy
Nottinghamshire County Council,1111/1001,Children and Young People,CYP,Third Party Payments,EDA,03/09/2021,06-10060,49000,Sutton Community Academy
Nottinghamshire County Council,1111/1001,Children and Young People,CYP,Third Party Payments,EDA,03/09/2021,06-10061,15332,Samworth Church Academy
Nottinghamshire County Council,1111/1001,Children and Young People,CYP,Third Party Payments,EDA,03/09/2021,06-10062,16665,Oak Tree Lane Primary Academy
Nottinghamshire County Council,1111/1001,Children and Young People,CYP,Third Party Payments,EDA,03/09/2021,06-10063,"7,333.00",Abbey Primary Academy(Believe Acade
Nottinghamshire County Council,1111/1001,Children and Young People,CYP,Third Party Payments,EDA,03/09/2021,06-10064,"36,000.00",The Flying High Academy
Nottinghamshire County Council,1111/1001,Children and Young People,CYP,Third Party Payments,EDA,03/09/2021,06-10065,"38,000.00",DALP T/A Wainwright Primary Academy
Nottinghamshire County Council,1111/1001,Children and Young People,CYP,Third Party Payments,EDA,03/09/2021,06-10066,5400,Meden School - A Torch Academy
Nottinghamshire County Council,1111/1001,Children and Young People,CYP,Third Party Payments,EDA,03/09/2021,06-10067,"29,699.00",Bramble Academy (Evolve Trust)
Nottinghamshire County Council,1111/1001,Children and Young People,CYP,Third Party Payments,EDA,03/09/2021,06-10068,20999,Peafield Lane Academy
Nottinghamshire County Council,1111/1001,Children and Young People,CYP,Third Party Payments,EDA,03/09/2021,06-10069,"65,961.00",The Manor Academy
Nottinghamshire County Council,1111/1001,Children and Young People,CYP,Third Party Payments,EDA,03/09/2021,06-10070,"26,000.00",St Peters C of E Academy Mansfield
Nottinghamshire County Council,1111/1001,Children and Young People,CYP,Third Party Payments,EDA,03/09/2021,06-10071,"35,999.00",Mansfield Primary Academy
Nottinghamshire County Council,1111/1001,Children and Young People,CYP,Third Party Payments,EDA,03/09/2021,06-10072,50830,Brunts Academy
Nottinghamshire County Council,1111/1001,Children and Young People,CYP,Third Party Payments,EDA,03/09/2021,06-10073,"37,800.00",Kirkby Woodhouse Academy School
Nottinghamshire County Council,1111/1001,Children and Young People,CYP,Third Party Payments,EDA,03/09/2021,06-10074,25299,West Park Academy
Nottinghamshire County Council,1111/1001,Children and Young People,CYP,Third Party Payments,EDA,03/09/2021,06-10075,52000,Queen Elizabeth's Academy
Nottinghamshire County Council,1111/1001,Children and Young People,CYP,Third Party Payments,EDA,03/09/2021,06-10076,"18,299.00",Mapplewells Primary & Nursery Acada
Nottinghamshire County Council,1111/1001,Children and Young People,CYP,Third Party Payments,EDA,03/09/2021,06-10077,89838,Ashfield Academy
Nottinghamshire County Council,1111/1001,Children and Young People,CYP,Third Party Payments,EDA,03/09/2021,06-10078,"64,465.00",Greenwood Primary & Nursery School
Nottinghamshire County Council,1111/1001,Children and Young People,CYP,Third Party Payments,EDA,03/09/2021,06-10079,11363,St Patricks Catholic Voluntary Acad
Nottinghamshire County Council,1111/1001,Children and Young People,CYP,Third Party Payments,EDA,03/09/2021,06-10080,"7,802.00",St Josephs Catholic Primary Sch Aca
Nottinghamshire County Council,1111/1001,Children and Young People,CYP,Third Party Payments,EDA,03/09/2021,06-10081,12510,Holy Trinity Catholic Voluntary Aca
Nottinghamshire County Council,1111/1001,Children and Young People,CYP,Third Party Payments,EDA,03/09/2021,06-10082,16622,St Philip Neri with St Bede Vol Aca
Nottinghamshire County Council,1111/1001,Children and Young People,CYP,Third Party Payments,EDA,03/09/2021,06-10083,8820,All Saints Catholic Voluntary Acade
Nottinghamshire County Council,1111/1001,Children and Young People,CYP,Third Party Payments,EDA,03/09/2021,06-10084,6346,Tuxford Academy
Nottinghamshire County Council,1111/1001,Children and Young People,CYP,Third Party Payments,EDA,03/09/2021,06-10085,5338,Outwood Academy Portland
Nottinghamshire County Council,1111/1001,Children and Young People,CYP,Third Party Payments,EDA,03/09/2021,06-10086,"12,058.00",South Nottinghamshire Academy
Nottinghamshire County Council,1111/1001,Children and Young People,CYP,Third Party Payments,EDA,03/09/2021,06-10087,4760,Sutton Community Academy
Nottinghamshire County Council,1111/1001,Children and Young People,CYP,Third Party Payments,EDA,03/09/2021,06-10088,6135,Florence Nightingale Academy
Nottinghamshire County Council,1111/1001,Children and Young People,CYP,Third Party Payments,EDA,03/09/2021,06-10089,8462,Queen Elizabeth's Academy
Nottinghamshire County Council,1111/1001,Children and Young People,CYP,Third Party Payments,EDA,03/09/2021,06-10090,6255,Kimberley School Academy
Nottinghamshire County Council,1111/1001,Children and Young People,CYP,Third Party Payments,EDA,03/09/2021,06-10091,6346,Thrumpton Primary Academy
Nottinghamshire County Council,1111/1001,Children and Young People,CYP,Third Party Payments,EDA,03/09/2021,06-10092,4760,Christ The King Catholic Voluntary
Nottinghamshire County Council,1111/1001,Children and Young People,CYP,Third Party Payments,EDA,03/09/2021,06-10093,"6,346.00",Florence Nightingale Academy
Nottinghamshire County Council,1111/1001,Children and Young People,CYP,Third Party Payments,EDA,03/09/2021,06-10094,"2,750.00",Richard Bonnington Primary Academy(
Nottinghamshire County Council,1111/1001,Children and Young People,CYP,Third Party Payments,EDA,03/09/2021,06-10095,"6,346.00",Abbey Road Primary School Academy
Nottinghamshire County Council,1111/1001,Children and Young People,CYP,Third Party Payments,EDA,03/09/2021,06-10096,"6,346.00",All Saints Catholic Voluntary Acade
Nottinghamshire County Council,1111/1001,Children and Young People,CYP,Third Party Payments,EDA,03/09/2021,06-10097,9519,Bramcote College
Nottinghamshire County Council,1111/1001,Children and Young People,CYP,Third Party Payments,EDA,03/09/2021,06-10098,"6,346.00",Good Shephard Prim Catholic Vol Aca
Nottinghamshire County Council,1111/1001,Children and Young People,CYP,Third Party Payments,EDA,03/09/2021,06-10099,"7,615.00",Sutton Community Academy
Nottinghamshire County Council,1111/1001,Children and Young People,CYP,Third Party Payments,EDA,03/09/2021,06-10100,7404,Outwood Academy - Valley
Nottinghamshire County Council,1111/1001,Children and Young People,CYP,Third Party Payments,EDA,03/09/2021,06-10101,8462,Bilsthorpe Flying High Academ (Flyi
Nottinghamshire County Council,1111/1001,Children and Young People,CYP,Third Party Payments,EDA,03/09/2021,06-10102,8250,Bilsthorpe Flying High Academ (Flyi
Nottinghamshire County Council,1111/1001,Children and Young People,CYP,Third Party Payments,EDA,03/09/2021,06-10103,3376,West Bridgford School
Nottinghamshire County Council,1111/1001,Children and Young People,CYP,Third Party Payments,EDA,03/09/2021,06-10104,"6,595.00",West Bridgford School
Nottinghamshire County Council,1111/1001,Children and Young People,CYP,Third Party Payments,EDA,03/09/2021,06-10801,"55,563.25",Redgate Primary Academy
Nottinghamshire County Council,1111/1001,Children and Young People,CYP,Third Party Payments,EDA,03/09/2021,06-10802,833.33,Beech Academy
Nottinghamshire County Council,1111/1001,Children and Young People,CYP,Third Party Payments,EDA,03/09/2021,06-10803,"89,786.83",Beech Academy
Nottinghamshire County Council,1111/1001,Children and Young People,CYP,Third Party Payments,EDA,03/09/2021,06-10804,"4,166.67",Beech Academy
Nottinghamshire County Council,1111/1001,Children and Young People,CYP,Third Party Payments,EDA,03/09/2021,06-10805,"1,666.67",Foxwood Academy
Nottinghamshire County Council,1111/1001,Children and Young People,CYP,Third Party Payments,EDA,03/09/2021,06-10806,833.33,Yeoman Park Academy
Nottinghamshire County Council,1111/1001,Children and Young People,CYP,Third Party Payments,EDA,03/09/2021,06-10807,900,Yeoman Park Academy
Nottinghamshire County Council,1111/1001,Children and Young People,CYP,Third Party Payments,EDA,06/09/2021,06-10808,"106,010.25",Foxwood Academy
Nottinghamshire County Council,1111/1001,Children and Young People,CYP,Third Party Payments,EDA,06/09/2021,06-10809,"124,413.58",Yeoman Park Academy
Nottinghamshire County Council,1111/1001,Children and Young People,CYP,Third Party Payments,EDA,06/09/2021,06-10810,"132,076.67",Harlow Academy (Evolve Trust)
Nottinghamshire County Council,1111/1001,Children and Young People,CYP,Third Party Payments,EDA,09/09/2021,06-11230,"7,132.00",Holy Trinity C of E Infant School
Nottinghamshire County Council,1111/1001,Children and Young People,CYP,Third Party Payments,EDA,14/09/2021,06-11235,"5,259.00",Leverton C Of E Academy
Nottinghamshire County Council,1111/1001,Children and Young People,CYP,Third Party Payments,EDA,20/09/2021,06-12912,"6,346.00",Parkdale Primary Academy
Nottinghamshire County Council,1111/1001,Children and Young People,CYP,Third Party Payments,EDA,23/09/2021,06-13282,"12,671.40",The Kings C of E Primary Academy
Nottinghamshire County Council,1111/1001,Children and Young People,CYP,Third Party Payments,EDA,23/09/2021,06-13283,"26,609.94",St Augustine's Academy
Nottinghamshire County Council,1111/1001,Children and Young People,CYP,Third Party Payments,EDA,23/09/2021,06-13284,"7,602.84",Kingston Park Academy
Nottinghamshire County Council,1111/1001,Children and Young People,CYP,Third Party Payments,EDA,23/09/2021,06-13285,"24,329.09",Kirkby Woodhouse Academy School
Nottinghamshire County Council,1111/1001,Children and Young People,CYP,Third Party Payments,EDA,23/09/2021,06-13286,"19,640.67",Peafield Lane Academy
Nottinghamshire County Council,1111/1001,Children and Young People,CYP,Third Party Payments,EDA,23/09/2021,06-13287,"27,243.51",Mapplewells Primary & Nursery Acada
Nottinghamshire County Council,1111/1001,Children and Young People,CYP,Third Party Payments,EDA,23/09/2021,06-13288,"29,777.79",Leamington Primary & Nursery Academ
Nottinghamshire County Council,1111/1001,Children and Young People,CYP,Third Party Payments,EDA,23/09/2021,06-13289,"12,037.83",Birklands Primary (Academy)
Nottinghamshire County Council,1111/1001,Children and Young People,CYP,Third Party Payments,EDA,23/09/2021,06-13290,"8,996.69",Haddon Primary School (Academy)
Nottinghamshire County Council,1111/1001,Children and Young People,CYP,Third Party Payments,EDA,23/09/2021,06-13291,"15,205.68",Carlton Infant Academy & Nursery Sc
Nottinghamshire County Council,1111/1001,Children and Young People,CYP,Third Party Payments,EDA,23/09/2021,06-13292,"28,510.65",Alderman Pounder Academy(Flying Hig
Nottinghamshire County Council,1111/1001,Children and Young People,CYP,Third Party Payments,EDA,23/09/2021,06-13293,"15,839.25",Forest Glade Primary School (Academ
Nottinghamshire County Council,1111/1001,Children and Young People,CYP,Third Party Payments,EDA,23/09/2021,06-13294,"6,335.70",Haggonfields Primary Academy
Nottinghamshire County Council,1111/1001,Children and Young People,CYP,Third Party Payments,EDA,23/09/2021,06-13295,"42,449.19",Norbridge Academy Trust
Nottinghamshire County Council,1111/1001,Children and Young People,CYP,Third Party Payments,EDA,23/09/2021,06-13296,"19,640.67",John Hunt Academy
Nottinghamshire County Council,1111/1001,Children and Young People,CYP,Third Party Payments,EDA,23/09/2021,06-13297,"5,702.13",Flintham Primary Academy School
Nottinghamshire County Council,1111/1001,Children and Young People,CYP,Third Party Payments,EDA,23/09/2021,06-13298,"15,205.68",Parkgate Academy (Forge Trust)
Nottinghamshire County Council,1111/1001,Children and Young People,CYP,Third Party Payments,EDA,23/09/2021,06-13299,"12,037.83",Ranskill Primary Academy
Nottinghamshire County Council,1111/1001,Children and Young People,CYP,Third Party Payments,EDA,23/09/2021,06-13300,"13,938.54",Kimberley Primary & Nursery Acadamy
Nottinghamshire County Council,1111/1001,Children and Young People,CYP,Third Party Payments,EDA,23/09/2021,06-13301,"28,510.65",Greenwood Primary & Nursery School
Nottinghamshire County Council,1111/1001,Children and Young People,CYP,Third Party Payments,EDA,23/09/2021,06-13302,"12,671.40",West Park Academy
Nottinghamshire County Council,1111/1001,Children and Young People,CYP,Third Party Payments,EDA,23/09/2021,06-13303,"10,538.38",Keyworth Primary & Nursery School
Nottinghamshire County Council,1111/1001,Children and Young People,CYP,Third Party Payments,EDA,23/09/2021,06-13304,"29,144.22",Sparken Hill Academy
Nottinghamshire County Council,1111/1001,Children and Young People,CYP,Third Party Payments,EDA,23/09/2021,06-13305,"15,205.68",Bilsthorpe Flying High Academ (Flyi
Nottinghamshire County Council,1111/1001,Children and Young People,CYP,Third Party Payments,EDA,23/09/2021,06-13306,"18,373.53",Flying High Trust Beeston Fields Pr
Nottinghamshire County Council,1111/1001,Children and Young People,CYP,Third Party Payments,EDA,23/09/2021,06-13307,"23,378.73",St Johns C of E Academy
Nottinghamshire County Council,1111/1001,Children and Young People,CYP,Third Party Payments,EDA,23/09/2021,06-13308,"10,137.12",St Peters C of E Academy
Nottinghamshire County Council,1111/1001,Children and Young People,CYP,Third Party Payments,EDA,23/09/2021,06-13309,"1,900.71",Leverton C Of E Academy
Nottinghamshire County Council,1111/1001,Children and Young People,CYP,Third Party Payments,EDA,23/09/2021,06-13310,"39,281.34",Sir Donald Bailey Academy (Forge Tr
Nottinghamshire County Council,1111/1001,Children and Young People,CYP,Third Party Payments,EDA,23/09/2021,06-13311,"17,739.96",Langold Dyscarr Community Academy
Nottinghamshire County Council,1111/1001,Children and Young People,CYP,Third Party Payments,EDA,23/09/2021,06-13312,"9,503.55",St Peters C of E Academy Mansfield
Nottinghamshire County Council,1111/1001,Children and Young People,CYP,Third Party Payments,EDA,23/09/2021,06-13313,"24,709.23",Abbey Primary Academy(Believe Acade
Nottinghamshire County Council,1111/1001,Children and Young People,CYP,Third Party Payments,EDA,23/09/2021,06-13314,"4,434.99",Burntstump Seely CofE Primary Acade
Nottinghamshire County Council,1111/1001,Children and Young People,CYP,Third Party Payments,EDA,23/09/2021,06-13315,"5,702.13",St Swithuns C of E Primary Academy
Nottinghamshire County Council,1111/1001,Children and Young People,CYP,Third Party Payments,EDA,23/09/2021,06-13316,"10,137.12",St Mary's C of E Primary Academy
Nottinghamshire County Council,1111/1001,Children and Young People,CYP,Third Party Payments,EDA,23/09/2021,06-13317,"2,884.43",Gunthorpe C OF E Primary Academy
Nottinghamshire County Council,1111/1001,Children and Young People,CYP,Third Party Payments,EDA,23/09/2021,06-13318,"15,205.68",Sacred Heart Catholic Voluntary Aca
Nottinghamshire County Council,1111/1001,Children and Young People,CYP,Third Party Payments,EDA,23/09/2021,06-13319,"17,106.39",St Joseph's RC Primary Academy
Nottinghamshire County Council,1111/1001,Children and Young People,CYP,Third Party Payments,EDA,23/09/2021,06-13320,"20,907.81",St Philip Neri with St Bede Vol Aca
Nottinghamshire County Council,1111/1001,Children and Young People,CYP,Third Party Payments,EDA,23/09/2021,06-13321,"24,709.23",Worksop Priory CE Primary Academy
Nottinghamshire County Council,1111/1001,Children and Young People,CYP,Third Party Payments,EDA,23/09/2021,06-13322,"12,291.26",Oak Tree Lane Primary Academy
Nottinghamshire County Council,1111/1001,Children and Young People,CYP,Third Party Payments,EDA,23/09/2021,06-13323,"16,472.82",Awsworth Primary & Nursery Academy
Nottinghamshire County Council,1111/1001,Children and Young People,CYP,Third Party Payments,EDA,23/09/2021,06-13324,"3,801.42",Python Hill Academy (Forge Trust)
Nottinghamshire County Council,1111/1001,Children and Young People,CYP,Third Party Payments,EDA,23/09/2021,06-13325,"25,976.37",Netherfield Primary School (Academy
Nottinghamshire County Council,1111/1001,Children and Young People,CYP,Third Party Payments,EDA,23/09/2021,06-13326,"30,707.03",Candleby Lane School
Nottinghamshire County Council,1111/1001,Children and Young People,CYP,Third Party Payments,EDA,23/09/2021,06-13327,"28,510.65",Hillside Academy
Nottinghamshire County Council,1111/1001,Children and Young People,CYP,Third Party Payments,EDA,23/09/2021,06-13328,"23,822.23",The Flying High Academy
Nottinghamshire County Council,1111/1001,Children and Young People,CYP,Third Party Payments,EDA,23/09/2021,06-13329,"18,880.39",Hucknall Flying High Academy
Nottinghamshire County Council,1111/1001,Children and Young People,CYP,Third Party Payments,EDA,23/09/2021,06-13330,"30,411.36",Serlby Park Academy
Nottinghamshire County Council,1111/1001,Children and Young People,CYP,Third Party Payments,EDA,23/09/2021,06-13331,"16,472.82",Florence Nightingale Academy
Nottinghamshire County Council,1111/1001,Children and Young People,CYP,Third Party Payments,EDA,23/09/2021,06-13332,"14,572.11",St Patricks Catholic Voluntary Acad
Nottinghamshire County Council,1111/1001,Children and Young People,CYP,Third Party Payments,EDA,23/09/2021,06-13333,"17,106.39",Holy Trinity Catholic Voluntary Aca
Nottinghamshire County Council,1111/1001,Children and Young People,CYP,Third Party Payments,EDA,23/09/2021,06-13334,"13,938.54",Springbank Primary Academy
Nottinghamshire County Council,1111/1001,Children and Young People,CYP,Third Party Payments,EDA,23/09/2021,06-13335,"5,068.56",Bramble Academy (Evolve Trust)
Nottinghamshire County Council,1111/1001,Children and Young People,CYP,Third Party Payments,EDA,23/09/2021,06-13336,"16,874.08",Tuxford Primary Academy
Nottinghamshire County Council,1111/1001,Children and Young People,CYP,Third Party Payments,EDA,23/09/2021,06-13337,"20,274.24",Samuel Barlow Primary Academy
Nottinghamshire County Council,1111/1001,Children and Young People,CYP,Third Party Payments,EDA,23/09/2021,06-13338,"25,976.37",Heymann Primary School
Nottinghamshire County Council,1111/1001,Children and Young People,CYP,Third Party Payments,EDA,23/09/2021,06-13339,"12,671.40",Bishop Alexander LEAD Academy
Nottinghamshire County Council,1111/1001,Children and Young People,CYP,Third Party Payments,EDA,23/09/2021,06-13340,"19,007.10",Hillocks Primary Academy
Nottinghamshire County Council,1111/1001,Children and Young People,CYP,Third Party Payments,EDA,23/09/2021,06-13341,"18,373.53",Bracken Lane Primary Academy
Nottinghamshire County Council,1111/1001,Children and Young People,CYP,Third Party Payments,EDA,23/09/2021,06-13342,"19,640.67",Thrumpton Primary Academy
Nottinghamshire County Council,1111/1001,Children and Young People,CYP,Third Party Payments,EDA,23/09/2021,06-13343,"10,770.69",John Clifford School
Nottinghamshire County Council,1111/1001,Children and Young People,CYP,Third Party Payments,EDA,23/09/2021,06-13344,"21,161.24",Robert Mellors Primary & Nursery Ac
Nottinghamshire County Council,1111/1001,Children and Young People,CYP,Third Party Payments,EDA,23/09/2021,06-13345,"29,524.36",Richard Bonnington Primary Academy(
Nottinghamshire County Council,1111/1001,Children and Young People,CYP,Third Party Payments,EDA,23/09/2021,06-13346,"23,442.09",DALP T/A Wainwright Primary Academy
Nottinghamshire County Council,1111/1001,Children and Young People,CYP,Third Party Payments,EDA,23/09/2021,06-13347,"10,770.69",Mansfield Primary Academy
Nottinghamshire County Council,1111/1001,Children and Young People,CYP,Third Party Payments,EDA,23/09/2021,06-13348,"8,869.98",Arnbrook Primary Academy
Nottinghamshire County Council,1111/1001,Children and Young People,CYP,Third Party Payments,EDA,23/09/2021,06-13349,"48,215.00",St Augustine's Academy
Nottinghamshire County Council,1111/1001,Children and Young People,CYP,Third Party Payments,EDA,23/09/2021,06-13351,"11,404.26",Sunnyside Spencer Academy (Spencer
Nottinghamshire County Council,1111/1001,Children and Young People,CYP,Third Party Payments,EDA,27/09/2021,06-15554,"33,064.00",Mapplewells Primary & Nursery Acada
Nottinghamshire County Council,1111/1001,Children and Young People,CYP,Third Party Payments,EDA,30/09/2021,06-11231,"7,000.00",Bracken Lane Primary Academy
Nottinghamshire County Council,1111/1001,Children and Young People,CYP,Third Party Payments,EDA,30/09/2021,06-11232,"2,560.00",Retford Oaks Academy
Nottinghamshire County Council,1111/1001,Children and Young People,CYP,Third Party Payments,EDA,30/09/2021,06-11233,"4,661.00",Thrumpton Primary Academy
Nottinghamshire County Council,1111/1001,Children and Young People,CYP,Third Party Payments,EDA,30/09/2021,06-11234,"5,666.00",St Swithuns C of E Primary Academy
Nottinghamshire County Council,1111/1001,Children and Young People,CYP,Third Party Payments,EDA,30/09/2021,06-11236,"4,570.00",Bracken Lane Primary Academy
Nottinghamshire County Council,1111/1001,Children and Young People,CYP,Third Party Payments,EDA,30/09/2021,06-11237,"5,021.00",The Suthers School
Nottinghamshire County Council,1111/1001,Children and Young People,CYP,Third Party Payments,EDA,30/09/2021,06-11238,"20,080.00",Magnus Church of England Academy
Nottinghamshire County Council,1111/1001,Children and Young People,CYP,Third Party Payments,EDA,30/09/2021,06-11239,"17,052.00",Newark Academy
Nottinghamshire County Council,1111/1001,Children and Young People,CYP,Third Party Payments,EDA,30/09/2021,06-11240,"3,202.00",Winthorpe Primary Academy
Nottinghamshire County Council,1111/1001,Children and Young People,CYP,Third Party Payments,EDA,30/09/2021,06-11241,"10,818.00",St Peters Cross Keys Academy
Nottinghamshire County Council,1111/1001,Children and Young People,CYP,Third Party Payments,EDA,30/09/2021,06-11242,"12,586.00",John Hunt Academy
Nottinghamshire County Council,1111/1001,Children and Young People,CYP,Third Party Payments,EDA,30/09/2021,06-11243,"7,530.00",The Kings C of E Primary Academy
Nottinghamshire County Council,1111/1001,Children and Young People,CYP,Third Party Payments,EDA,30/09/2021,06-11244,"5,887.00",Sir Donald Bailey Academy (Forge Tr
Nottinghamshire County Council,1111/1001,Children and Young People,CYP,Third Party Payments,EDA,30/09/2021,06-11245,"4,154.00",Bishop Alexander LEAD Academy
Nottinghamshire County Council,1111/1001,Children and Young People,CYP,Third Party Payments,EDA,30/09/2021,06-11246,"2,684.00",Barnby Road Academy Prim & Nursery
Nottinghamshire County Council,1111/1001,Children and Young People,CYP,Third Party Payments,EDA,30/09/2021,06-11247,"16,664.00",Kirkby College
Nottinghamshire County Council,1111/1001,Children and Young People,CYP,Third Party Payments,EFA,08/09/2021,06-11208,211.6,Positive Independence Ltd (Allowanc
Nottinghamshire County Council,1111/1001,Children and Young People,CYP,Third Party Payments,EGA,02/09/2021,06-10202,857.26,Salterford House School
Nottinghamshire County Council,1111/1001,Children and Young People,CYP,Third Party Payments,EGA,02/09/2021,06-10203,543.06,J Christmas (Childminder)
Nottinghamshire County Council,1111/1001,Children and Young People,CYP,Third Party Payments,EGA,02/09/2021,06-10204,"1,425.69",J L Beal (Childminder)
Nottinghamshire County Council,1111/1001,Children and Young People,CYP,Third Party Payments,EGA,02/09/2021,06-10205,792.12,Kimie's Little Footprints
Nottinghamshire County Council,1111/1001,Children and Young People,CYP,Third Party Payments,EGA,08/09/2021,06-11205,"3,100.00",Norman Galloway Ltd
Nottinghamshire County Council,1111/1001,Children and Young People,CYP,Third Party Payments,EGA,08/09/2021,06-11213,400,Boston Womens Aid
Nottinghamshire County Council,1111/1001,Children and Young People,CYP,Third Party Payments,EGA,08/09/2021,06-11223,"7,313.20",Bingham Day Nursery & Pre School
Nottinghamshire County Council,1111/1001,Children and Young People,CYP,Third Party Payments,EGA,09/09/2021,06-11248,"3,122.91",Little Toes Day Nursery
Nottinghamshire County Council,1111/1001,Children and Young People,CYP,Third Party Payments,EGA,22/09/2021,06-13260,878.32,Hits Homes Trust
Nottinghamshire County Council,1111/1001,Children and Young People,CYP,Third Party Payments,EGA,27/09/2021,06-15558,528.08,Kimie's Little Footprints
Nottinghamshire County Council,1111/1001,Children and Young People,CYP,Third Party Payments,EGA,27/09/2021,06-15559,"4,481.19",Appleton Childcare Ltd
Nottinghamshire County Council,1111/1001,Children and Young People,CYP,Third Party Payments,EGA,28/09/2021,06-15825,615,Little Kites Playgroup
Nottinghamshire County Council,1111/1001,Children and Young People,CYP,Third Party Payments,EGA,28/09/2021,06-15826,"1,230.00",Little Nippers Pre-School
Nottinghamshire County Council,1111/1001,Children and Young People,CYP,Third Party Payments,EGA,28/09/2021,06-15827,615,Sutton Centre Under 5'S Playgroup
Nottinghamshire County Council,1111/1001,Children and Young People,CYP,Third Party Payments,EGA,28/09/2021,06-15828,615,Tollerton Playgroup
Nottinghamshire County Council,1111/1001,Children and Young People,CYP,Third Party Payments,EGA,28/09/2021,06-15829,615,Village Day Nursery
Nottinghamshire County Council,1111/1001,Children and Young People,CYP,Third Party Payments,EGA,28/09/2021,06-15830,615,Cherubs (Mapperley)
Nottinghamshire County Council,1111/1001,Children and Young People,CYP,Third Party Payments,EGA,30/09/2021,06-16000,"7,604.10",Sunnydale Nursery Ltd
Nottinghamshire County Council,1111/1001,Children and Young People,CYP,Third Party Payments,EGA,30/09/2021,06-16001,814.59,"""[Redacted]"""
Nottinghamshire County Council,1111/1001,Children and Young People,CYP,Third Party Payments,EGA,30/09/2021,06-16002,882.63,"""[Redacted]"""
Nottinghamshire County Council,1111/1001,Children and Young People,CYP,Third Party Payments,EGA,30/09/2021,06-16003,"1,148.19",Kays Childminding
Nottinghamshire County Council,1111/1001,Children and Young People,CYP,Third Party Payments,EGA,30/09/2021,06-16004,"8,788.53",Wolds Childcare Ltd
Nottinghamshire County Council,1111/1001,Children and Young People,CYP,Third Party Payments,EGA,30/09/2021,06-16005,"7,525.33",Longdale Nursery School (Cherubs)
Nottinghamshire County Council,1111/1001,Children and Young People,CYP,Third Party Payments,EGA,30/09/2021,06-16006,"10,267.79",Wollaton Village Day Nurseries
Nottinghamshire County Council,1111/1001,Children and Young People,CYP,Third Party Payments,EGA,30/09/2021,06-16007,"3,966.82",Misson Pre-School
Nottinghamshire County Council,1111/1001,Children and Young People,CYP,Third Party Payments,EGA,30/09/2021,06-16008,"3,773.70",Toddlers University (Bee)
Nottinghamshire County Council,1111/1001,Children and Young People,CYP,Third Party Payments,EGA,30/09/2021,06-16009,"1,154.16",Jammie Dodgers Childminding Group
Nottinghamshire County Council,1111/1001,Children and Young People,CYP,Third Party Payments,EGA,30/09/2021,06-16010,"13,520.85",Papermoon Day Nursery
Nottinghamshire County Council,1111/1001,Children and Young People,CYP,Third Party Payments,EGA,30/09/2021,06-16011,"18,905.48",Children 1st @ Breedon House (Plumt
Nottinghamshire County Council,1111/1001,Children and Young People,CYP,Third Party Payments,EGA,30/09/2021,06-16012,"6,713.26",Willow Brook Pre-School
Nottinghamshire County Council,1111/1001,Children and Young People,CYP,Third Party Payments,EGA,30/09/2021,06-16013,990.36,"""[Redacted]"""
Nottinghamshire County Council,1111/1001,Children and Young People,CYP,Third Party Payments,EGA,30/09/2021,06-16014,"16,563.66",Daisies Day Nursery
Nottinghamshire County Council,1111/1001,Children and Young People,CYP,Third Party Payments,EGA,30/09/2021,06-16015,"5,901.78",Lime Trees  (Burton Joyce)
Nottinghamshire County Council,1111/1001,Children and Young People,CYP,Third Party Payments,EGA,30/09/2021,06-16016,"6,265.65",Ark Pre-School
Nottinghamshire County Council,1111/1001,Children and Young People,CYP,Third Party Payments,EGA,30/09/2021,06-16017,"11,308.92",Little Kites Playgroup
Nottinghamshire County Council,1111/1001,Children and Young People,CYP,Third Party Payments,EGA,30/09/2021,06-16018,"7,479.36",Kidzgrove
Nottinghamshire County Council,1111/1001,Children and Young People,CYP,Third Party Payments,EGA,30/09/2021,06-16019,"25,809.98",Grosvenor House Day Nursery
Nottinghamshire County Council,1111/1001,Children and Young People,CYP,Third Party Payments,EGA,30/09/2021,06-16020,"38,616.96",Pre-School Learning Alliance (HO)
Nottinghamshire County Council,1111/1001,Children and Young People,CYP,Third Party Payments,EGA,30/09/2021,06-16021,990.36,"""[Redacted]"""
Nottinghamshire County Council,1111/1001,Children and Young People,CYP,Third Party Payments,EGA,30/09/2021,06-16022,"13,325.09",All Aboard Nursery Ltd
Nottinghamshire County Council,1111/1001,Children and Young People,CYP,Third Party Payments,EGA,30/09/2021,06-16023,"20,786.43",Carlton & Gedling Day Nursery
Nottinghamshire County Council,1111/1001,Children and Young People,CYP,Third Party Payments,EGA,30/09/2021,06-16024,"11,525.22",Arnold House Day Nursery
Nottinghamshire County Council,1111/1001,Children and Young People,CYP,Third Party Payments,EGA,30/09/2021,06-16025,"12,334.98",Alphabet House Day Nurseries Ltd-Lo
Nottinghamshire County Council,1111/1001,Children and Young People,CYP,Third Party Payments,EGA,30/09/2021,06-16026,656.2,"""[Redacted]"""
Nottinghamshire County Council,1111/1001,Children and Young People,CYP,Third Party Payments,EGA,30/09/2021,06-16027,"6,743.31",Beeston Nursery
Nottinghamshire County Council,1111/1001,Children and Young People,CYP,Third Party Payments,EGA,30/09/2021,06-16028,"3,709.50",Gotham Pre-School Playgroup
Nottinghamshire County Council,1111/1001,Children and Young People,CYP,Third Party Payments,EGA,30/09/2021,06-16029,"8,030.32",Killisick Pre-School
Nottinghamshire County Council,1111/1001,Children and Young People,CYP,Third Party Payments,EGA,30/09/2021,06-16030,"5,701.88",Hucknall Pre-School Playgroup
Nottinghamshire County Council,1111/1001,Children and Young People,CYP,Third Party Payments,EGA,30/09/2021,06-16031,"2,932.53",Allsorts Preschool Underwood
Nottinghamshire County Council,1111/1001,Children and Young People,CYP,Third Party Payments,EGA,30/09/2021,06-16032,"3,614.16",Collingham & District Pre-School
Nottinghamshire County Council,1111/1001,Children and Young People,CYP,Third Party Payments,EGA,30/09/2021,06-16033,"5,430.60",Pea Pod Day Nursery Ltd
Nottinghamshire County Council,1111/1001,Children and Young People,CYP,Third Party Payments,EGA,30/09/2021,06-16034,"19,955.25",Safe Haven Day Nursery
Nottinghamshire County Council,1111/1001,Children and Young People,CYP,Third Party Payments,EGA,30/09/2021,06-16035,"19,118.61",Shaping Futures Day Nursery
Nottinghamshire County Council,1111/1001,Children and Young People,CYP,Third Party Payments,EGA,30/09/2021,06-16036,"11,881.63",Applegarth Day Nurseries Ltd
Nottinghamshire County Council,1111/1001,Children and Young People,CYP,Third Party Payments,EGA,30/09/2021,06-16037,"8,312.92",Learning Ladder Childcare Ltd
Nottinghamshire County Council,1111/1001,Children and Young People,CYP,Third Party Payments,EGA,30/09/2021,06-16038,"6,761.83",Radcliffe On Trent Pre School Playg
Nottinghamshire County Council,1111/1001,Children and Young People,CYP,Third Party Payments,EGA,30/09/2021,06-16039,"9,235.91",Staunton Montessori Nursery School
Nottinghamshire County Council,1111/1001,Children and Young People,CYP,Third Party Payments,EGA,30/09/2021,06-16040,"15,281.49",Fernwood Day Nursery Ltd
Nottinghamshire County Council,1111/1001,Children and Young People,CYP,Third Party Payments,EGA,30/09/2021,06-16041,792.12,"""[Redacted]"""
Nottinghamshire County Council,1111/1001,Children and Young People,CYP,Third Party Payments,EGA,30/09/2021,06-16042,"1,561.77",Tinas Childminding
Nottinghamshire County Council,1111/1001,Children and Young People,CYP,Third Party Payments,EGA,30/09/2021,06-16043,905.1,"""[Redacted]"""
Nottinghamshire County Council,1111/1001,Children and Young People,CYP,Third Party Payments,EGA,30/09/2021,06-16044,"4,887.54",Honey Pot Day Private Day Nursery L
Nottinghamshire County Council,1111/1001,Children and Young People,CYP,Third Party Payments,EGA,30/09/2021,06-16045,"13,716.78",Little Nippers Pre-School
Nottinghamshire County Council,1111/1001,Children and Young People,CYP,Third Party Payments,EGA,30/09/2021,06-16046,"5,299.52",North Muskham Playgroup
Nottinghamshire County Council,1111/1001,Children and Young People,CYP,Third Party Payments,EGA,30/09/2021,06-16047,543.06,Colston Bassett Preparatory School
Nottinghamshire County Council,1111/1001,Children and Young People,CYP,Third Party Payments,EGA,30/09/2021,06-16048,"5,297.40",Hermitage Pre-School
Nottinghamshire County Council,1111/1001,Children and Young People,CYP,Third Party Payments,EGA,30/09/2021,06-16049,"6,252.95",Highfields School & Nursery
Nottinghamshire County Council,1111/1001,Children and Young People,CYP,Third Party Payments,EGA,30/09/2021,06-16050,"4,104.78",Horsendale Playgroup
Nottinghamshire County Council,1111/1001,Children and Young People,CYP,Third Party Payments,EGA,30/09/2021,06-16051,"2,009.32",St Giles Pre-school
Nottinghamshire County Council,1111/1001,Children and Young People,CYP,Third Party Payments,EGA,30/09/2021,06-16052,"11,132.88",Busy Bees Nurseries Limited
Nottinghamshire County Council,1111/1001,Children and Young People,CYP,Third Party Payments,EGA,30/09/2021,06-16053,"5,996.13",St Mary's Pre-School
Nottinghamshire County Council,1111/1001,Children and Young People,CYP,Third Party Payments,EGA,30/09/2021,06-16054,"5,467.21",Homestead Day Nursery Ltd
Nottinghamshire County Council,1111/1001,Children and Young People,CYP,Third Party Payments,EGA,30/09/2021,06-16055,"5,294.27",Kimberley Pre-School Playgroup
Nottinghamshire County Council,1111/1001,Children and Young People,CYP,Third Party Payments,EGA,30/09/2021,06-16056,"2,605.81",Leahurst Road Pre-School
Nottinghamshire County Council,1111/1001,Children and Young People,CYP,Third Party Payments,EGA,30/09/2021,06-16057,"9,651.60",Leen Mills Pre School Playgroup
Nottinghamshire County Council,1111/1001,Children and Young People,CYP,Third Party Payments,EGA,30/09/2021,06-16058,"10,311.42",Leos Childrens Nurseries Ltd
Nottinghamshire County Council,1111/1001,Children and Young People,CYP,Third Party Payments,EGA,30/09/2021,06-16059,"32,183.69",Children 1st @ Breedon House (MayFi
Nottinghamshire County Council,1111/1001,Children and Young People,CYP,Third Party Payments,EGA,30/09/2021,06-16060,"10,722.60",Westbourne House Nursery School
Nottinghamshire County Council,1111/1001,Children and Young People,CYP,Third Party Payments,EGA,30/09/2021,06-16061,"4,195.30",Lowdham & Epperstone Pre-School
Nottinghamshire County Council,1111/1001,Children and Young People,CYP,Third Party Payments,EGA,30/09/2021,06-16062,"9,893.38",Millfield Nursery School
Nottinghamshire County Council,1111/1001,Children and Young People,CYP,Third Party Payments,EGA,30/09/2021,06-16063,"2,416.05",Mulberry Bush Day Nursery
Nottinghamshire County Council,1111/1001,Children and Young People,CYP,Third Party Payments,EGA,30/09/2021,06-16064,"4,791.07",Noahs Ark Playgroup
Nottinghamshire County Council,1111/1001,Children and Young People,CYP,Third Party Payments,EGA,30/09/2021,06-16065,"11,130.21",Tiny World Mansfield
Nottinghamshire County Council,1111/1001,Children and Young People,CYP,Third Party Payments,EGA,30/09/2021,06-16066,"3,326.40",Old Cooperative Day Nursery
Nottinghamshire County Council,1111/1001,Children and Young People,CYP,Third Party Payments,EGA,30/09/2021,06-16067,"23,934.96",Orchard Day Nursery
Nottinghamshire County Council,1111/1001,Children and Young People,CYP,Third Party Payments,EGA,30/09/2021,06-16068,"7,096.75",Puddleducks Pre-School
Nottinghamshire County Council,1111/1001,Children and Young People,CYP,Third Party Payments,EGA,30/09/2021,06-16069,"7,205.40",Smarties Private Day Nursery
Nottinghamshire County Council,1111/1001,Children and Young People,CYP,Third Party Payments,EGA,30/09/2021,06-16070,"6,106.63",Cherubs Childrens Centre Pleasley
Nottinghamshire County Council,1111/1001,Children and Young People,CYP,Third Party Payments,EGA,30/09/2021,06-16071,"5,430.60",Beacon Hill Day Nursery
Nottinghamshire County Council,1111/1001,Children and Young People,CYP,Third Party Payments,EGA,30/09/2021,06-16072,"2,715.30",Orchard School Nursery
Nottinghamshire County Council,1111/1001,Children and Young People,CYP,Third Party Payments,EGA,30/09/2021,06-16073,"6,659.69",Papermoon Day Nursery
Nottinghamshire County Council,1111/1001,Children and Young People,CYP,Third Party Payments,EGA,30/09/2021,06-16074,"7,711.45",Plumtree School
Nottinghamshire County Council,1111/1001,Children and Young People,CYP,Third Party Payments,EGA,30/09/2021,06-16075,"6,274.96",Prebend Pre-School Playgroup
Nottinghamshire County Council,1111/1001,Children and Young People,CYP,Third Party Payments,EGA,30/09/2021,06-16076,"11,063.24",Railway Children Playgroup
Nottinghamshire County Council,1111/1001,Children and Young People,CYP,Third Party Payments,EGA,30/09/2021,06-16077,"26,964.33",Cherubs Day Nursery
Nottinghamshire County Council,1111/1001,Children and Young People,CYP,Third Party Payments,EGA,30/09/2021,06-16078,"13,106.69",Claremont Early Years Ltd
Nottinghamshire County Council,1111/1001,Children and Young People,CYP,Third Party Payments,EGA,30/09/2021,06-16079,"8,459.64",Granby House Nursery
Nottinghamshire County Council,1111/1001,Children and Young People,CYP,Third Party Payments,EGA,30/09/2021,06-16080,"2,739.91",Ravenshead Pre-School Playgroup
Nottinghamshire County Council,1111/1001,Children and Young People,CYP,Third Party Payments,EGA,30/09/2021,06-16081,857.26,Salterford House School
Nottinghamshire County Council,1111/1001,Children and Young People,CYP,Third Party Payments,EGA,30/09/2021,06-16082,"2,862.72",Sconce Hills Pre-School Playgroup
Nottinghamshire County Council,1111/1001,Children and Young People,CYP,Third Party Payments,EGA,30/09/2021,06-16083,"11,019.75",Scotts Wood Private Day Nursery
Nottinghamshire County Council,1111/1001,Children and Young People,CYP,Third Party Payments,EGA,30/09/2021,06-16084,"5,225.30",Treetops Nursery (Toton)
Nottinghamshire County Council,1111/1001,Children and Young People,CYP,Third Party Payments,EGA,30/09/2021,06-16085,"4,006.17",Arnold St Mary's Pre-School
Nottinghamshire County Council,1111/1001,Children and Young People,CYP,Third Party Payments,EGA,30/09/2021,06-16086,"10,024.14",Tiny Talkers Day Nursery
Nottinghamshire County Council,1111/1001,Children and Young People,CYP,Third Party Payments,EGA,30/09/2021,06-16087,"11,366.15",Oceans Day Nursery
Nottinghamshire County Council,1111/1001,Children and Young People,CYP,Third Party Payments,EGA,30/09/2021,06-16088,"12,259.17",The Secret Garden Private Day Nurse
Nottinghamshire County Council,1111/1001,Children and Young People,CYP,Third Party Payments,EGA,30/09/2021,06-16089,"4,977.17",St Johns Pre � School Playgroup
Nottinghamshire County Council,1111/1001,Children and Young People,CYP,Third Party Payments,EGA,30/09/2021,06-16090,"3,072.97",Walesby School Playgroup
Nottinghamshire County Council,1111/1001,Children and Young People,CYP,Third Party Payments,EGA,30/09/2021,06-16091,"11,213.37",Cherubs Childcare Centre (Mansfield
Nottinghamshire County Council,1111/1001,Children and Young People,CYP,Third Party Payments,EGA,30/09/2021,06-16092,"3,252.98",Sutton Bonington Playgroup
Nottinghamshire County Council,1111/1001,Children and Young People,CYP,Third Party Payments,EGA,30/09/2021,06-16093,"4,152.96",Sutton Centre Under 5'S Playgroup
Nottinghamshire County Council,1111/1001,Children and Young People,CYP,Third Party Payments,EGA,30/09/2021,06-16094,"5,204.12",Portland Place Pre-School
Nottinghamshire County Council,1111/1001,Children and Young People,CYP,Third Party Payments,EGA,30/09/2021,06-16095,"15,994.44",The Learning Tree Nursery
Nottinghamshire County Council,1111/1001,Children and Young People,CYP,Third Party Payments,EGA,30/09/2021,06-16096,"7,825.25",Tollerton Playgroup
Nottinghamshire County Council,1111/1001,Children and Young People,CYP,Third Party Payments,EGA,30/09/2021,06-16097,"6,194.30",Pre-School 345
Nottinghamshire County Council,1111/1001,Children and Young People,CYP,Third Party Payments,EGA,30/09/2021,06-16098,"5,063.31",Lambley Day Nursery Ltd
Nottinghamshire County Council,1111/1001,Children and Young People,CYP,Third Party Payments,EGA,30/09/2021,06-16099,"13,900.32",Alphabet House Day Nurseries Ltd-Be
Nottinghamshire County Council,1111/1001,Children and Young People,CYP,Third Party Payments,EGA,30/09/2021,06-16100,"3,530.52",Carlton Preschool Playgroup
Nottinghamshire County Council,1111/1001,Children and Young People,CYP,Third Party Payments,EGA,30/09/2021,06-16101,"10,786.98",Village Day Nursery
Nottinghamshire County Council,1111/1001,Children and Young People,CYP,Third Party Payments,EGA,30/09/2021,06-16102,"3,027.66",Watnall Pre-School Playgroup
Nottinghamshire County Council,1111/1001,Children and Young People,CYP,Third Party Payments,EGA,30/09/2021,06-16103,"11,043.57",Weaverthorpe Pre-School Playgroup
Nottinghamshire County Council,1111/1001,Children and Young People,CYP,Third Party Payments,EGA,30/09/2021,06-16104,"13,465.62",Rocking Horse Childcare Centres Ltd
Nottinghamshire County Council,1111/1001,Children and Young People,CYP,Third Party Payments,EGA,30/09/2021,06-16105,"9,288.87",Attenborough Church Pre-School
Nottinghamshire County Council,1111/1001,Children and Young People,CYP,Third Party Payments,EGA,30/09/2021,06-16106,"10,308.27",Awsworth Schoolhouse Day Nursery
Nottinghamshire County Council,1111/1001,Children and Young People,CYP,Third Party Payments,EGA,30/09/2021,06-16107,"12,489.00",Balderton Pre-School
Nottinghamshire County Council,1111/1001,Children and Young People,CYP,Third Party Payments,EGA,30/09/2021,06-16108,"5,470.92",Balderton Village Day Nursery
Nottinghamshire County Council,1111/1001,Children and Young People,CYP,Third Party Payments,EGA,30/09/2021,06-16109,"7,313.20",Bingham Day Nursery & Pre School
Nottinghamshire County Council,1111/1001,Children and Young People,CYP,Third Party Payments,EGA,30/09/2021,06-16110,"5,791.40",West Street Pre-School
Nottinghamshire County Council,1111/1001,Children and Young People,CYP,Third Party Payments,EGA,30/09/2021,06-16111,"13,141.80",Alphabet House Day Nurseries Ltd-Wh
Nottinghamshire County Council,1111/1001,Children and Young People,CYP,Third Party Payments,EGA,30/09/2021,06-16112,"8,213.94",Whitehouse Day Nursery
Nottinghamshire County Council,1111/1001,Children and Young People,CYP,Third Party Payments,EGA,30/09/2021,06-16113,"1,905.23",Willoughby On The Wolds Playgroup
Nottinghamshire County Council,1111/1001,Children and Young People,CYP,Third Party Payments,EGA,30/09/2021,06-16114,"5,077.93",Willow Pre-School Playgroup
Nottinghamshire County Council,1111/1001,Children and Young People,CYP,Third Party Payments,EGA,30/09/2021,06-16115,"2,566.41",Windmill Kindergarten CIC
Nottinghamshire County Council,1111/1001,Children and Young People,CYP,Third Party Payments,EGA,30/09/2021,06-16116,"19,767.51",Papermoon Day Nursery Sutton In Ash
Nottinghamshire County Council,1111/1001,Children and Young People,CYP,Third Party Payments,EGA,30/09/2021,06-16117,"9,038.66",Buttercross Pre School
Nottinghamshire County Council,1111/1001,Children and Young People,CYP,Third Party Payments,EGA,30/09/2021,06-16118,"6,842.68",Bramcote Pre-School Playgroup
Nottinghamshire County Council,1111/1001,Children and Young People,CYP,Third Party Payments,EGA,30/09/2021,06-16119,"11,737.49",Bright Sparks Day Nursery
Nottinghamshire County Council,1111/1001,Children and Young People,CYP,Third Party Payments,EGA,30/09/2021,06-16120,"15,336.72",Brooklyn Day Nursery
Nottinghamshire County Council,1111/1001,Children and Young People,CYP,Third Party Payments,EGA,30/09/2021,06-16121,"5,636.46",Woodborough Village Pre School
Nottinghamshire County Council,1111/1001,Children and Young People,CYP,Third Party Payments,EGA,30/09/2021,06-16122,"28,178.42",Woodthorpe Day Nursery Ltd
Nottinghamshire County Council,1111/1001,Children and Young People,CYP,Third Party Payments,EGA,30/09/2021,06-16123,"16,144.08",Hollies Day Nurseries Ltd
Nottinghamshire County Council,1111/1001,Children and Young People,CYP,Third Party Payments,EGA,30/09/2021,06-16124,"1,973.12",Hickling Pre-School
Nottinghamshire County Council,1111/1001,Children and Young People,CYP,Third Party Payments,EGA,30/09/2021,06-16125,"46,021.54",Serendipity's Day Nursery
Nottinghamshire County Council,1111/1001,Children and Young People,CYP,Third Party Payments,EGA,30/09/2021,06-16126,"10,204.64",Coteswood House School
Nottinghamshire County Council,1111/1001,Children and Young People,CYP,Third Party Payments,EGA,30/09/2021,06-16127,"17,200.78",Bizzy Kidz
Nottinghamshire County Council,1111/1001,Children and Young People,CYP,Third Party Payments,EGA,30/09/2021,06-16128,"12,551.52",Cherubs Childrens Centre Wynndale
Nottinghamshire County Council,1111/1001,Children and Young People,CYP,Third Party Payments,EGA,30/09/2021,06-16129,"6,839.91",Wishing Well Day Nursery
Nottinghamshire County Council,1111/1001,Children and Young People,CYP,Third Party Payments,EGA,30/09/2021,06-16130,"16,473.90",Little Oaks Nursery
Nottinghamshire County Council,1111/1001,Children and Young People,CYP,Third Party Payments,EGA,30/09/2021,06-16131,"8,821.26",The Learning Tree Day Nursery 2
Nottinghamshire County Council,1111/1001,Children and Young People,CYP,Third Party Payments,EGA,30/09/2021,06-16132,"10,237.00",Papplewick Pre-School Playgroup
Nottinghamshire County Council,1111/1001,Children and Young People,CYP,Third Party Payments,EGA,30/09/2021,06-16133,"3,035.97",Little Friends Day Nursery
Nottinghamshire County Council,1111/1001,Children and Young People,CYP,Third Party Payments,EGA,30/09/2021,06-16134,"14,568.12",Stapleford Day Nursery
Nottinghamshire County Council,1111/1001,Children and Young People,CYP,Third Party Payments,EGA,30/09/2021,06-16135,"9,161.46",Rocking Horse Nursery Ltd
Nottinghamshire County Council,1111/1001,Children and Young People,CYP,Third Party Payments,EGA,30/09/2021,06-16136,"9,855.72",Treetops Nurseries (Workop)
Nottinghamshire County Council,1111/1001,Children and Young People,CYP,Third Party Payments,EGA,30/09/2021,06-16137,"2,806.63",Chetwynd Little Troopers Nursery &
Nottinghamshire County Council,1111/1001,Children and Young People,CYP,Third Party Payments,EGA,30/09/2021,06-16138,"1,632.67",Christchurch Hall Pre-School Playgr
Nottinghamshire County Council,1111/1001,Children and Young People,CYP,Third Party Payments,EGA,30/09/2021,06-16139,"11,157.62",Carnarvon Pre-School
Nottinghamshire County Council,1111/1001,Children and Young People,CYP,Third Party Payments,EGA,30/09/2021,06-16140,"2,334.66",Costock Pre School
Nottinghamshire County Council,1111/1001,Children and Young People,CYP,Third Party Payments,EGA,30/09/2021,06-16141,"2,483.46",Rainbow Day Nursery
Nottinghamshire County Council,1111/1001,Children and Young People,CYP,Third Party Payments,EGA,30/09/2021,06-16142,"8,502.69",Papermoon Day Nursery
Nottinghamshire County Council,1111/1001,Children and Young People,CYP,Third Party Payments,EGA,30/09/2021,06-16143,"2,430.32",Haywood Road Pre-School
Nottinghamshire County Council,1111/1001,Children and Young People,CYP,Third Party Payments,EGA,30/09/2021,06-16144,"5,758.05",Southfields Pre-School
Nottinghamshire County Council,1111/1001,Children and Young People,CYP,Third Party Payments,EGA,30/09/2021,06-16145,"5,651.94",Ashfield Plaza Day Nursery
Nottinghamshire County Council,1111/1001,Children and Young People,CYP,Third Party Payments,EGA,30/09/2021,06-16146,"7,655.63",Cranmer Pre-School
Nottinghamshire County Council,1111/1001,Children and Young People,CYP,Third Party Payments,EGA,30/09/2021,06-16147,"7,847.65",Daisies Day Nursery
Nottinghamshire County Council,1111/1001,Children and Young People,CYP,Third Party Payments,EGA,30/09/2021,06-16148,"12,251.15",East Leake Day Nursery & Pre-School
Nottinghamshire County Council,1111/1001,Children and Young People,CYP,Third Party Payments,EGA,30/09/2021,06-16149,"5,132.23",Elston Pre-school
Nottinghamshire County Council,1111/1001,Children and Young People,CYP,Third Party Payments,EGA,30/09/2021,06-16150,"10,339.14",Wollaton Village Day Nurseries Ltd
Nottinghamshire County Council,1111/1001,Children and Young People,CYP,Third Party Payments,EGA,30/09/2021,06-16151,"5,734.63",Pippins Pre-School
Nottinghamshire County Council,1111/1001,Children and Young People,CYP,Third Party Payments,EGA,30/09/2021,06-16152,"11,795.49",Scottswood Pdn Ltd
Nottinghamshire County Council,1111/1001,Children and Young People,CYP,Third Party Payments,EGA,30/09/2021,06-16153,"9,720.27",Kingfisher Day Nursery
Nottinghamshire County Council,1111/1001,Children and Young People,CYP,Third Party Payments,EGA,30/09/2021,06-16154,"3,420.80",Fledglings Pre School
Nottinghamshire County Council,1111/1001,Children and Young People,CYP,Third Party Payments,EGA,30/09/2021,06-16155,"2,534.03",Early Years Playgroup
Nottinghamshire County Council,1111/1001,Children and Young People,CYP,Third Party Payments,EGA,30/09/2021,06-16156,"1,425.69",Lowater Street Play & Pre School
Nottinghamshire County Council,1111/1001,Children and Young People,CYP,Third Party Payments,EGA,30/09/2021,06-16157,"11,737.65",Little Millers Day Nursery
Nottinghamshire County Council,1111/1001,Children and Young People,CYP,Third Party Payments,EGA,30/09/2021,06-16158,"3,135.01",Tiny Tots Playgroup
Nottinghamshire County Council,1111/1001,Children and Young People,CYP,Third Party Payments,EGA,30/09/2021,06-16159,"13,101.48",Alphabet House Day Nurseries Ltd-We
Nottinghamshire County Council,1111/1001,Children and Young People,CYP,Third Party Payments,EGA,30/09/2021,06-16160,"8,302.44",Good Foundations Day Nursery
Nottinghamshire County Council,1111/1001,Children and Young People,CYP,Third Party Payments,EGA,30/09/2021,06-16161,"4,403.28",Good Shepherd Pre-School
Nottinghamshire County Council,1111/1001,Children and Young People,CYP,Third Party Payments,EGA,30/09/2021,06-16162,"5,906.04",Leo's Childrens Nurseries Ltd
Nottinghamshire County Council,1111/1001,Children and Young People,CYP,Third Party Payments,EGA,30/09/2021,06-16163,"11,104.74",Bircotes Pre-School
Nottinghamshire County Council,1111/1001,Children and Young People,CYP,Third Party Payments,EGA,30/09/2021,06-16164,"9,189.96",East Leake Pre-School Playgroup
Nottinghamshire County Council,1111/1001,Children and Young People,CYP,Third Party Payments,EGA,30/09/2021,06-16165,"7,381.78",Little Acorns Shireoaks
Nottinghamshire County Council,1111/1001,Children and Young People,CYP,Third Party Payments,EGA,30/09/2021,06-16166,"12,408.99",Willow Childcare & Training Ltd
Nottinghamshire County Council,1111/1001,Children and Young People,CYP,Third Party Payments,EGA,30/09/2021,06-16167,543.06,J Fisher (Childminder)
Nottinghamshire County Council,1111/1001,Children and Young People,CYP,Third Party Payments,EGA,30/09/2021,06-16168,"11,484.27",Treetops Nursery (Clipstone)
Nottinghamshire County Council,1111/1001,Children and Young People,CYP,Third Party Payments,EGA,30/09/2021,06-16169,"17,973.90",Bright Stars Childcare
Nottinghamshire County Council,1111/1001,Children and Young People,CYP,Third Party Payments,EGA,30/09/2021,06-16170,"7,965.75",Cherubs Ryton Park
Nottinghamshire County Council,1111/1001,Children and Young People,CYP,Third Party Payments,EGA,30/09/2021,06-16171,"7,168.14",Bullpit Road Nursery
Nottinghamshire County Council,1111/1001,Children and Young People,CYP,Third Party Payments,EGA,30/09/2021,06-16172,"12,019.56",The Enchanted Garden Day Nursery
Nottinghamshire County Council,1111/1001,Children and Young People,CYP,Third Party Payments,EGA,30/09/2021,06-16173,611.1,"""[Redacted]"""
Nottinghamshire County Council,1111/1001,Children and Young People,CYP,Third Party Payments,EGA,30/09/2021,06-16174,"6,297.48",Rainbows Day Nursery
Nottinghamshire County Council,1111/1001,Children and Young People,CYP,Third Party Payments,EGA,30/09/2021,06-16175,"1,561.77",Kylees Childminding Services
Nottinghamshire County Council,1111/1001,Children and Young People,CYP,Third Party Payments,EGA,30/09/2021,06-16176,"1,425.69",Sharons Childminding
Nottinghamshire County Council,1111/1001,Children and Young People,CYP,Third Party Payments,EGA,30/09/2021,06-16177,"8,459.01",Zoe's Childcare Ltd
Nottinghamshire County Council,1111/1001,Children and Young People,CYP,Third Party Payments,EGA,30/09/2021,06-16178,"10,730.80",Cedar House Day Nursery
Nottinghamshire County Council,1111/1001,Children and Young People,CYP,Third Party Payments,EGA,30/09/2021,06-16179,814.59,Mini-me Childcare
Nottinghamshire County Council,1111/1001,Children and Young People,CYP,Third Party Payments,EGA,30/09/2021,06-16180,543.06,Appletree House Childminding
Nottinghamshire County Council,1111/1001,Children and Young People,CYP,Third Party Payments,EGA,30/09/2021,06-16181,"1,425.69","""[Redacted]"""
Nottinghamshire County Council,1111/1001,Children and Young People,CYP,Third Party Payments,EGA,30/09/2021,06-16182,"26,818.77",The Orange Tree Day Nursery
Nottinghamshire County Council,1111/1001,Children and Young People,CYP,Third Party Payments,EGA,30/09/2021,06-16183,611.1,"""[Redacted]"""
Nottinghamshire County Council,1111/1001,Children and Young People,CYP,Third Party Payments,EGA,30/09/2021,06-16184,"1,285.24","""[Redacted]"""
Nottinghamshire County Council,1111/1001,Children and Young People,CYP,Third Party Payments,EGA,30/09/2021,06-16185,814.59,"""[Redacted]"""
Nottinghamshire County Council,1111/1001,Children and Young People,CYP,Third Party Payments,EGA,30/09/2021,06-16186,"6,665.40",Cherubs Childcare Centre Ladybrook
Nottinghamshire County Council,1111/1001,Children and Young People,CYP,Third Party Payments,EGA,30/09/2021,06-16187,760.28,"""[Redacted]"""
Nottinghamshire County Council,1111/1001,Children and Young People,CYP,Third Party Payments,EGA,30/09/2021,06-16188,"1,357.65","""[Redacted]"""
Nottinghamshire County Council,1111/1001,Children and Young People,CYP,Third Party Payments,EGA,30/09/2021,06-16189,"7,000.23",Rushcliffe Pre-School (Nottingham)
Nottinghamshire County Council,1111/1001,Children and Young People,CYP,Third Party Payments,EGA,30/09/2021,06-16190,"2,805.81",Upton Crickets Day Nursery
Nottinghamshire County Council,1111/1001,Children and Young People,CYP,Third Party Payments,EGA,30/09/2021,06-16191,"1,357.65","""[Redacted]"""
Nottinghamshire County Council,1111/1001,Children and Young People,CYP,Third Party Payments,EGA,30/09/2021,06-16192,"7,811.58",Cheeky Monkeys Day Nursery
Nottinghamshire County Council,1111/1001,Children and Young People,CYP,Third Party Payments,EGA,30/09/2021,06-16193,814.59,"""[Redacted]"""
Nottinghamshire County Council,1111/1001,Children and Young People,CYP,Third Party Payments,EGA,30/09/2021,06-16194,882.63,"""[Redacted]"""
Nottinghamshire County Council,1111/1001,Children and Young People,CYP,Third Party Payments,EGA,30/09/2021,06-16195,679.14,"""[Redacted]"""
Nottinghamshire County Council,1111/1001,Children and Young People,CYP,Third Party Payments,EGA,30/09/2021,06-16196,"12,436.20",Acorns Childminding
Nottinghamshire County Council,1111/1001,Children and Young People,CYP,Third Party Payments,EGA,30/09/2021,06-16197,"9,237.83",Children 1st @ Newark Centre
Nottinghamshire County Council,1111/1001,Children and Young People,CYP,Third Party Payments,EGA,30/09/2021,06-16198,"5,007.87",Zoes Childcare Ltd
Nottinghamshire County Council,1111/1001,Children and Young People,CYP,Third Party Payments,EGA,30/09/2021,06-16199,534.01,Fiona Lamb Childminding Service
Nottinghamshire County Council,1111/1001,Children and Young People,CYP,Third Party Payments,EGA,30/09/2021,06-16200,"1,579.87",Tracey Streeter Childminding Servic
Nottinghamshire County Council,1111/1001,Children and Young People,CYP,Third Party Payments,EGA,30/09/2021,06-16201,"1,222.20",Lucy Doherty (Childminder)
Nottinghamshire County Council,1111/1001,Children and Young People,CYP,Third Party Payments,EGA,30/09/2021,06-16202,543.06,"""[Redacted]"""
Nottinghamshire County Council,1111/1001,Children and Young People,CYP,Third Party Payments,EGA,30/09/2021,06-16203,"3,122.91","""[Redacted]"""
Nottinghamshire County Council,1111/1001,Children and Young People,CYP,Third Party Payments,EGA,30/09/2021,06-16204,543.06,"""[Redacted]"""
Nottinghamshire County Council,1111/1001,Children and Young People,CYP,Third Party Payments,EGA,30/09/2021,06-16205,814.59,"""[Redacted]"""
Nottinghamshire County Council,1111/1001,Children and Young People,CYP,Third Party Payments,EGA,30/09/2021,06-16206,943.3,"""[Redacted]"""
Nottinghamshire County Council,1111/1001,Children and Young People,CYP,Third Party Payments,EGA,30/09/2021,06-16207,543.06,"""[Redacted]"""
Nottinghamshire County Council,1111/1001,Children and Young People,CYP,Third Party Payments,EGA,30/09/2021,06-16208,669.78,Jeanette Hooper Childminding Servic
Nottinghamshire County Council,1111/1001,Children and Young People,CYP,Third Party Payments,EGA,30/09/2021,06-16209,705.98,R Hudson (Childminding Service)
Nottinghamshire County Council,1111/1001,Children and Young People,CYP,Third Party Payments,EGA,30/09/2021,06-16210,"14,808.15",Little Beans Playgroup
Nottinghamshire County Council,1111/1001,Children and Young People,CYP,Third Party Payments,EGA,30/09/2021,06-16211,"11,604.26",Childrens House Childcare Ltd
Nottinghamshire County Council,1111/1001,Children and Young People,CYP,Third Party Payments,EGA,30/09/2021,06-16212,"11,594.65",Mapperley Day Nursery
Nottinghamshire County Council,1111/1001,Children and Young People,CYP,Third Party Payments,EGA,30/09/2021,06-16213,543.06,T M Fletcher (Childminding Service)
Nottinghamshire County Council,1111/1001,Children and Young People,CYP,Third Party Payments,EGA,30/09/2021,06-16214,"1,629.18",Sweet Pea's Childminding
Nottinghamshire County Council,1111/1001,Children and Young People,CYP,Third Party Payments,EGA,30/09/2021,06-16215,665.41,"""[Redacted]"""
Nottinghamshire County Council,1111/1001,Children and Young People,CYP,Third Party Payments,EGA,30/09/2021,06-16216,"19,541.55",Hollies Day Nurseries
Nottinghamshire County Council,1111/1001,Children and Young People,CYP,Third Party Payments,EGA,30/09/2021,06-16217,543.06,Nicola Fenton Childminding Services
Nottinghamshire County Council,1111/1001,Children and Young People,CYP,Third Party Payments,EGA,30/09/2021,06-16218,"2,308.32",Yew Tree Childcare
Nottinghamshire County Council,1111/1001,Children and Young People,CYP,Third Party Payments,EGA,30/09/2021,06-16219,"17,011.51",Phoenix Park Nursery Ltd
Nottinghamshire County Council,1111/1001,Children and Young People,CYP,Third Party Payments,EGA,30/09/2021,06-16220,"2,149.77",R Durr Rose Lodge Childminding
Nottinghamshire County Council,1111/1001,Children and Young People,CYP,Third Party Payments,EGA,30/09/2021,06-16221,611.1,Explorers Childcare
Nottinghamshire County Council,1111/1001,Children and Young People,CYP,Third Party Payments,EGA,30/09/2021,06-16222,"9,029.96",Wolds Day Nursery @ Stragglethorpe
Nottinghamshire County Council,1111/1001,Children and Young People,CYP,Third Party Payments,EGA,30/09/2021,06-16223,"1,629.18",J M Mayfield (Childminder)
Nottinghamshire County Council,1111/1001,Children and Young People,CYP,Third Party Payments,EGA,30/09/2021,06-16224,"10,943.10",Aunty Sue's Day Care Ltd
Nottinghamshire County Council,1111/1001,Children and Young People,CYP,Third Party Payments,EGA,30/09/2021,06-16225,"7,478.73",Happy Days Childcare Services Ltd
Nottinghamshire County Council,1111/1001,Children and Young People,CYP,Third Party Payments,EGA,30/09/2021,06-16226,"6,679.64",Alphabet House Day Nursery (Chilwel
Nottinghamshire County Council,1111/1001,Children and Young People,CYP,Third Party Payments,EGA,30/09/2021,06-16227,543.06,L Naylor (Childminding Service)
Nottinghamshire County Council,1111/1001,Children and Young People,CYP,Third Party Payments,EGA,30/09/2021,06-16228,"14,733.77",Creative Hands Childcare
Nottinghamshire County Council,1111/1001,Children and Young People,CYP,Third Party Payments,EGA,30/09/2021,06-16229,"11,508.21",Little Lambs Day Nursery
Nottinghamshire County Council,1111/1001,Children and Young People,CYP,Third Party Payments,EGA,30/09/2021,06-16230,611.1,S Elliott (Childminder)
Nottinghamshire County Council,1111/1001,Children and Young People,CYP,Third Party Payments,EGA,30/09/2021,06-16231,977.51,J Brosgarth (Childminder)
Nottinghamshire County Council,1111/1001,Children and Young People,CYP,Third Party Payments,EGA,30/09/2021,06-16232,611.1,S Whetton Childminder
Nottinghamshire County Council,1111/1001,Children and Young People,CYP,Third Party Payments,EGA,30/09/2021,06-16233,543.06,Kathryn Birks Childminding Service
Nottinghamshire County Council,1111/1001,Children and Young People,CYP,Third Party Payments,EGA,30/09/2021,06-16234,"1,873.87",P Verma (Childminder)
Nottinghamshire County Council,1111/1001,Children and Young People,CYP,Third Party Payments,EGA,30/09/2021,06-16235,"12,286.01",Jumacare Ltd T/A Church House Nurse
Nottinghamshire County Council,1111/1001,Children and Young People,CYP,Third Party Payments,EGA,30/09/2021,06-16236,"8,982.02",Child First (Welbeck) Nursery
Nottinghamshire County Council,1111/1001,Children and Young People,CYP,Third Party Payments,EGA,30/09/2021,06-16237,"1,222.20",Elaine Marshall (Childminder)
Nottinghamshire County Council,1111/1001,Children and Young People,CYP,Third Party Payments,EGA,30/09/2021,06-16238,977.51,Alison Plant (Childminder)
Nottinghamshire County Council,1111/1001,Children and Young People,CYP,Third Party Payments,EGA,30/09/2021,06-16239,679.14,R Frost (Childminder)
Nottinghamshire County Council,1111/1001,Children and Young People,CYP,Third Party Payments,EGA,30/09/2021,06-16240,673.26,Childcare @ Heathers House
Nottinghamshire County Council,1111/1001,Children and Young People,CYP,Third Party Payments,EGA,30/09/2021,06-16241,882.63,C Nazar (Childminder)
Nottinghamshire County Council,1111/1001,Children and Young People,CYP,Third Party Payments,EGA,30/09/2021,06-16242,520.51,Kate's Childminding
Nottinghamshire County Council,1111/1001,Children and Young People,CYP,Third Party Payments,EGA,30/09/2021,06-16243,"4,684.05",Country Kids Day Nursery (Kneesall)
Nottinghamshire County Council,1111/1001,Children and Young People,CYP,Third Party Payments,EGA,30/09/2021,06-16244,611.1,S Nunn (Childminder)
Nottinghamshire County Council,1111/1001,Children and Young People,CYP,Third Party Payments,EGA,30/09/2021,06-16245,"1,629.18",Butterflies Childminding Services
Nottinghamshire County Council,1111/1001,Children and Young People,CYP,Third Party Payments,EGA,30/09/2021,06-16246,"2,580.48",Little House Of Horrors
Nottinghamshire County Council,1111/1001,Children and Young People,CYP,Third Party Payments,EGA,30/09/2021,06-16247,"3,828.89",Little House Childcare of Brinsley
Nottinghamshire County Council,1111/1001,Children and Young People,CYP,Third Party Payments,EGA,30/09/2021,06-16248,"1,574.88",Green Tot Childcare
Nottinghamshire County Council,1111/1001,Children and Young People,CYP,Third Party Payments,EGA,30/09/2021,06-16249,543.06,E Overton (Childminder)
Nottinghamshire County Council,1111/1001,Children and Young People,CYP,Third Party Payments,EGA,30/09/2021,06-16250,"1,765.26",Jenny's Jelly Tots
Nottinghamshire County Council,1111/1001,Children and Young People,CYP,Third Party Payments,EGA,30/09/2021,06-16251,678.83,Butterflies Childminding Services
Nottinghamshire County Council,1111/1001,Children and Young People,CYP,Third Party Payments,EGA,30/09/2021,06-16252,"1,018.71",Sarah's Childminding
Nottinghamshire County Council,1111/1001,Children and Young People,CYP,Third Party Payments,EGA,30/09/2021,06-16253,"1,425.69",L Warwick (Childminder)
Nottinghamshire County Council,1111/1001,Children and Young People,CYP,Third Party Payments,EGA,30/09/2021,06-16254,"10,224.90",Luan's Little People Ltd
Nottinghamshire County Council,1111/1001,Children and Young People,CYP,Third Party Payments,EGA,30/09/2021,06-16255,"3,122.91",Little Toes Day Nursery
Nottinghamshire County Council,1111/1001,Children and Young People,CYP,Third Party Payments,EGA,30/09/2021,06-16256,"10,651.94",Little Adventures Forest School Ltd
Nottinghamshire County Council,1111/1001,Children and Young People,CYP,Third Party Payments,EGA,30/09/2021,06-16257,543.06,D Taylor (Childminder)
Nottinghamshire County Council,1111/1001,Children and Young People,CYP,Third Party Payments,EGA,30/09/2021,06-16258,543.06,Helping Hands Daycare
Nottinghamshire County Council,1111/1001,Children and Young People,CYP,Third Party Payments,EGA,30/09/2021,06-16259,"1,095.18",S Schneider (Childminder)
Nottinghamshire County Council,1111/1001,Children and Young People,CYP,Third Party Payments,EGA,30/09/2021,06-16260,543.06,D Roberts (Childminder)
Nottinghamshire County Council,1111/1001,Children and Young People,CYP,Third Party Payments,EGA,30/09/2021,06-16261,679.14,L & K's Little Kingdom
Nottinghamshire County Council,1111/1001,Children and Young People,CYP,Third Party Payments,EGA,30/09/2021,06-16262,814.59,Samsam Little Minders
Nottinghamshire County Council,1111/1001,Children and Young People,CYP,Third Party Payments,EGA,30/09/2021,06-16263,"17,827.74",Little Baths Ltd T/A Little PLums D
Nottinghamshire County Council,1111/1001,Children and Young People,CYP,Third Party Payments,EGA,30/09/2021,06-16264,"1,018.71",K Mcknight Childcare
Nottinghamshire County Council,1111/1001,Children and Young People,CYP,Third Party Payments,EGA,30/09/2021,06-16265,"1,193.85",Emma's Enchanted Garden Childcare
Nottinghamshire County Council,1111/1001,Children and Young People,CYP,Third Party Payments,EGA,30/09/2021,06-16266,543.06,J Christmas (Childminder)
Nottinghamshire County Council,1111/1001,Children and Young People,CYP,Third Party Payments,EGA,30/09/2021,06-16267,"6,432.93",Lime Trees Day Nursery Ltd
Nottinghamshire County Council,1111/1001,Children and Young People,CYP,Third Party Payments,EGA,30/09/2021,06-16268,"10,768.02",Hollies Day Nursery (Loughborough R
Nottinghamshire County Council,1111/1001,Children and Young People,CYP,Third Party Payments,EGA,30/09/2021,06-16269,"12,254.32",Secret Garden Childcare Ltd
Nottinghamshire County Council,1111/1001,Children and Young People,CYP,Third Party Payments,EGA,30/09/2021,06-16270,"12,975.01",Cherubs (Sutton In Ashfield)
Nottinghamshire County Council,1111/1001,Children and Young People,CYP,Third Party Payments,EGA,30/09/2021,06-16271,"10,223.26",Small People Ltd
Nottinghamshire County Council,1111/1001,Children and Young People,CYP,Third Party Payments,EGA,30/09/2021,06-16272,543.06,E L Smith (Childminder)
Nottinghamshire County Council,1111/1001,Children and Young People,CYP,Third Party Payments,EGA,30/09/2021,06-16273,"1,493.73",U Tomlinson (Childminder)
Nottinghamshire County Council,1111/1001,Children and Young People,CYP,Third Party Payments,EGA,30/09/2021,06-16274,"9,215.64",Jelly Beans Day Nursery Ltd
Nottinghamshire County Council,1111/1001,Children and Young People,CYP,Third Party Payments,EGA,30/09/2021,06-16275,814.59,Crafty Kids Childminding
Nottinghamshire County Council,1111/1001,Children and Young People,CYP,Third Party Payments,EGA,30/09/2021,06-16276,"6,231.23",Play Days Cottage
Nottinghamshire County Council,1111/1001,Children and Young People,CYP,Third Party Payments,EGA,30/09/2021,06-16277,543.06,Little Foxes Hucknall
Nottinghamshire County Council,1111/1001,Children and Young People,CYP,Third Party Payments,EGA,30/09/2021,06-16278,"2,211.93",New Beginnings Quality Childcare
Nottinghamshire County Council,1111/1001,Children and Young People,CYP,Third Party Payments,EGA,30/09/2021,06-16279,950.67,A Pemberton (Childminder)
Nottinghamshire County Council,1111/1001,Children and Young People,CYP,Third Party Payments,EGA,30/09/2021,06-16280,"1,190.36",Cooper's Nest Childcare
Nottinghamshire County Council,1111/1001,Children and Young People,CYP,Third Party Payments,EGA,30/09/2021,06-16281,543.06,Zoes Childminding Service
Nottinghamshire County Council,1111/1001,Children and Young People,CYP,Third Party Payments,EGA,30/09/2021,06-16282,"1,697.85",Windmills Childcare
Nottinghamshire County Council,1111/1001,Children and Young People,CYP,Third Party Payments,EGA,30/09/2021,06-16283,814.59,Morags Childminding
Nottinghamshire County Council,1111/1001,Children and Young People,CYP,Third Party Payments,EGA,30/09/2021,06-16284,"6,870.66",Country Kids Day Nursery (Newark)
Nottinghamshire County Council,1111/1001,Children and Young People,CYP,Third Party Payments,EGA,30/09/2021,06-16285,"3,813.39",Country Kids Nursery (Rainworth)
Nottinghamshire County Council,1111/1001,Children and Young People,CYP,Third Party Payments,EGA,30/09/2021,06-16286,922.32,Tiki Tots Daycare
Nottinghamshire County Council,1111/1001,Children and Young People,CYP,Third Party Payments,EGA,30/09/2021,06-16287,611.1,Jennytots Childcare
Nottinghamshire County Council,1111/1001,Children and Young People,CYP,Third Party Payments,EGA,30/09/2021,06-16288,"13,589.52",Crocodile Rock Day Care Ltd
Nottinghamshire County Council,1111/1001,Children and Young People,CYP,Third Party Payments,EGA,30/09/2021,06-16289,"3,620.56",Windmills Childcare
Nottinghamshire County Council,1111/1001,Children and Young People,CYP,Third Party Payments,EGA,30/09/2021,06-16290,"2,036.79",C Evans (Childminder)
Nottinghamshire County Council,1111/1001,Children and Young People,CYP,Third Party Payments,EGA,30/09/2021,06-16291,"1,357.65",Kimi D's Tiny Toes Childminding
Nottinghamshire County Council,1111/1001,Children and Young People,CYP,Third Party Payments,EGA,30/09/2021,06-16292,760.29,K Perkins (Childminder)
Nottinghamshire County Council,1111/1001,Children and Young People,CYP,Third Party Payments,EGA,30/09/2021,06-16293,"1,194.73",E Severs (Childminder)
Nottinghamshire County Council,1111/1001,Children and Young People,CYP,Third Party Payments,EGA,30/09/2021,06-16294,543.06,D H Childminding
Nottinghamshire County Council,1111/1001,Children and Young People,CYP,Third Party Payments,EGA,30/09/2021,06-16295,"2,959.11",Cherubs (Edwinstowe)
Nottinghamshire County Council,1111/1001,Children and Young People,CYP,Third Party Payments,EGA,30/09/2021,06-16296,991.24,Little Ducklings Childminding
Nottinghamshire County Council,1111/1001,Children and Young People,CYP,Third Party Payments,EGA,30/09/2021,06-16297,611.1,Ohana Childminding
Nottinghamshire County Council,1111/1001,Children and Young People,CYP,Third Party Payments,EGA,30/09/2021,06-16298,882.63,B Whyman (Childminder)
Nottinghamshire County Council,1111/1001,Children and Young People,CYP,Third Party Payments,EGA,30/09/2021,06-16299,"1,393.86",M Dodgson (Chidminder)
Nottinghamshire County Council,1111/1001,Children and Young People,CYP,Third Party Payments,EGA,30/09/2021,06-16300,"2,551.50",Cherubs (Ruddington)
Nottinghamshire County Council,1111/1001,Children and Young People,CYP,Third Party Payments,EGA,30/09/2021,06-16301,"19,885.95",Hucknall Day Nursery Ltd
Nottinghamshire County Council,1111/1001,Children and Young People,CYP,Third Party Payments,EGA,30/09/2021,06-16302,"9,538.87",Lime Trees (Cropwell Bishop)
Nottinghamshire County Council,1111/1001,Children and Young People,CYP,Third Party Payments,EGA,30/09/2021,06-16303,"7,548.79",Lime Trees (Kirkby West)
Nottinghamshire County Council,1111/1001,Children and Young People,CYP,Third Party Payments,EGA,30/09/2021,06-16304,679.14,D Varnam (Childminder)
Nottinghamshire County Council,1111/1001,Children and Young People,CYP,Third Party Payments,EGA,30/09/2021,06-16305,"3,749.55",Lime Trees (Netherfield)
Nottinghamshire County Council,1111/1001,Children and Young People,CYP,Third Party Payments,EGA,30/09/2021,06-16306,"13,495.86",Little Lambs Day Nursery (Kirkby in
Nottinghamshire County Council,1111/1001,Children and Young People,CYP,Third Party Payments,EGA,30/09/2021,06-16307,724.08,Daisy's Childminding
Nottinghamshire County Council,1111/1001,Children and Young People,CYP,Third Party Payments,EGA,30/09/2021,06-16308,"1,425.69",J L Beal (Childminder)
Nottinghamshire County Council,1111/1001,Children and Young People,CYP,Third Party Payments,EGA,30/09/2021,06-16309,"1,154.16",L Wragg (Childminder)
Nottinghamshire County Council,1111/1001,Children and Young People,CYP,Third Party Payments,EGA,30/09/2021,06-16310,"3,162.60",Little Explorers
Nottinghamshire County Council,1111/1001,Children and Young People,CYP,Third Party Payments,EGA,30/09/2021,06-16311,543.06,C M Proudler (Childminder)
Nottinghamshire County Council,1111/1001,Children and Young People,CYP,Third Party Payments,EGA,30/09/2021,06-16312,"7,806.96",Poppy & Jacks Ltd
Nottinghamshire County Council,1111/1001,Children and Young People,CYP,Third Party Payments,EGA,30/09/2021,06-16313,"8,265.60",Redwood Scholars Schools LtdT/A Alp
Nottinghamshire County Council,1111/1001,Children and Young People,CYP,Third Party Payments,EGA,30/09/2021,06-16314,"5,430.60",Playroom Nursery
Nottinghamshire County Council,1111/1001,Children and Young People,CYP,Third Party Payments,EGA,30/09/2021,06-16315,582.75,N Woolley (Childminder)
Nottinghamshire County Council,1111/1001,Children and Young People,CYP,Third Party Payments,EGA,30/09/2021,06-16316,769.16,Cottage Childcare
Nottinghamshire County Council,1111/1001,Children and Young People,CYP,Third Party Payments,EGA,30/09/2021,06-16317,543.06,Barefoot Kids Zone
Nottinghamshire County Council,1111/1001,Children and Young People,CYP,Third Party Payments,EGA,30/09/2021,06-16318,"1,222.20",S Greger (Childminder)
Nottinghamshire County Council,1111/1001,Children and Young People,CYP,Third Party Payments,EGA,30/09/2021,06-16319,"5,702.76",Cherubs (Mapperley)
Nottinghamshire County Council,1111/1001,Children and Young People,CYP,Third Party Payments,EGA,30/09/2021,06-16320,"1,222.20",Welcome Nursery Mansfield
Nottinghamshire County Council,1111/1001,Children and Young People,CYP,Third Party Payments,EGA,30/09/2021,06-16321,524.96,Poppins Childcare
Nottinghamshire County Council,1111/1001,Children and Young People,CYP,Third Party Payments,EGA,30/09/2021,06-16322,543.06,Little Gem's
Nottinghamshire County Council,1111/1001,Children and Young People,CYP,Third Party Payments,EGA,30/09/2021,06-16323,"3,258.36","""[Redacted]"""
Nottinghamshire County Council,1111/1001,Children and Young People,CYP,Third Party Payments,EGA,30/09/2021,06-16324,"1,086.12",Little Tots
Nottinghamshire County Council,1111/1001,Children and Young People,CYP,Third Party Payments,EGA,30/09/2021,06-16325,"5,973.66",Saville House School  T/A NRA Acade
Nottinghamshire County Council,1111/1001,Children and Young People,CYP,Third Party Payments,EGA,30/09/2021,06-16326,"7,077.90",Lady Bay Pre School Playgroup
Nottinghamshire County Council,1111/1001,Children and Young People,CYP,Third Party Payments,EGA,30/09/2021,06-16327,"7,954.39",Jesters Childcare Ltd
Nottinghamshire County Council,1111/1001,Children and Young People,CYP,Third Party Payments,EGA,30/09/2021,06-16328,"8,485.36",Thrumpton Kids Clubs
Nottinghamshire County Council,1111/1001,Children and Young People,CYP,Third Party Payments,EGA,30/09/2021,06-16329,"23,715.30",Quinton Day Nurseries T/A Honey Bee
Nottinghamshire County Council,1111/1001,Children and Young People,CYP,Third Party Payments,EGA,30/09/2021,06-16330,"14,212.66",Worksop College
Nottinghamshire County Council,1111/1001,Children and Young People,CYP,Third Party Payments,EGA,30/09/2021,06-16331,"22,287.09",Radcliffe On Trent Day Nursery
Nottinghamshire County Council,1111/1001,Children and Young People,CYP,Third Party Payments,EGA,30/09/2021,06-16332,"29,240.82",Little Bears Day Nursery
Nottinghamshire County Council,1111/1001,Children and Young People,CYP,Third Party Payments,EGA,30/09/2021,06-16333,"27,832.14",Ruddington Nursery & Pre-School
Nottinghamshire County Council,1111/1001,Children and Young People,CYP,Third Party Payments,EGA,30/09/2021,06-16334,"17,644.79",Pump Farm Day Nursery
Nottinghamshire County Council,1111/1001,Children and Young People,CYP,Third Party Payments,EGA,30/09/2021,06-16335,"27,126.17",Edwalton Day Nursery
Nottinghamshire County Council,1111/1001,Children and Young People,CYP,Third Party Payments,EGA,30/09/2021,06-16336,"14,604.38",Farnsfield Pre-School
Nottinghamshire County Council,1111/1001,Children and Young People,CYP,Third Party Payments,EGA,30/09/2021,06-16337,"1,086.12","""[Redacted]"""
Nottinghamshire County Council,1111/1001,Children and Young People,CYP,Third Party Payments,EGA,30/09/2021,06-16338,"1,901.34",Luans Little Stars
Nottinghamshire County Council,1111/1001,Children and Young People,CYP,Third Party Payments,EGA,30/09/2021,06-16339,868.9,V Ashworth (Childminder)
Nottinghamshire County Council,1111/1001,Children and Young People,CYP,Third Party Payments,EGA,30/09/2021,06-16340,679.14,"""[Redacted]"""
Nottinghamshire County Council,1111/1001,Children and Young People,CYP,Third Party Payments,EGA,30/09/2021,06-16341,"3,394.44","""[Redacted]"""
Nottinghamshire County Council,1111/1001,Children and Young People,CYP,Third Party Payments,EGA,30/09/2021,06-16342,"2,987.46","""[Redacted]"""
Nottinghamshire County Council,1111/1001,Children and Young People,CYP,Third Party Payments,EGA,30/09/2021,06-16343,533.61,"""[Redacted]"""
Nottinghamshire County Council,1111/1001,Children and Young People,CYP,Third Party Payments,EGA,30/09/2021,06-16344,"23,056.08",Dragonflies Day Nursery ltd
Nottinghamshire County Council,1111/1001,Children and Young People,CYP,Third Party Payments,EGA,30/09/2021,06-16345,"2,017.08","""[Redacted]"""
Nottinghamshire County Council,1111/1001,Children and Young People,CYP,Third Party Payments,EGA,30/09/2021,06-16346,630.63,"""[Redacted]"""
Nottinghamshire County Council,1111/1001,Children and Young People,CYP,Third Party Payments,EGA,30/09/2021,06-16347,"1,783.05","""[Redacted]"""
Nottinghamshire County Council,1111/1001,Children and Young People,CYP,Third Party Payments,EGA,30/09/2021,06-16348,543.06,G Wood (Childminder)
Nottinghamshire County Council,1111/1001,Children and Young People,CYP,Third Party Payments,EGA,30/09/2021,06-16349,679.14,E Hill (Childminder)
Nottinghamshire County Council,1111/1001,Children and Young People,CYP,Third Party Payments,EGA,30/09/2021,06-16350,679.14,D Simpson (Childminder)
Nottinghamshire County Council,1111/1001,Children and Young People,CYP,Third Party Payments,EGA,30/09/2021,06-16351,"22,097.25",Pre-School Learning Alliance (HO)
Nottinghamshire County Council,1111/1001,Children and Young People,CYP,Third Party Payments,EGA,30/09/2021,06-16352,"1,827.32",Donna Callaghan (Childminder)
Nottinghamshire County Council,1111/1001,Children and Young People,CYP,Third Party Payments,EGA,30/09/2021,06-16353,842.06,K Watt Childminder
Nottinghamshire County Council,1111/1001,Children and Young People,CYP,Third Party Payments,EGA,30/09/2021,06-16354,679.14,L Nightingale (Childiminer)
Nottinghamshire County Council,1111/1001,Children and Young People,CYP,Third Party Payments,EGA,30/09/2021,06-16355,"1,060.78",T Goddard (Childminder)
Nottinghamshire County Council,1111/1001,Children and Young People,CYP,Third Party Payments,EGA,30/09/2021,06-16356,"1,222.20",Funtime At Fearicks
Nottinghamshire County Council,1111/1001,Children and Young People,CYP,Third Party Payments,EGA,30/09/2021,06-16357,"23,142.84",Ryan House Day Nursery
Nottinghamshire County Council,1111/1001,Children and Young People,CYP,Third Party Payments,EGA,30/09/2021,06-16358,679.14,Gemmas Little Gems
Nottinghamshire County Council,1111/1001,Children and Young People,CYP,Third Party Payments,EGA,30/09/2021,06-16359,679.14,Amanda Birth to 11yrs Childcare
Nottinghamshire County Council,1111/1001,Children and Young People,CYP,Third Party Payments,EGA,30/09/2021,06-16360,"8,893.74",Little Wrens Day Nursery & Pre Scho
Nottinghamshire County Council,1111/1001,Children and Young People,CYP,Third Party Payments,EGA,30/09/2021,06-16361,905.1,Claire's Childminding
Nottinghamshire County Council,1111/1001,Children and Young People,CYP,Third Party Payments,EGA,30/09/2021,06-16362,679.14,Kangaroo Teacher Led Childcare Ltd
Nottinghamshire County Council,1111/1001,Children and Young People,CYP,Third Party Payments,EGA,30/09/2021,06-16363,"2,932.51",Phoenix Kindergarten CIC
Nottinghamshire County Council,1111/1001,Children and Young People,CYP,Third Party Payments,EGA,30/09/2021,06-16364,504.27,Little Legges Childcare
Nottinghamshire County Council,1111/1001,Children and Young People,CYP,Third Party Payments,EGA,30/09/2021,06-16365,679.14,Diggory�s Day Nursery Ltd
Nottinghamshire County Council,1111/1001,Children and Young People,CYP,Transfer Payments,GAA,01/09/2021,06-10110,"3,465.00",Doncaster College (DN College Group
Nottinghamshire County Council,1111/1001,Children and Young People,CYP,Transfer Payments,GAA,01/09/2021,06-10111,500,Walton & Allen Lettings Ltd
Nottinghamshire County Council,1111/1001,Children and Young People,CYP,Transfer Payments,GAA,08/09/2021,06-11212,650,Villa Park Estates
Nottinghamshire County Council,1111/1001,Children and Young People,CYP,Transfer Payments,GAA,15/09/2021,06-12731,105.6,Positive Independence Ltd (Allowanc
Nottinghamshire County Council,1111/1001,Children and Young People,CYP,Transfer Payments,GAA,22/09/2021,06-13257,"2,093.88",ADG Management
Nottinghamshire County Council,1111/1001,Children and Young People,CYP,Transfer Payments,GAA,22/09/2021,06-13258,105.6,Positive Independence Ltd (Allowanc
Nottinghamshire County Council,1111/1001,Children and Young People,CYP,Transfer Payments,GAA,29/09/2021,06-15869,"3,986.72",Oakmans Estate Agents Ltd
Nottinghamshire County Council,1111/1001,Adult Social Care and Health,ASCH,Premises Related,BAA,06/09/2021,06-11090,767.5,Harveys Home & Garden Maintenance
Nottinghamshire County Council,1111/1001,Adult Social Care and Health,ASCH,Premises Related,BAA,06/09/2021,06-11091,701,Sues Maintenance Services Ltd
Nottinghamshire County Council,1111/1001,Adult Social Care and Health,ASCH,Premises Related,BAA,06/09/2021,06-11092,523.88,Sues Maintenance Services Ltd
Nottinghamshire County Council,1111/1001,Adult Social Care and Health,ASCH,Premises Related,BAA,07/09/2021,06-11199,"3,076.01",ARC Property Services Partnership L
Nottinghamshire County Council,1111/1001,Adult Social Care and Health,ASCH,Premises Related,BAA,16/09/2021,06-12839,"1,649.06",ARC Property Services Partnership L
Nottinghamshire County Council,1111/1001,Adult Social Care and Health,ASCH,Premises Related,BAA,22/09/2021,06-13252,757.5,RC Services
Nottinghamshire County Council,1111/1001,Adult Social Care and Health,ASCH,Premises Related,BAA,23/09/2021,06-13277,"2,352.58",ARC Property Services Partnership L
Nottinghamshire County Council,1111/1001,Adult Social Care and Health,ASCH,Premises Related,BAA,28/09/2021,06-15819,"4,854.60",ARC Property Services Partnership L
Nottinghamshire County Council,1111/1001,Adult Social Care and Health,ASCH,Premises Related,BEA,15/09/2021,06-12741,"1,100.00",Att Of Earn/Bus Rates Bassetlaw D C
Nottinghamshire County Council,1111/1001,Adult Social Care and Health,ASCH,Transport Related,CAA,13/09/2021,06-11396,"1,386.00",Via East Midlands Ltd
Nottinghamshire County Council,1111/1001,Adult Social Care and Health,ASCH,Transport Related,CAA,13/09/2021,06-11403,968.92,Via East Midlands Ltd
Nottinghamshire County Council,1111/1001,Adult Social Care and Health,ASCH,Transport Related,CAA,20/09/2021,06-12874,"4,699.00",Via East Midlands Ltd
Nottinghamshire County Council,1111/1001,Adult Social Care and Health,ASCH,Transport Related,CAA,20/09/2021,06-12881,"9,007.57",Via East Midlands Ltd
Nottinghamshire County Council,1111/1001,Adult Social Care and Health,ASCH,Transport Related,CCA,03/09/2021,06-10219,"1,906.80",Arrow Specialised Transport Ltd
Nottinghamshire County Council,1111/1001,Adult Social Care and Health,ASCH,Transport Related,CCA,07/09/2021,06-11104,"1,735.00",Alpha Cars
Nottinghamshire County Council,1111/1001,Adult Social Care and Health,ASCH,Transport Related,CCA,24/09/2021,06-13366,"1,688.23",Abacus Cars
Nottinghamshire County Council,1111/1001,Adult Social Care and Health,ASCH,Transport Related,CDA,03/09/2021,06-10216,446.4,Alert Cars Ltd
Nottinghamshire County Council,1111/1001,Adult Social Care and Health,ASCH,Transport Related,CDA,03/09/2021,06-10220,"2,081.65",Arrow Specialised Transport Ltd
Nottinghamshire County Council,1111/1001,Adult Social Care and Health,ASCH,Transport Related,CDA,03/09/2021,06-10221,858.5,Bridges Transport Ltd
Nottinghamshire County Council,1111/1001,Adult Social Care and Health,ASCH,Transport Related,CDA,03/09/2021,06-10222,"3,231.90",Bridges Transport Ltd
Nottinghamshire County Council,1111/1001,Adult Social Care and Health,ASCH,Transport Related,CDA,03/09/2021,06-10223,"1,857.00",Fozcabs Newark Taxis
Nottinghamshire County Council,1111/1001,Adult Social Care and Health,ASCH,Transport Related,CDA,03/09/2021,06-10225,"2,263.80",Hawkins Taxis & Transport
Nottinghamshire County Council,1111/1001,Adult Social Care and Health,ASCH,Transport Related,CDA,03/09/2021,06-10226,900,Ng11 Cars
Nottinghamshire County Council,1111/1001,Adult Social Care and Health,ASCH,Transport Related,CDA,03/09/2021,06-10227,780,Ng11 Cars
Nottinghamshire County Council,1111/1001,Adult Social Care and Health,ASCH,Transport Related,CDA,03/09/2021,06-10229,"3,840.30",BN Gibson Ltd
Nottinghamshire County Council,1111/1001,Adult Social Care and Health,ASCH,Transport Related,CDA,03/09/2021,06-10230,"3,742.72",BN Gibson Ltd
Nottinghamshire County Council,1111/1001,Adult Social Care and Health,ASCH,Transport Related,CDA,03/09/2021,06-10235,"1,386.00",P & P Taxis Ltd
Nottinghamshire County Council,1111/1001,Adult Social Care and Health,ASCH,Transport Related,CDA,03/09/2021,06-10236,"1,866.60",Rio Cabs
Nottinghamshire County Council,1111/1001,Adult Social Care and Health,ASCH,Transport Related,CDA,03/09/2021,06-10238,"1,384.73",AAA Cabs
Nottinghamshire County Council,1111/1001,Adult Social Care and Health,ASCH,Transport Related,CDA,03/09/2021,06-10242,650,Nottingham Cars Ltd
Nottinghamshire County Council,1111/1001,Adult Social Care and Health,ASCH,Transport Related,CDA,03/09/2021,06-10243,563,Shiny Sky Ltd T/A Arrow Cars
Nottinghamshire County Council,1111/1001,Adult Social Care and Health,ASCH,Transport Related,CDA,07/09/2021,06-11098,888,200 Cars Ltd
Nottinghamshire County Council,1111/1001,Adult Social Care and Health,ASCH,Transport Related,CDA,07/09/2021,06-11099,512.82,200 Cars Ltd
Nottinghamshire County Council,1111/1001,Adult Social Care and Health,ASCH,Transport Related,CDA,07/09/2021,06-11101,686.72,Alpha Cars
Nottinghamshire County Council,1111/1001,Adult Social Care and Health,ASCH,Transport Related,CDA,07/09/2021,06-11102,532,Alpha Cars
Nottinghamshire County Council,1111/1001,Adult Social Care and Health,ASCH,Transport Related,CDA,07/09/2021,06-11105,842.4,Alpha Cars
Nottinghamshire County Council,1111/1001,Adult Social Care and Health,ASCH,Transport Related,CDA,07/09/2021,06-11107,"1,428.00",Galaxy Cabs Ltd
Nottinghamshire County Council,1111/1001,Adult Social Care and Health,ASCH,Transport Related,CDA,07/09/2021,06-11109,"2,156.00",Galaxy Cabs Ltd
Nottinghamshire County Council,1111/1001,Adult Social Care and Health,ASCH,Transport Related,CDA,07/09/2021,06-11110,"1,449.00",D G Private Hire Ltd
Nottinghamshire County Council,1111/1001,Adult Social Care and Health,ASCH,Transport Related,CDA,10/09/2021,06-11268,640,Abacus Cars
Nottinghamshire County Council,1111/1001,Adult Social Care and Health,ASCH,Transport Related,CDA,10/09/2021,06-11269,680,Abacus Cars
Nottinghamshire County Council,1111/1001,Adult Social Care and Health,ASCH,Transport Related,CDA,10/09/2021,06-11270,"2,152.50",Abacus Cars
Nottinghamshire County Council,1111/1001,Adult Social Care and Health,ASCH,Transport Related,CDA,10/09/2021,06-11271,560,Abacus Cars
Nottinghamshire County Council,1111/1001,Adult Social Care and Health,ASCH,Transport Related,CDA,10/09/2021,06-11272,572,Abacus Cars
Nottinghamshire County Council,1111/1001,Adult Social Care and Health,ASCH,Transport Related,CDA,20/09/2021,06-12890,749.5,Southside Cars Ltd
Nottinghamshire County Council,1111/1001,Adult Social Care and Health,ASCH,Transport Related,CDA,20/09/2021,06-12891,"2,734.26",Southside Cars Ltd
Nottinghamshire County Council,1111/1001,Adult Social Care and Health,ASCH,Transport Related,CDA,20/09/2021,06-12892,568.56,Southside Cars Ltd
Nottinghamshire County Council,1111/1001,Adult Social Care and Health,ASCH,Transport Related,CDA,20/09/2021,06-12893,"1,121.00",Southside Cars Ltd
Nottinghamshire County Council,1111/1001,Adult Social Care and Health,ASCH,Transport Related,CDA,20/09/2021,06-12894,"1,064.00",Southside Cars Ltd
Nottinghamshire County Council,1111/1001,Adult Social Care and Health,ASCH,Transport Related,CDA,20/09/2021,06-12895,544,Southside Cars Ltd
Nottinghamshire County Council,1111/1001,Adult Social Care and Health,ASCH,Transport Related,CDA,20/09/2021,06-12911,"1,905.80",SM Travel Yorkshire Ltd
Nottinghamshire County Council,1111/1001,Adult Social Care and Health,ASCH,Transport Related,CDA,24/09/2021,06-13359,"1,428.00",Acorn Contracts
Nottinghamshire County Council,1111/1001,Adult Social Care and Health,ASCH,Transport Related,CDA,24/09/2021,06-13366,"3,427.64",Abacus Cars
Nottinghamshire County Council,1111/1001,Adult Social Care and Health,ASCH,Transport Related,CDA,30/09/2021,06-15995,"1,793.40",F4Control Ltd (t/a First4care)
Nottinghamshire County Council,1111/1001,Adult Social Care and Health,ASCH,Transport Related,CDA,30/09/2021,06-15998,"1,551.12",Southside Cars Ltd
Nottinghamshire County Council,1111/1001,Adult Social Care and Health,ASCH,Transport Related,CEA,06/09/2021,06-10210,201.45,Reed Employment Plc
Nottinghamshire County Council,1111/1001,Adult Social Care and Health,ASCH,Transport Related,CEA,13/09/2021,06-11172,208.59,Reed Employment Plc
Nottinghamshire County Council,1111/1001,Adult Social Care and Health,ASCH,Transport Related,CEA,20/09/2021,06-12737,163.33,Reed Employment Plc
Nottinghamshire County Council,1111/1001,Adult Social Care and Health,ASCH,Transport Related,CEA,27/09/2021,06-13253,354,Reed Employment Plc
Nottinghamshire County Council,1111/1001,Adult Social Care and Health,ASCH,Supplies & Services,DAA,20/09/2021,06-12873,518.96,JLA Ltd
Nottinghamshire County Council,1111/1001,Adult Social Care and Health,ASCH,Supplies & Services,DBA,01/09/2021,06-10042,"1,218.46",Brake Bros Ltd
Nottinghamshire County Council,1111/1001,Adult Social Care and Health,ASCH,Supplies & Services,DBA,02/09/2021,06-10206,146.94,On A Roll Sandwich Company
Nottinghamshire County Council,1111/1001,Adult Social Care and Health,ASCH,Supplies & Services,DBA,06/09/2021,06-11094,260.75,M Maloney Country Butchers & B Ltd
Nottinghamshire County Council,1111/1001,Adult Social Care and Health,ASCH,Supplies & Services,DBA,07/09/2021,06-11133,124.15,On A Roll Sandwich Company
Nottinghamshire County Council,1111/1001,Adult Social Care and Health,ASCH,Supplies & Services,DBA,09/09/2021,06-11224,15.3,Millside Barrowcliffe Ltd
Nottinghamshire County Council,1111/1001,Adult Social Care and Health,ASCH,Supplies & Services,DBA,09/09/2021,06-11226,82.5,Millside Barrowcliffe Ltd
Nottinghamshire County Council,1111/1001,Adult Social Care and Health,ASCH,Supplies & Services,DBA,10/09/2021,06-11387,"2,129.24",M Maloney Country Butchers & B Ltd
Nottinghamshire County Council,1111/1001,Adult Social Care and Health,ASCH,Supplies & Services,DBA,15/09/2021,06-12825,155.96,On A Roll Sandwich Company
Nottinghamshire County Council,1111/1001,Adult Social Care and Health,ASCH,Supplies & Services,DBA,24/09/2021,06-13354,164.94,On A Roll Sandwich Company
Nottinghamshire County Council,1111/1001,Adult Social Care and Health,ASCH,Supplies & Services,DBA,27/09/2021,06-11137,"1,254.63",Brake Bros Ltd
Nottinghamshire County Council,1111/1001,Adult Social Care and Health,ASCH,Supplies & Services,DBA,28/09/2021,06-15805,164.76,On A Roll Sandwich Company
Nottinghamshire County Council,1111/1001,Adult Social Care and Health,ASCH,Supplies & Services,DBA,28/09/2021,06-15807,"2,300.80",M Maloney Country Butchers & B Ltd
Nottinghamshire County Council,1111/1001,Adult Social Care and Health,ASCH,Supplies & Services,DBA,28/09/2021,06-15840,"2,798.20",M Maloney Country Butchers & B Ltd
Nottinghamshire County Council,1111/1001,Adult Social Care and Health,ASCH,Supplies & Services,DBA,28/09/2021,06-15843,"3,514.15",M Maloney Country Butchers & B Ltd
Nottinghamshire County Council,1111/1001,Adult Social Care and Health,ASCH,Supplies & Services,DBA,29/09/2021,06-12733,881.58,Brake Bros Ltd
Nottinghamshire County Council,1111/1001,Adult Social Care and Health,ASCH,Third Party Payments,ECA,03/09/2021,06-10403,616.4,Churchfield Care Home(Churdhfield C
Nottinghamshire County Council,1111/1001,Adult Social Care and Health,ASCH,Third Party Payments,ECA,03/09/2021,06-10554,187.6,Lawn Park (Four Seasons)
Nottinghamshire County Council,1111/1001,Adult Social Care and Health,ASCH,Third Party Payments,ECA,03/09/2021,06-10576,294.8,Jubilee Court (Runwood)
Nottinghamshire County Council,1111/1001,Adult Social Care and Health,ASCH,Third Party Payments,ECA,03/09/2021,06-10783,670,Westvilla Nursing Home
Nottinghamshire County Council,1111/1001,Adult Social Care and Health,ASCH,Third Party Payments,ECA,10/09/2021,06-11317,723.6,Balmore Country House (My Care Ltd)
Nottinghamshire County Council,1111/1001,Adult Social Care and Health,ASCH,Third Party Payments,ECA,24/09/2021,06-14290,375.2,Hazel Grove NH (Milford)
Nottinghamshire County Council,1111/1001,Adult Social Care and Health,ASCH,Third Party Payments,ECA,24/09/2021,06-14469,536,Lawn Park (Four Seasons)
Nottinghamshire County Council,1111/1001,Adult Social Care and Health,ASCH,Third Party Payments,ECA,24/09/2021,06-14668,160.8,Mansfield Manor Care Home
Nottinghamshire County Council,1111/1001,Adult Social Care and Health,ASCH,Third Party Payments,EGA,02/09/2021,06-10139,782.3,Autism East Midlands
Nottinghamshire County Council,1111/1001,Adult Social Care and Health,ASCH,Third Party Payments,EGA,02/09/2021,06-10140,588.92,Autism East Midlands
Nottinghamshire County Council,1111/1001,Adult Social Care and Health,ASCH,Third Party Payments,EGA,02/09/2021,06-10141,782.3,Autism East Midlands
Nottinghamshire County Council,1111/1001,Adult Social Care and Health,ASCH,Third Party Payments,EGA,02/09/2021,06-10142,782.3,Autism East Midlands
Nottinghamshire County Council,1111/1001,Adult Social Care and Health,ASCH,Third Party Payments,EGA,02/09/2021,06-10143,776.1,Autism East Midlands
Nottinghamshire County Council,1111/1001,Adult Social Care and Health,ASCH,Third Party Payments,EGA,02/09/2021,06-10144,782.25,Autism East Midlands
Nottinghamshire County Council,1111/1001,Adult Social Care and Health,ASCH,Third Party Payments,EGA,02/09/2021,06-10145,782.25,Autism East Midlands
Nottinghamshire County Council,1111/1001,Adult Social Care and Health,ASCH,Third Party Payments,EGA,02/09/2021,06-10146,627.8,Portland Residential College
Nottinghamshire County Council,1111/1001,Adult Social Care and Health,ASCH,Third Party Payments,EGA,02/09/2021,06-10147,782.25,Autism East Midlands
Nottinghamshire County Council,1111/1001,Adult Social Care and Health,ASCH,Third Party Payments,EGA,02/09/2021,06-10148,782.3,Autism East Midlands
Nottinghamshire County Council,1111/1001,Adult Social Care and Health,ASCH,Third Party Payments,EGA,02/09/2021,06-10149,542.42,Autism East Midlands
Nottinghamshire County Council,1111/1001,Adult Social Care and Health,ASCH,Third Party Payments,EGA,02/09/2021,06-10150,751.5,Autism East Midlands
Nottinghamshire County Council,1111/1001,Adult Social Care and Health,ASCH,Third Party Payments,EGA,02/09/2021,06-10151,"1,022.12",Autism East Midlands
Nottinghamshire County Council,1111/1001,Adult Social Care and Health,ASCH,Third Party Payments,EGA,02/09/2021,06-10152,570.2,Recycling Ollerton & Boughton
Nottinghamshire County Council,1111/1001,Adult Social Care and Health,ASCH,Third Party Payments,EGA,02/09/2021,06-10153,524.7,Autism East Midlands
Nottinghamshire County Council,1111/1001,Adult Social Care and Health,ASCH,Third Party Payments,EGA,02/09/2021,06-10154,524.7,Autism East Midlands
Nottinghamshire County Council,1111/1001,Adult Social Care and Health,ASCH,Third Party Payments,EGA,02/09/2021,06-10155,505.5,Autism East Midlands
Nottinghamshire County Council,1111/1001,Adult Social Care and Health,ASCH,Third Party Payments,EGA,02/09/2021,06-10156,627.8,Portland Residential College
Nottinghamshire County Council,1111/1001,Adult Social Care and Health,ASCH,Third Party Payments,EGA,02/09/2021,06-10157,782.3,Autism East Midlands
Nottinghamshire County Council,1111/1001,Adult Social Care and Health,ASCH,Third Party Payments,EGA,02/09/2021,06-10158,542.42,Autism East Midlands
Nottinghamshire County Council,1111/1001,Adult Social Care and Health,ASCH,Third Party Payments,EGA,02/09/2021,06-10159,603.9,Autism East Midlands
Nottinghamshire County Council,1111/1001,Adult Social Care and Health,ASCH,Third Party Payments,EGA,02/09/2021,06-10160,751.5,Autism East Midlands
Nottinghamshire County Council,1111/1001,Adult Social Care and Health,ASCH,Third Party Payments,EGA,02/09/2021,06-10161,813,Autism East Midlands
Nottinghamshire County Council,1111/1001,Adult Social Care and Health,ASCH,Third Party Payments,EGA,02/09/2021,06-10162,"1,125.00",Birchwood Grange (Every Sensation)
Nottinghamshire County Council,1111/1001,Adult Social Care and Health,ASCH,Third Party Payments,EGA,02/09/2021,06-10163,782.3,Autism East Midlands
Nottinghamshire County Council,1111/1001,Adult Social Care and Health,ASCH,Third Party Payments,EGA,02/09/2021,06-10164,751.5,Autism East Midlands
Nottinghamshire County Council,1111/1001,Adult Social Care and Health,ASCH,Third Party Payments,EGA,02/09/2021,06-10165,622.35,Autism East Midlands
Nottinghamshire County Council,1111/1001,Adult Social Care and Health,ASCH,Third Party Payments,EGA,02/09/2021,06-10166,782.3,Autism East Midlands
Nottinghamshire County Council,1111/1001,Adult Social Care and Health,ASCH,Third Party Payments,EGA,02/09/2021,06-10167,926,Reach Learning Disability (Day Serv
Nottinghamshire County Council,1111/1001,Adult Social Care and Health,ASCH,Third Party Payments,EGA,02/09/2021,06-10168,736.64,Autism East Midlands
Nottinghamshire County Council,1111/1001,Adult Social Care and Health,ASCH,Third Party Payments,EGA,02/09/2021,06-10169,612,LIFE CIC
Nottinghamshire County Council,1111/1001,Adult Social Care and Health,ASCH,Third Party Payments,EGA,02/09/2021,06-10170,"2,366.64",Reach Learning Disability (Day Serv
Nottinghamshire County Council,1111/1001,Adult Social Care and Health,ASCH,Third Party Payments,EGA,02/09/2021,06-10171,"1,595.30",Happy Days Groupcare Ltd
Nottinghamshire County Council,1111/1001,Adult Social Care and Health,ASCH,Third Party Payments,EGA,02/09/2021,06-10172,751.5,Autism East Midlands
Nottinghamshire County Council,1111/1001,Adult Social Care and Health,ASCH,Third Party Payments,EGA,02/09/2021,06-10173,813,Autism East Midlands
Nottinghamshire County Council,1111/1001,Adult Social Care and Health,ASCH,Third Party Payments,EGA,02/09/2021,06-10174,"1,125.00",Birchwood Grange (Every Sensation)
Nottinghamshire County Council,1111/1001,Adult Social Care and Health,ASCH,Third Party Payments,EGA,02/09/2021,06-10175,782.3,Autism East Midlands
Nottinghamshire County Council,1111/1001,Adult Social Care and Health,ASCH,Third Party Payments,EGA,02/09/2021,06-10176,751.5,Autism East Midlands
Nottinghamshire County Council,1111/1001,Adult Social Care and Health,ASCH,Third Party Payments,EGA,02/09/2021,06-10177,622.35,Autism East Midlands
Nottinghamshire County Council,1111/1001,Adult Social Care and Health,ASCH,Third Party Payments,EGA,02/09/2021,06-10178,782.3,Autism East Midlands
Nottinghamshire County Council,1111/1001,Adult Social Care and Health,ASCH,Third Party Payments,EGA,02/09/2021,06-10179,782.3,Autism East Midlands
Nottinghamshire County Council,1111/1001,Adult Social Care and Health,ASCH,Third Party Payments,EGA,02/09/2021,06-10180,782.3,Autism East Midlands
Nottinghamshire County Council,1111/1001,Adult Social Care and Health,ASCH,Third Party Payments,EGA,02/09/2021,06-10181,588.92,Autism East Midlands
Nottinghamshire County Council,1111/1001,Adult Social Care and Health,ASCH,Third Party Payments,EGA,02/09/2021,06-10182,782.3,Autism East Midlands
Nottinghamshire County Council,1111/1001,Adult Social Care and Health,ASCH,Third Party Payments,EGA,02/09/2021,06-10183,776.1,Autism East Midlands
Nottinghamshire County Council,1111/1001,Adult Social Care and Health,ASCH,Third Party Payments,EGA,02/09/2021,06-10184,782.25,Autism East Midlands
Nottinghamshire County Council,1111/1001,Adult Social Care and Health,ASCH,Third Party Payments,EGA,02/09/2021,06-10185,782.25,Autism East Midlands
Nottinghamshire County Council,1111/1001,Adult Social Care and Health,ASCH,Third Party Payments,EGA,02/09/2021,06-10186,782.25,Autism East Midlands
Nottinghamshire County Council,1111/1001,Adult Social Care and Health,ASCH,Third Party Payments,EGA,02/09/2021,06-10187,782.3,Autism East Midlands
Nottinghamshire County Council,1111/1001,Adult Social Care and Health,ASCH,Third Party Payments,EGA,02/09/2021,06-10188,542.42,Autism East Midlands
Nottinghamshire County Council,1111/1001,Adult Social Care and Health,ASCH,Third Party Payments,EGA,02/09/2021,06-10189,751.5,Autism East Midlands
Nottinghamshire County Council,1111/1001,Adult Social Care and Health,ASCH,Third Party Payments,EGA,02/09/2021,06-10190,627.8,Portland Residential College
Nottinghamshire County Council,1111/1001,Adult Social Care and Health,ASCH,Third Party Payments,EGA,02/09/2021,06-10191,"1,022.12",Autism East Midlands
Nottinghamshire County Council,1111/1001,Adult Social Care and Health,ASCH,Third Party Payments,EGA,02/09/2021,06-10192,524.7,Autism East Midlands
Nottinghamshire County Council,1111/1001,Adult Social Care and Health,ASCH,Third Party Payments,EGA,02/09/2021,06-10193,524.7,Autism East Midlands
Nottinghamshire County Council,1111/1001,Adult Social Care and Health,ASCH,Third Party Payments,EGA,02/09/2021,06-10194,570.2,Recycling Ollerton & Boughton
Nottinghamshire County Council,1111/1001,Adult Social Care and Health,ASCH,Third Party Payments,EGA,02/09/2021,06-10195,505.5,Autism East Midlands
Nottinghamshire County Council,1111/1001,Adult Social Care and Health,ASCH,Third Party Payments,EGA,02/09/2021,06-10196,627.8,Portland Residential College
Nottinghamshire County Council,1111/1001,Adult Social Care and Health,ASCH,Third Party Payments,EGA,02/09/2021,06-10197,782.3,Autism East Midlands
Nottinghamshire County Council,1111/1001,Adult Social Care and Health,ASCH,Third Party Payments,EGA,02/09/2021,06-10198,542.42,Autism East Midlands
Nottinghamshire County Council,1111/1001,Adult Social Care and Health,ASCH,Third Party Payments,EGA,02/09/2021,06-10199,603.9,Autism East Midlands
Nottinghamshire County Council,1111/1001,Adult Social Care and Health,ASCH,Third Party Payments,EGA,03/09/2021,06-10245,"1,192.00",Annesley Lodge
Nottinghamshire County Council,1111/1001,Adult Social Care and Health,ASCH,Third Party Payments,EGA,03/09/2021,06-10246,"1,132.86",Ashton Court
Nottinghamshire County Council,1111/1001,Adult Social Care and Health,ASCH,Third Party Payments,EGA,03/09/2021,06-10247,622.28,Albemarle Court
Nottinghamshire County Council,1111/1001,Adult Social Care and Health,ASCH,Third Party Payments,EGA,03/09/2021,06-10249,"11,971.68",Adams House
Nottinghamshire County Council,1111/1001,Adult Social Care and Health,ASCH,Third Party Payments,EGA,03/09/2021,06-10250,"2,360.00",Ashton Court Care Home (Mauricare)
Nottinghamshire County Council,1111/1001,Adult Social Care and Health,ASCH,Third Party Payments,EGA,03/09/2021,06-10251,"2,704.00",Ashdale Care Home (Isys)
Nottinghamshire County Council,1111/1001,Adult Social Care and Health,ASCH,Third Party Payments,EGA,03/09/2021,06-10252,"2,440.00",Aldercar Residential Home
Nottinghamshire County Council,1111/1001,Adult Social Care and Health,ASCH,Third Party Payments,EGA,03/09/2021,06-10253,"2,314.00",Ascot House Residential Home
Nottinghamshire County Council,1111/1001,Adult Social Care and Health,ASCH,Third Party Payments,EGA,03/09/2021,06-10254,"2,244.00",Annesley Lodge
Nottinghamshire County Council,1111/1001,Adult Social Care and Health,ASCH,Third Party Payments,EGA,03/09/2021,06-10255,"9,365.71",Ashlands Residential Care Home
Nottinghamshire County Council,1111/1001,Adult Social Care and Health,ASCH,Third Party Payments,EGA,03/09/2021,06-10256,"2,314.00",Ashleigh House Residential Home
Nottinghamshire County Council,1111/1001,Adult Social Care and Health,ASCH,Third Party Payments,EGA,03/09/2021,06-10257,"2,244.00",Annesley Lodge
Nottinghamshire County Council,1111/1001,Adult Social Care and Health,ASCH,Third Party Payments,EGA,03/09/2021,06-10258,"2,244.00",Annesley Lodge
Nottinghamshire County Council,1111/1001,Adult Social Care and Health,ASCH,Third Party Payments,EGA,03/09/2021,06-10259,"5,467.44",Ash Villa (MGB Care Services Ltd)
Nottinghamshire County Council,1111/1001,Adult Social Care and Health,ASCH,Third Party Payments,EGA,03/09/2021,06-10260,"7,019.40",Ash Villa (MGB Care Services Ltd)
Nottinghamshire County Council,1111/1001,Adult Social Care and Health,ASCH,Third Party Payments,EGA,03/09/2021,06-10261,"2,384.00",Ashlands Residential Care Home
Nottinghamshire County Council,1111/1001,Adult Social Care and Health,ASCH,Third Party Payments,EGA,03/09/2021,06-10262,"2,652.00",Aldercar Residential Home
Nottinghamshire County Council,1111/1001,Adult Social Care and Health,ASCH,Third Party Payments,EGA,03/09/2021,06-10263,"2,652.00",Aldercar Residential Home
Nottinghamshire County Council,1111/1001,Adult Social Care and Health,ASCH,Third Party Payments,EGA,03/09/2021,06-10264,"2,244.00",Annesley Lodge
Nottinghamshire County Council,1111/1001,Adult Social Care and Health,ASCH,Third Party Payments,EGA,03/09/2021,06-10265,"1,368.00",Ashley House Nursing Home
Nottinghamshire County Council,1111/1001,Adult Social Care and Health,ASCH,Third Party Payments,EGA,03/09/2021,06-10266,"18,015.43",Ashfield Nursing Home
Nottinghamshire County Council,1111/1001,Adult Social Care and Health,ASCH,Third Party Payments,EGA,03/09/2021,06-10267,"10,153.84",Adams House
Nottinghamshire County Council,1111/1001,Adult Social Care and Health,ASCH,Third Party Payments,EGA,03/09/2021,06-10268,"2,652.00",Aldercar Residential Home
Nottinghamshire County Council,1111/1001,Adult Social Care and Health,ASCH,Third Party Payments,EGA,03/09/2021,06-10269,"2,652.00",Aldercar Residential Home
Nottinghamshire County Council,1111/1001,Adult Social Care and Health,ASCH,Third Party Payments,EGA,03/09/2021,06-10270,"2,704.00",Ashdale Care Home (Isys)
Nottinghamshire County Council,1111/1001,Adult Social Care and Health,ASCH,Third Party Payments,EGA,03/09/2021,06-10271,"2,440.00",Aldercar Residential Home
Nottinghamshire County Council,1111/1001,Adult Social Care and Health,ASCH,Third Party Payments,EGA,03/09/2021,06-10272,"2,440.00",Aldercar Residential Home
Nottinghamshire County Council,1111/1001,Adult Social Care and Health,ASCH,Third Party Payments,EGA,03/09/2021,06-10273,"2,244.00",Annesley Lodge
Nottinghamshire County Council,1111/1001,Adult Social Care and Health,ASCH,Third Party Payments,EGA,03/09/2021,06-10274,"2,244.00",Annesley Lodge
Nottinghamshire County Council,1111/1001,Adult Social Care and Health,ASCH,Third Party Payments,EGA,03/09/2021,06-10275,"2,244.00",Annesley Lodge
Nottinghamshire County Council,1111/1001,Adult Social Care and Health,ASCH,Third Party Payments,EGA,03/09/2021,06-10276,"7,467.56",Adams House
Nottinghamshire County Council,1111/1001,Adult Social Care and Health,ASCH,Third Party Payments,EGA,03/09/2021,06-10278,"5,739.43",Ashley House Nursing Home
Nottinghamshire County Council,1111/1001,Adult Social Care and Health,ASCH,Third Party Payments,EGA,03/09/2021,06-10279,"3,176.00",Applethwaite Green Residential Home
Nottinghamshire County Council,1111/1001,Adult Social Care and Health,ASCH,Third Party Payments,EGA,03/09/2021,06-10280,"2,721.16",Ashleigh House Residential Home
Nottinghamshire County Council,1111/1001,Adult Social Care and Health,ASCH,Third Party Payments,EGA,03/09/2021,06-10281,"1,010.00",Alexandra House (Eastgate)
Nottinghamshire County Council,1111/1001,Adult Social Care and Health,ASCH,Third Party Payments,EGA,03/09/2021,06-10282,"1,358.00",Adbolton Hall Nursing Home (MPS)
Nottinghamshire County Council,1111/1001,Adult Social Care and Health,ASCH,Third Party Payments,EGA,03/09/2021,06-10283,"7,329.20",Adams House
Nottinghamshire County Council,1111/1001,Adult Social Care and Health,ASCH,Third Party Payments,EGA,03/09/2021,06-10284,"3,872.44",Ashfields Residential Home
Nottinghamshire County Council,1111/1001,Adult Social Care and Health,ASCH,Third Party Payments,EGA,03/09/2021,06-10285,"2,704.00",Ashdale Care Home (Isys)
Nottinghamshire County Council,1111/1001,Adult Social Care and Health,ASCH,Third Party Payments,EGA,03/09/2021,06-10286,"2,244.00",Annesley Lodge
Nottinghamshire County Council,1111/1001,Adult Social Care and Health,ASCH,Third Party Payments,EGA,03/09/2021,06-10287,"2,244.00",Annesley Lodge
Nottinghamshire County Council,1111/1001,Adult Social Care and Health,ASCH,Third Party Payments,EGA,03/09/2021,06-10288,"2,648.00",Ashlands Residential Care Home
Nottinghamshire County Council,1111/1001,Adult Social Care and Health,ASCH,Third Party Payments,EGA,03/09/2021,06-10289,"4,156.71",Alexandra House (Eastgate)
Nottinghamshire County Council,1111/1001,Adult Social Care and Health,ASCH,Third Party Payments,EGA,03/09/2021,06-10290,"3,126.86",Ashley House Nursing Home
Nottinghamshire County Council,1111/1001,Adult Social Care and Health,ASCH,Third Party Payments,EGA,03/09/2021,06-10291,"6,663.43",Ashfield Nursing Home
Nottinghamshire County Council,1111/1001,Adult Social Care and Health,ASCH,Third Party Payments,EGA,03/09/2021,06-10292,"4,007.14",Adbolton Hall Nursing Home (MPS)
Nottinghamshire County Council,1111/1001,Adult Social Care and Health,ASCH,Third Party Payments,EGA,03/09/2021,06-10293,"7,960.32",Adams House
Nottinghamshire County Council,1111/1001,Adult Social Care and Health,ASCH,Third Party Payments,EGA,03/09/2021,06-10294,"8,240.60",Ashfields Residential Home
Nottinghamshire County Council,1111/1001,Adult Social Care and Health,ASCH,Third Party Payments,EGA,03/09/2021,06-10295,"2,652.00",Aldercar Residential Home
Nottinghamshire County Council,1111/1001,Adult Social Care and Health,ASCH,Third Party Payments,EGA,03/09/2021,06-10296,"2,440.00",Ashdale Care Home (Isys)
Nottinghamshire County Council,1111/1001,Adult Social Care and Health,ASCH,Third Party Payments,EGA,03/09/2021,06-10297,"2,244.00",Annesley Lodge
Nottinghamshire County Council,1111/1001,Adult Social Care and Health,ASCH,Third Party Payments,EGA,03/09/2021,06-10298,"7,324.40",Ash Villa (MGB Care Services Ltd)
Nottinghamshire County Council,1111/1001,Adult Social Care and Health,ASCH,Third Party Payments,EGA,03/09/2021,06-10299,"2,462.57",Ashton Court
Nottinghamshire County Council,1111/1001,Adult Social Care and Health,ASCH,Third Party Payments,EGA,03/09/2021,06-10300,"3,402.16",Ashley Court Care Home
Nottinghamshire County Council,1111/1001,Adult Social Care and Health,ASCH,Third Party Payments,EGA,03/09/2021,06-10301,"4,191.12",Adams House
Nottinghamshire County Council,1111/1001,Adult Social Care and Health,ASCH,Third Party Payments,EGA,03/09/2021,06-10302,"1,282.00",Buddleia House Care Home
Nottinghamshire County Council,1111/1001,Adult Social Care and Health,ASCH,Third Party Payments,EGA,03/09/2021,06-10303,"2,736.00",Belvoir Vale
Nottinghamshire County Council,1111/1001,Adult Social Care and Health,ASCH,Third Party Payments,EGA,03/09/2021,06-10304,"4,339.28",Boughton Manor Nursing Homes (Prior
Nottinghamshire County Council,1111/1001,Adult Social Care and Health,ASCH,Third Party Payments,EGA,03/09/2021,06-10305,"2,314.00",Beechdale Manor Care Home
Nottinghamshire County Council,1111/1001,Adult Social Care and Health,ASCH,Third Party Payments,EGA,03/09/2021,06-10306,"2,864.32",Beech Lodge Nursing Home (Country C
Nottinghamshire County Council,1111/1001,Adult Social Care and Health,ASCH,Third Party Payments,EGA,03/09/2021,06-10307,"2,704.00",Boughton Manor Nursing Homes (Prior
Nottinghamshire County Council,1111/1001,Adult Social Care and Health,ASCH,Third Party Payments,EGA,03/09/2021,06-10308,"2,704.00",Boughton Manor Nursing Homes (Prior
Nottinghamshire County Council,1111/1001,Adult Social Care and Health,ASCH,Third Party Payments,EGA,03/09/2021,06-10309,"6,602.08",Beech Tree Hall
Nottinghamshire County Council,1111/1001,Adult Social Care and Health,ASCH,Third Party Payments,EGA,03/09/2021,06-10310,"1,204.32",Bramble Lodge (Only Care Ltd)
Nottinghamshire County Council,1111/1001,Adult Social Care and Health,ASCH,Third Party Payments,EGA,03/09/2021,06-10311,"1,122.00",The Beeches (Just Care Homes Ltd)
Nottinghamshire County Council,1111/1001,Adult Social Care and Health,ASCH,Third Party Payments,EGA,03/09/2021,06-10312,"2,384.00",Broadgate Nursing Home (Minster Car
Nottinghamshire County Council,1111/1001,Adult Social Care and Health,ASCH,Third Party Payments,EGA,03/09/2021,06-10313,"2,576.00",Blackwell Care Centre
Nottinghamshire County Council,1111/1001,Adult Social Care and Health,ASCH,Third Party Payments,EGA,03/09/2021,06-10314,"3,603.60",Boughton Manor Nursing Homes (Prior
Nottinghamshire County Council,1111/1001,Adult Social Care and Health,ASCH,Third Party Payments,EGA,03/09/2021,06-10315,"2,314.00",Beechdale Manor Care Home
Nottinghamshire County Council,1111/1001,Adult Social Care and Health,ASCH,Third Party Payments,EGA,03/09/2021,06-10316,"2,384.00",Broadlands Care Home
Nottinghamshire County Council,1111/1001,Adult Social Care and Health,ASCH,Third Party Payments,EGA,03/09/2021,06-10317,"8,747.28",Beech Tree Hall
Nottinghamshire County Council,1111/1001,Adult Social Care and Health,ASCH,Third Party Payments,EGA,03/09/2021,06-10318,"2,295.00",Beauvale N H (HC One)
Nottinghamshire County Council,1111/1001,Adult Social Care and Health,ASCH,Third Party Payments,EGA,03/09/2021,06-10319,"3,056.00",Belvoir Vale
Nottinghamshire County Council,1111/1001,Adult Social Care and Health,ASCH,Third Party Payments,EGA,03/09/2021,06-10320,"4,224.00",Boughton Manor Nursing Homes (Prior
Nottinghamshire County Council,1111/1001,Adult Social Care and Health,ASCH,Third Party Payments,EGA,03/09/2021,06-10321,"2,314.00",Beechdale Manor Care Home
Nottinghamshire County Council,1111/1001,Adult Social Care and Health,ASCH,Third Party Payments,EGA,03/09/2021,06-10322,"2,592.00",Beaumont House (Crown Care VIII Ltd
Nottinghamshire County Council,1111/1001,Adult Social Care and Health,ASCH,Third Party Payments,EGA,03/09/2021,06-10323,"2,374.76",Beaumont House (Crown Care VIII Ltd
Nottinghamshire County Council,1111/1001,Adult Social Care and Health,ASCH,Third Party Payments,EGA,03/09/2021,06-10324,"2,266.48",Beechdale House Nursing Home
Nottinghamshire County Council,1111/1001,Adult Social Care and Health,ASCH,Third Party Payments,EGA,03/09/2021,06-10325,"2,895.36",Boughton Manor Nursing Homes (Prior
Nottinghamshire County Council,1111/1001,Adult Social Care and Health,ASCH,Third Party Payments,EGA,03/09/2021,06-10326,"2,384.00",Broadlands Care Home
Nottinghamshire County Council,1111/1001,Adult Social Care and Health,ASCH,Third Party Payments,EGA,03/09/2021,06-10327,"5,568.60",Broadoak Park Residential Home
Nottinghamshire County Council,1111/1001,Adult Social Care and Health,ASCH,Third Party Payments,EGA,03/09/2021,06-10328,"6,448.40",Broadoak Park Residential Home
Nottinghamshire County Council,1111/1001,Adult Social Care and Health,ASCH,Third Party Payments,EGA,03/09/2021,06-10329,"1,742.86",Baily House
Nottinghamshire County Council,1111/1001,Adult Social Care and Health,ASCH,Third Party Payments,EGA,03/09/2021,06-10330,"1,122.00",The Beeches (Just Care Homes Ltd)
Nottinghamshire County Council,1111/1001,Adult Social Care and Health,ASCH,Third Party Payments,EGA,03/09/2021,06-10331,"2,936.00",Belvoir Vale
Nottinghamshire County Council,1111/1001,Adult Social Care and Health,ASCH,Third Party Payments,EGA,03/09/2021,06-10332,"3,271.84",Boughton Manor Nursing Homes (Prior
Nottinghamshire County Council,1111/1001,Adult Social Care and Health,ASCH,Third Party Payments,EGA,03/09/2021,06-10333,"3,903.76",Beaumont House (Crown Care VIII Ltd
Nottinghamshire County Council,1111/1001,Adult Social Care and Health,ASCH,Third Party Payments,EGA,03/09/2021,06-10334,"2,704.00",Boughton Manor Nursing Homes (Prior
Nottinghamshire County Council,1111/1001,Adult Social Care and Health,ASCH,Third Party Payments,EGA,03/09/2021,06-10335,"4,576.84",Belvoir Vale
Nottinghamshire County Council,1111/1001,Adult Social Care and Health,ASCH,Third Party Payments,EGA,03/09/2021,06-10336,"10,448.72",Beech Tree Hall
Nottinghamshire County Council,1111/1001,Adult Social Care and Health,ASCH,Third Party Payments,EGA,03/09/2021,06-10337,628,Bowbridge Court (Ideal)
Nottinghamshire County Council,1111/1001,Adult Social Care and Health,ASCH,Third Party Payments,EGA,03/09/2021,06-10338,"11,324.00",Bramwell
Nottinghamshire County Council,1111/1001,Adult Social Care and Health,ASCH,Third Party Payments,EGA,03/09/2021,06-10339,"2,730.68",Blackwell Care Centre
Nottinghamshire County Council,1111/1001,Adult Social Care and Health,ASCH,Third Party Payments,EGA,03/09/2021,06-10340,"4,400.00",Bryn Ivor Lodge Care Home (Barchest
Nottinghamshire County Council,1111/1001,Adult Social Care and Health,ASCH,Third Party Payments,EGA,03/09/2021,06-10341,"2,784.00",Beaumont House (Crown Care VIII Ltd
Nottinghamshire County Council,1111/1001,Adult Social Care and Health,ASCH,Third Party Payments,EGA,03/09/2021,06-10342,"3,300.00",Belvoir Vale
Nottinghamshire County Council,1111/1001,Adult Social Care and Health,ASCH,Third Party Payments,EGA,03/09/2021,06-10343,678,Buddleia House Care Home
Nottinghamshire County Council,1111/1001,Adult Social Care and Health,ASCH,Third Party Payments,EGA,03/09/2021,06-10344,684,Baily House
Nottinghamshire County Council,1111/1001,Adult Social Care and Health,ASCH,Third Party Payments,EGA,03/09/2021,06-10346,"1,650.00",Belvoir Vale
Nottinghamshire County Council,1111/1001,Adult Social Care and Health,ASCH,Third Party Payments,EGA,03/09/2021,06-10347,939,Baily House
Nottinghamshire County Council,1111/1001,Adult Social Care and Health,ASCH,Third Party Payments,EGA,03/09/2021,06-10348,"3,600.00",Boughton Manor Nursing Homes (Prior
Nottinghamshire County Council,1111/1001,Adult Social Care and Health,ASCH,Third Party Payments,EGA,03/09/2021,06-10349,"2,512.00",Beaumont House (Crown Care VIII Ltd
Nottinghamshire County Council,1111/1001,Adult Social Care and Health,ASCH,Third Party Payments,EGA,03/09/2021,06-10350,"2,704.00",Boughton Manor Nursing Homes (Prior
Nottinghamshire County Council,1111/1001,Adult Social Care and Health,ASCH,Third Party Payments,EGA,03/09/2021,06-10351,"7,558.80",Beech Tree Hall
Nottinghamshire County Council,1111/1001,Adult Social Care and Health,ASCH,Third Party Payments,EGA,03/09/2021,06-10352,"7,501.08",Norwood Schools Ltd
Nottinghamshire County Council,1111/1001,Adult Social Care and Health,ASCH,Third Party Payments,EGA,03/09/2021,06-10353,"1,122.00",The Beeches (Just Care Homes Ltd)
Nottinghamshire County Council,1111/1001,Adult Social Care and Health,ASCH,Third Party Payments,EGA,03/09/2021,06-10354,"5,370.60",Barham Care Centre (Optima HCI Ltd)
Nottinghamshire County Council,1111/1001,Adult Social Care and Health,ASCH,Third Party Payments,EGA,03/09/2021,06-10355,"2,868.00",Belvoir Vale
Nottinghamshire County Council,1111/1001,Adult Social Care and Health,ASCH,Third Party Payments,EGA,03/09/2021,06-10356,557.14,Belvoir Vale
Nottinghamshire County Council,1111/1001,Adult Social Care and Health,ASCH,Third Party Payments,EGA,03/09/2021,06-10357,"2,716.00",Broadway Halls Care Home
Nottinghamshire County Council,1111/1001,Adult Social Care and Health,ASCH,Third Party Payments,EGA,03/09/2021,06-10358,"2,704.00",Boughton Manor Nursing Homes (Prior
Nottinghamshire County Council,1111/1001,Adult Social Care and Health,ASCH,Third Party Payments,EGA,03/09/2021,06-10359,"2,512.00",Belvoir Vale
Nottinghamshire County Council,1111/1001,Adult Social Care and Health,ASCH,Third Party Payments,EGA,03/09/2021,06-10360,"2,384.00",Broadlands Care Home
Nottinghamshire County Council,1111/1001,Adult Social Care and Health,ASCH,Third Party Payments,EGA,03/09/2021,06-10361,"9,179.32",Broadoak Park Residential Home
Nottinghamshire County Council,1111/1001,Adult Social Care and Health,ASCH,Third Party Payments,EGA,03/09/2021,06-10362,"2,868.00",Belvoir Vale
Nottinghamshire County Council,1111/1001,Adult Social Care and Health,ASCH,Third Party Payments,EGA,03/09/2021,06-10363,"3,603.60",Boughton Manor Nursing Homes (Prior
Nottinghamshire County Council,1111/1001,Adult Social Care and Health,ASCH,Third Party Payments,EGA,03/09/2021,06-10364,"3,865.04",Boughton Manor Nursing Homes (Prior
Nottinghamshire County Council,1111/1001,Adult Social Care and Health,ASCH,Third Party Payments,EGA,03/09/2021,06-10365,"3,175.36",Boughton Manor Nursing Homes (Prior
Nottinghamshire County Council,1111/1001,Adult Social Care and Health,ASCH,Third Party Payments,EGA,03/09/2021,06-10366,"2,314.00",Beechdale Manor Care Home
Nottinghamshire County Council,1111/1001,Adult Social Care and Health,ASCH,Third Party Payments,EGA,03/09/2021,06-10367,"6,768.00",Beaumont House (Crown Care VIII Ltd
Nottinghamshire County Council,1111/1001,Adult Social Care and Health,ASCH,Third Party Payments,EGA,03/09/2021,06-10368,"2,504.00",Broadlands Care Home
Nottinghamshire County Council,1111/1001,Adult Social Care and Health,ASCH,Third Party Payments,EGA,03/09/2021,06-10369,"4,529.08",Broadoak Park Residential Home
Nottinghamshire County Council,1111/1001,Adult Social Care and Health,ASCH,Third Party Payments,EGA,03/09/2021,06-10370,"7,472.92",Norwood Schools Ltd
Nottinghamshire County Council,1111/1001,Adult Social Care and Health,ASCH,Third Party Payments,EGA,03/09/2021,06-10371,505,Churchfield Care Home(Churdhfield C
Nottinghamshire County Council,1111/1001,Adult Social Care and Health,ASCH,Third Party Payments,EGA,03/09/2021,06-10372,"6,823.29",Charnwood H (Four Seasons)
Nottinghamshire County Council,1111/1001,Adult Social Care and Health,ASCH,Third Party Payments,EGA,03/09/2021,06-10373,"4,065.44",Corner House Care Home (Sanctuary)
Nottinghamshire County Council,1111/1001,Adult Social Care and Health,ASCH,Third Party Payments,EGA,03/09/2021,06-10374,"3,851.40",Corner House Care Home (Sanctuary)
Nottinghamshire County Council,1111/1001,Adult Social Care and Health,ASCH,Third Party Payments,EGA,03/09/2021,06-10375,"3,169.96",Clayton House Residential Care Home
Nottinghamshire County Council,1111/1001,Adult Social Care and Health,ASCH,Third Party Payments,EGA,03/09/2021,06-10376,"13,871.88",Cockington House Care Home (Broadoa
Nottinghamshire County Council,1111/1001,Adult Social Care and Health,ASCH,Third Party Payments,EGA,03/09/2021,06-10377,"4,492.04",Cockington House Care Home (Broadoa
Nottinghamshire County Council,1111/1001,Adult Social Care and Health,ASCH,Third Party Payments,EGA,03/09/2021,06-10378,"1,256.00",Cherry Holt Care Home
Nottinghamshire County Council,1111/1001,Adult Social Care and Health,ASCH,Third Party Payments,EGA,03/09/2021,06-10379,"1,192.00",Clumber Court (Countrywide Care)
Nottinghamshire County Council,1111/1001,Adult Social Care and Health,ASCH,Third Party Payments,EGA,03/09/2021,06-10380,"1,884.00",Clipstone Hall & Lodge Care Home (B
Nottinghamshire County Council,1111/1001,Adult Social Care and Health,ASCH,Third Party Payments,EGA,03/09/2021,06-10381,"1,256.00",Cherry Holt Care Home
Nottinghamshire County Council,1111/1001,Adult Social Care and Health,ASCH,Third Party Payments,EGA,03/09/2021,06-10382,"1,256.00",Cherry Holt Care Home
Nottinghamshire County Council,1111/1001,Adult Social Care and Health,ASCH,Third Party Payments,EGA,03/09/2021,06-10383,"4,888.40",Corner House(Whitwell Park Care Hom
Nottinghamshire County Council,1111/1001,Adult Social Care and Health,ASCH,Third Party Payments,EGA,03/09/2021,06-10384,"3,730.08",Corner House Care Home (Sanctuary)
Nottinghamshire County Council,1111/1001,Adult Social Care and Health,ASCH,Third Party Payments,EGA,03/09/2021,06-10385,"3,360.57",Clifton View Care Home
Nottinghamshire County Council,1111/1001,Adult Social Care and Health,ASCH,Third Party Payments,EGA,03/09/2021,06-10386,"4,184.29",Charnwood H (Four Seasons)
Nottinghamshire County Council,1111/1001,Adult Social Care and Health,ASCH,Third Party Payments,EGA,03/09/2021,06-10387,"3,686.57",Carlton Care Home
Nottinghamshire County Council,1111/1001,Adult Social Care and Health,ASCH,Third Party Payments,EGA,03/09/2021,06-10388,"4,124.40",Corner House Care Home (Sanctuary)
Nottinghamshire County Council,1111/1001,Adult Social Care and Health,ASCH,Third Party Payments,EGA,03/09/2021,06-10389,"3,867.48",Corner House Care Home (Sanctuary)
Nottinghamshire County Council,1111/1001,Adult Social Care and Health,ASCH,Third Party Payments,EGA,03/09/2021,06-10390,"2,832.92",Corner House Care Home (Sanctuary)
Nottinghamshire County Council,1111/1001,Adult Social Care and Health,ASCH,Third Party Payments,EGA,03/09/2021,06-10391,"2,314.00",Clifton View Care Home
Nottinghamshire County Council,1111/1001,Adult Social Care and Health,ASCH,Third Party Payments,EGA,03/09/2021,06-10392,"8,265.24",Cockington House Care Home (Broadoa
Nottinghamshire County Council,1111/1001,Adult Social Care and Health,ASCH,Third Party Payments,EGA,03/09/2021,06-10393,"1,515.00",Churchfield Care Home(Churdhfield C
Nottinghamshire County Council,1111/1001,Adult Social Care and Health,ASCH,Third Party Payments,EGA,03/09/2021,06-10394,"11,814.04",The Chantry (Accomplish Group Ltd)
Nottinghamshire County Council,1111/1001,Adult Social Care and Health,ASCH,Third Party Payments,EGA,03/09/2021,06-10395,628,Clipstone Hall & Lodge Care Home (B
Nottinghamshire County Council,1111/1001,Adult Social Care and Health,ASCH,Third Party Payments,EGA,03/09/2021,06-10396,"2,512.00",Clipstone Hall & Lodge Care Home (B
Nottinghamshire County Council,1111/1001,Adult Social Care and Health,ASCH,Third Party Payments,EGA,03/09/2021,06-10397,"2,314.00",Carrington Care Home (Jeeves care H
Nottinghamshire County Council,1111/1001,Adult Social Care and Health,ASCH,Third Party Payments,EGA,03/09/2021,06-10398,"2,953.80",Corner House Care Home (Sanctuary)
Nottinghamshire County Council,1111/1001,Adult Social Care and Health,ASCH,Third Party Payments,EGA,03/09/2021,06-10399,"3,801.52",Corner House Care Home (Sanctuary)
Nottinghamshire County Council,1111/1001,Adult Social Care and Health,ASCH,Third Party Payments,EGA,03/09/2021,06-10400,"2,314.00",Clifton View Care Home
Nottinghamshire County Council,1111/1001,Adult Social Care and Health,ASCH,Third Party Payments,EGA,03/09/2021,06-10401,"2,514.00",Clifton View Care Home
Nottinghamshire County Council,1111/1001,Adult Social Care and Health,ASCH,Third Party Payments,EGA,03/09/2021,06-10402,"2,308.36",Chester Lodge Care Home
Nottinghamshire County Council,1111/1001,Adult Social Care and Health,ASCH,Third Party Payments,EGA,03/09/2021,06-10403,"1,803.86",Churchfield Care Home(Churdhfield C
Nottinghamshire County Council,1111/1001,Adult Social Care and Health,ASCH,Third Party Payments,EGA,03/09/2021,06-10405,"3,607.14",Churchfield Care Home(Churdhfield C
Nottinghamshire County Council,1111/1001,Adult Social Care and Health,ASCH,Third Party Payments,EGA,03/09/2021,06-10406,"38,456.00",Cherry Tree House (Lime Tree Care)
Nottinghamshire County Council,1111/1001,Adult Social Care and Health,ASCH,Third Party Payments,EGA,03/09/2021,06-10407,"16,952.00",Cherry Tree House (Lime Tree Care)
Nottinghamshire County Council,1111/1001,Adult Social Care and Health,ASCH,Third Party Payments,EGA,03/09/2021,06-10408,"4,636.32",Corner House Care Home (Sanctuary)
Nottinghamshire County Council,1111/1001,Adult Social Care and Health,ASCH,Third Party Payments,EGA,03/09/2021,06-10409,"5,170.92",Cherry Tree Cottage
Nottinghamshire County Council,1111/1001,Adult Social Care and Health,ASCH,Third Party Payments,EGA,03/09/2021,06-10410,"1,884.00",Clipstone Hall & Lodge Care Home (B
Nottinghamshire County Council,1111/1001,Adult Social Care and Health,ASCH,Third Party Payments,EGA,03/09/2021,06-10411,"5,067.36",Cherry Tree House (Lime Tree Care)
Nottinghamshire County Council,1111/1001,Adult Social Care and Health,ASCH,Third Party Payments,EGA,03/09/2021,06-10412,"3,769.44",Corner House Care Home (Sanctuary)
Nottinghamshire County Council,1111/1001,Adult Social Care and Health,ASCH,Third Party Payments,EGA,03/09/2021,06-10413,"3,861.12",Corner House Care Home (Sanctuary)
Nottinghamshire County Council,1111/1001,Adult Social Care and Health,ASCH,Third Party Payments,EGA,03/09/2021,06-10414,"7,150.00",Dovecote Lane Rehabilitation Unit(A
Nottinghamshire County Council,1111/1001,Adult Social Care and Health,ASCH,Third Party Payments,EGA,03/09/2021,06-10415,"2,548.00",Dovetail Carehome
Nottinghamshire County Council,1111/1001,Adult Social Care and Health,ASCH,Third Party Payments,EGA,03/09/2021,06-10416,"2,020.00",Eden Lodge Nursing Home
Nottinghamshire County Council,1111/1001,Adult Social Care and Health,ASCH,Third Party Payments,EGA,03/09/2021,06-10417,"2,020.00",Eden Lodge Nursing Home
Nottinghamshire County Council,1111/1001,Adult Social Care and Health,ASCH,Third Party Payments,EGA,03/09/2021,06-10418,"2,020.00",Eden Lodge Nursing Home
Nottinghamshire County Council,1111/1001,Adult Social Care and Health,ASCH,Third Party Payments,EGA,03/09/2021,06-10419,"4,792.00",The Dovecote (IBC)
Nottinghamshire County Council,1111/1001,Adult Social Care and Health,ASCH,Third Party Payments,EGA,03/09/2021,06-10420,"5,229.84",The Dovecote (IBC)
Nottinghamshire County Council,1111/1001,Adult Social Care and Health,ASCH,Third Party Payments,EGA,03/09/2021,06-10421,"3,082.32",The Dovecote (IBC)
Nottinghamshire County Council,1111/1001,Adult Social Care and Health,ASCH,Third Party Payments,EGA,03/09/2021,06-10422,"2,348.00",Doulton Court Care Home (Four Seaso
Nottinghamshire County Council,1111/1001,Adult Social Care and Health,ASCH,Third Party Payments,EGA,03/09/2021,06-10423,"3,686.57",Edingley Lodge (Highfields Care)
Nottinghamshire County Council,1111/1001,Adult Social Care and Health,ASCH,Third Party Payments,EGA,03/09/2021,06-10424,"1,132.86",Elmbank Nursing Home
Nottinghamshire County Council,1111/1001,Adult Social Care and Health,ASCH,Third Party Payments,EGA,03/09/2021,06-10425,"2,704.00",Elmbank Nursing Home
Nottinghamshire County Council,1111/1001,Adult Social Care and Health,ASCH,Third Party Payments,EGA,03/09/2021,06-10426,"2,652.00",Elmbank Nursing Home
Nottinghamshire County Council,1111/1001,Adult Social Care and Health,ASCH,Third Party Payments,EGA,03/09/2021,06-10427,"2,020.00",Eden Lodge Nursing Home
Nottinghamshire County Council,1111/1001,Adult Social Care and Health,ASCH,Third Party Payments,EGA,03/09/2021,06-10428,"2,020.00",Eden Lodge Nursing Home
Nottinghamshire County Council,1111/1001,Adult Social Care and Health,ASCH,Third Party Payments,EGA,03/09/2021,06-10429,"5,349.60",The Dovecote (IBC)
Nottinghamshire County Council,1111/1001,Adult Social Care and Health,ASCH,Third Party Payments,EGA,03/09/2021,06-10430,"2,603.00",The Dovecote (IBC)
Nottinghamshire County Council,1111/1001,Adult Social Care and Health,ASCH,Third Party Payments,EGA,03/09/2021,06-10431,"2,497.56",The Dovecote (IBC)
Nottinghamshire County Council,1111/1001,Adult Social Care and Health,ASCH,Third Party Payments,EGA,03/09/2021,06-10432,"5,142.86",Edwin House (Framework)
Nottinghamshire County Council,1111/1001,Adult Social Care and Health,ASCH,Third Party Payments,EGA,03/09/2021,06-10433,"2,020.00",Eden Lodge Nursing Home
Nottinghamshire County Council,1111/1001,Adult Social Care and Health,ASCH,Third Party Payments,EGA,03/09/2021,06-10434,"2,296.24",The Dovecote (IBC)
Nottinghamshire County Council,1111/1001,Adult Social Care and Health,ASCH,Third Party Payments,EGA,03/09/2021,06-10435,"3,895.96",The Dovecote (IBC)
Nottinghamshire County Council,1111/1001,Adult Social Care and Health,ASCH,Third Party Payments,EGA,03/09/2021,06-10436,"6,290.88",Deafway
Nottinghamshire County Council,1111/1001,Adult Social Care and Health,ASCH,Third Party Payments,EGA,03/09/2021,06-10437,"2,908.00",Elmbank Nursing Home
Nottinghamshire County Council,1111/1001,Adult Social Care and Health,ASCH,Third Party Payments,EGA,03/09/2021,06-10438,"2,020.00",Eden Lodge Nursing Home
Nottinghamshire County Council,1111/1001,Adult Social Care and Health,ASCH,Third Party Payments,EGA,03/09/2021,06-10439,"2,020.00",Eden Lodge Nursing Home
Nottinghamshire County Council,1111/1001,Adult Social Care and Health,ASCH,Third Party Payments,EGA,03/09/2021,06-10440,"2,580.44",The Dovecote (IBC)
Nottinghamshire County Council,1111/1001,Adult Social Care and Health,ASCH,Third Party Payments,EGA,03/09/2021,06-10441,"3,544.04",The Dovecote (IBC)
Nottinghamshire County Council,1111/1001,Adult Social Care and Health,ASCH,Third Party Payments,EGA,03/09/2021,06-10442,"2,296.24",The Dovecote (IBC)
Nottinghamshire County Council,1111/1001,Adult Social Care and Health,ASCH,Third Party Payments,EGA,03/09/2021,06-10443,"4,996.84",The Dovecote (IBC)
Nottinghamshire County Council,1111/1001,Adult Social Care and Health,ASCH,Third Party Payments,EGA,03/09/2021,06-10444,910,Dovetail Carehome
Nottinghamshire County Council,1111/1001,Adult Social Care and Health,ASCH,Third Party Payments,EGA,03/09/2021,06-10445,"2,704.00",Elmbank Nursing Home
Nottinghamshire County Council,1111/1001,Adult Social Care and Health,ASCH,Third Party Payments,EGA,03/09/2021,06-10446,"2,020.00",Eden Lodge Nursing Home
Nottinghamshire County Council,1111/1001,Adult Social Care and Health,ASCH,Third Party Payments,EGA,03/09/2021,06-10447,"2,364.20",The Dovecote (IBC)
Nottinghamshire County Council,1111/1001,Adult Social Care and Health,ASCH,Third Party Payments,EGA,03/09/2021,06-10448,"3,476.68",The Dovecote (IBC)
Nottinghamshire County Council,1111/1001,Adult Social Care and Health,ASCH,Third Party Payments,EGA,03/09/2021,06-10449,"2,908.00",Elmbank Nursing Home
Nottinghamshire County Council,1111/1001,Adult Social Care and Health,ASCH,Third Party Payments,EGA,03/09/2021,06-10450,"2,704.00",Elmbank Nursing Home
Nottinghamshire County Council,1111/1001,Adult Social Care and Health,ASCH,Third Party Payments,EGA,03/09/2021,06-10451,"2,020.00",Eden Lodge Nursing Home
Nottinghamshire County Council,1111/1001,Adult Social Care and Health,ASCH,Third Party Payments,EGA,03/09/2021,06-10452,"2,020.00",Eden Lodge Nursing Home
Nottinghamshire County Council,1111/1001,Adult Social Care and Health,ASCH,Third Party Payments,EGA,03/09/2021,06-10453,"3,290.56",The Dovecote (IBC)
Nottinghamshire County Council,1111/1001,Adult Social Care and Health,ASCH,Third Party Payments,EGA,03/09/2021,06-10454,"2,908.00",Elmbank Nursing Home
Nottinghamshire County Council,1111/1001,Adult Social Care and Health,ASCH,Third Party Payments,EGA,03/09/2021,06-10455,"2,020.00",Eden Lodge Nursing Home
Nottinghamshire County Council,1111/1001,Adult Social Care and Health,ASCH,Third Party Payments,EGA,03/09/2021,06-10456,"2,020.00",Eden Lodge Nursing Home
Nottinghamshire County Council,1111/1001,Adult Social Care and Health,ASCH,Third Party Payments,EGA,03/09/2021,06-10457,"2,348.00",Eliot House (MPS)
Nottinghamshire County Council,1111/1001,Adult Social Care and Health,ASCH,Third Party Payments,EGA,03/09/2021,06-10459,"2,020.00",Eden Lodge Nursing Home
Nottinghamshire County Council,1111/1001,Adult Social Care and Health,ASCH,Third Party Payments,EGA,03/09/2021,06-10460,"7,208.20",The Dovecote (IBC)
Nottinghamshire County Council,1111/1001,Adult Social Care and Health,ASCH,Third Party Payments,EGA,03/09/2021,06-10461,610,Gedling Village Care Home
Nottinghamshire County Council,1111/1001,Adult Social Care and Health,ASCH,Third Party Payments,EGA,03/09/2021,06-10462,"1,633.20",The Fieldings (Prime Life Ltd)
Nottinghamshire County Council,1111/1001,Adult Social Care and Health,ASCH,Third Party Payments,EGA,03/09/2021,06-10463,"2,384.00",Glenesk
Nottinghamshire County Council,1111/1001,Adult Social Care and Health,ASCH,Third Party Payments,EGA,03/09/2021,06-10464,"2,384.00",Glenesk
Nottinghamshire County Council,1111/1001,Adult Social Care and Health,ASCH,Third Party Payments,EGA,03/09/2021,06-10465,"2,384.00",Glenesk
Nottinghamshire County Council,1111/1001,Adult Social Care and Health,ASCH,Third Party Payments,EGA,03/09/2021,06-10466,"2,384.00",Glenesk
Nottinghamshire County Council,1111/1001,Adult Social Care and Health,ASCH,Third Party Payments,EGA,03/09/2021,06-10467,"5,511.40",Greenfields Care Home
Nottinghamshire County Council,1111/1001,Adult Social Care and Health,ASCH,Third Party Payments,EGA,03/09/2021,06-10468,"5,827.80",Greenfields Care Home
Nottinghamshire County Council,1111/1001,Adult Social Care and Health,ASCH,Third Party Payments,EGA,03/09/2021,06-10469,"5,053.24",Greenfields Care Home
Nottinghamshire County Council,1111/1001,Adult Social Care and Health,ASCH,Third Party Payments,EGA,03/09/2021,06-10470,"7,520.72",Greenfields Care Home
Nottinghamshire County Council,1111/1001,Adult Social Care and Health,ASCH,Third Party Payments,EGA,03/09/2021,06-10471,"8,514.72",Greenfields Care Home
Nottinghamshire County Council,1111/1001,Adult Social Care and Health,ASCH,Third Party Payments,EGA,03/09/2021,06-10472,"9,767.76",Freedom Care Home (Accomplish)
Nottinghamshire County Council,1111/1001,Adult Social Care and Health,ASCH,Third Party Payments,EGA,03/09/2021,06-10473,"2,000.00",Fosse Way View Care Home (Hc One)
Nottinghamshire County Council,1111/1001,Adult Social Care and Health,ASCH,Third Party Payments,EGA,03/09/2021,06-10474,"1,307.14",Greenacres Grange (Horizon Care)
Nottinghamshire County Council,1111/1001,Adult Social Care and Health,ASCH,Third Party Payments,EGA,03/09/2021,06-10475,"1,256.00",Gateford Hill(Countrywide Care)
Nottinghamshire County Council,1111/1001,Adult Social Care and Health,ASCH,Third Party Payments,EGA,03/09/2021,06-10476,"2,701.43",Falcon House Residential Home (Mins
Nottinghamshire County Council,1111/1001,Adult Social Care and Health,ASCH,Third Party Payments,EGA,03/09/2021,06-10477,548.58,Five Gables Residential Care
Nottinghamshire County Council,1111/1001,Adult Social Care and Health,ASCH,Third Party Payments,EGA,03/09/2021,06-10478,"3,824.88",Greenfields Care Home
Nottinghamshire County Council,1111/1001,Adult Social Care and Health,ASCH,Third Party Payments,EGA,03/09/2021,06-10479,"1,220.00",Falcon House Residential Home (Mins
Nottinghamshire County Council,1111/1001,Adult Social Care and Health,ASCH,Third Party Payments,EGA,03/09/2021,06-10480,"5,410.72",Greenfields Care Home
Nottinghamshire County Council,1111/1001,Adult Social Care and Health,ASCH,Third Party Payments,EGA,03/09/2021,06-10481,"6,066.12",Greenfields Care Home
Nottinghamshire County Council,1111/1001,Adult Social Care and Health,ASCH,Third Party Payments,EGA,03/09/2021,06-10482,"8,176.96",Green Gables (Valorum Care Group)
Nottinghamshire County Council,1111/1001,Adult Social Care and Health,ASCH,Third Party Payments,EGA,03/09/2021,06-10483,"12,204.12",Freedom Care Home (Accomplish)
Nottinghamshire County Council,1111/1001,Adult Social Care and Health,ASCH,Third Party Payments,EGA,03/09/2021,06-10484,936.58,Fernleaf Care Home
Nottinghamshire County Council,1111/1001,Adult Social Care and Health,ASCH,Third Party Payments,EGA,03/09/2021,06-10485,510.85,Fernleaf Care Home
Nottinghamshire County Council,1111/1001,Adult Social Care and Health,ASCH,Third Party Payments,EGA,03/09/2021,06-10486,"17,112.00",Forest Manor Care Home (ASHA)
Nottinghamshire County Council,1111/1001,Adult Social Care and Health,ASCH,Third Party Payments,EGA,03/09/2021,06-10487,"2,976.00",Forest Manor Care Home (ASHA)
Nottinghamshire County Council,1111/1001,Adult Social Care and Health,ASCH,Third Party Payments,EGA,03/09/2021,06-10488,"5,291.56",Greenfields Care Home
Nottinghamshire County Council,1111/1001,Adult Social Care and Health,ASCH,Third Party Payments,EGA,03/09/2021,06-10489,"9,154.88",Greenfields Care Home
Nottinghamshire County Council,1111/1001,Adult Social Care and Health,ASCH,Third Party Payments,EGA,03/09/2021,06-10490,"4,113.36",Greenfields Care Home
Nottinghamshire County Council,1111/1001,Adult Social Care and Health,ASCH,Third Party Payments,EGA,03/09/2021,06-10491,"9,174.84",Freedom Care Home (Accomplish)
Nottinghamshire County Council,1111/1001,Adult Social Care and Health,ASCH,Third Party Payments,EGA,03/09/2021,06-10492,"2,424.00",Glenesk
Nottinghamshire County Council,1111/1001,Adult Social Care and Health,ASCH,Third Party Payments,EGA,03/09/2021,06-10493,"1,192.00",Glenesk
Nottinghamshire County Council,1111/1001,Adult Social Care and Health,ASCH,Third Party Payments,EGA,03/09/2021,06-10494,"3,021.04",Greenfields Care Home
Nottinghamshire County Council,1111/1001,Adult Social Care and Health,ASCH,Third Party Payments,EGA,03/09/2021,06-10495,"6,855.24",Greenfields Care Home
Nottinghamshire County Council,1111/1001,Adult Social Care and Health,ASCH,Third Party Payments,EGA,03/09/2021,06-10496,"7,608.36",Greenfields Care Home
Nottinghamshire County Council,1111/1001,Adult Social Care and Health,ASCH,Third Party Payments,EGA,03/09/2021,06-10497,"13,182.00",Fosse Way View Care Home (Hc One)
Nottinghamshire County Council,1111/1001,Adult Social Care and Health,ASCH,Third Party Payments,EGA,03/09/2021,06-10498,"1,302.00",Fernleaf Care Home
Nottinghamshire County Council,1111/1001,Adult Social Care and Health,ASCH,Third Party Payments,EGA,03/09/2021,06-10499,"7,699.48",Greenfields Care Home
Nottinghamshire County Council,1111/1001,Adult Social Care and Health,ASCH,Third Party Payments,EGA,03/09/2021,06-10500,"5,172.44",Greenfields Care Home
Nottinghamshire County Council,1111/1001,Adult Social Care and Health,ASCH,Third Party Payments,EGA,03/09/2021,06-10501,"1,256.00",Gateford Hill(Countrywide Care)
Nottinghamshire County Council,1111/1001,Adult Social Care and Health,ASCH,Third Party Payments,EGA,03/09/2021,06-10502,"4,465.20",Gregory Court
Nottinghamshire County Council,1111/1001,Adult Social Care and Health,ASCH,Third Party Payments,EGA,03/09/2021,06-10503,"8,372.72",Gregory Court
Nottinghamshire County Council,1111/1001,Adult Social Care and Health,ASCH,Third Party Payments,EGA,03/09/2021,06-10504,"4,999.04",Greenfields Care Home
Nottinghamshire County Council,1111/1001,Adult Social Care and Health,ASCH,Third Party Payments,EGA,03/09/2021,06-10505,"5,201.20",Green Gables (Valorum Care Group)
Nottinghamshire County Council,1111/1001,Adult Social Care and Health,ASCH,Third Party Payments,EGA,03/09/2021,06-10506,"22,108.29",Hazel Grove NH (Milford)
Nottinghamshire County Council,1111/1001,Adult Social Care and Health,ASCH,Third Party Payments,EGA,03/09/2021,06-10507,"1,602.86",Highfields Care Home
Nottinghamshire County Council,1111/1001,Adult Social Care and Health,ASCH,Third Party Payments,EGA,03/09/2021,06-10508,"2,516.00",Hawthorne Nursing Home
Nottinghamshire County Council,1111/1001,Adult Social Care and Health,ASCH,Third Party Payments,EGA,03/09/2021,06-10509,"2,516.00",Hawthorne Nursing Home
Nottinghamshire County Council,1111/1001,Adult Social Care and Health,ASCH,Third Party Payments,EGA,03/09/2021,06-10510,"2,516.00",Highfields Care Home
Nottinghamshire County Council,1111/1001,Adult Social Care and Health,ASCH,Third Party Payments,EGA,03/09/2021,06-10511,"6,568.04",The Hollies
Nottinghamshire County Council,1111/1001,Adult Social Care and Health,ASCH,Third Party Payments,EGA,03/09/2021,06-10512,"2,516.00",Hawthorne Nursing Home
Nottinghamshire County Council,1111/1001,Adult Social Care and Health,ASCH,Third Party Payments,EGA,03/09/2021,06-10513,"2,516.00",Hawthorne Nursing Home
Nottinghamshire County Council,1111/1001,Adult Social Care and Health,ASCH,Third Party Payments,EGA,03/09/2021,06-10514,"2,244.00",Hawthorne Nursing Home
Nottinghamshire County Council,1111/1001,Adult Social Care and Health,ASCH,Third Party Payments,EGA,03/09/2021,06-10515,"2,456.00",Highfields Care Home
Nottinghamshire County Council,1111/1001,Adult Social Care and Health,ASCH,Third Party Payments,EGA,03/09/2021,06-10516,"1,112.00",Hillside Farm Care Home
Nottinghamshire County Council,1111/1001,Adult Social Care and Health,ASCH,Third Party Payments,EGA,03/09/2021,06-10517,"4,575.12",Holme Lodge (Valorum Care Ltd )
Nottinghamshire County Council,1111/1001,Adult Social Care and Health,ASCH,Third Party Payments,EGA,03/09/2021,06-10518,"2,516.00",Hawthorne Nursing Home
Nottinghamshire County Council,1111/1001,Adult Social Care and Health,ASCH,Third Party Payments,EGA,03/09/2021,06-10519,"2,512.00",Hillside Farm Care Home
Nottinghamshire County Council,1111/1001,Adult Social Care and Health,ASCH,Third Party Payments,EGA,03/09/2021,06-10520,"1,693.32",Hollybank Nursing Home
Nottinghamshire County Council,1111/1001,Adult Social Care and Health,ASCH,Third Party Payments,EGA,03/09/2021,06-10521,"6,581.32",Heathfield Gardens (Potensial)
Nottinghamshire County Council,1111/1001,Adult Social Care and Health,ASCH,Third Party Payments,EGA,03/09/2021,06-10522,"6,000.00",Holme Lodge (Valorum Care Ltd )
Nottinghamshire County Council,1111/1001,Adult Social Care and Health,ASCH,Third Party Payments,EGA,03/09/2021,06-10523,"4,267.64",Holme Lodge (Valorum Care Ltd )
Nottinghamshire County Council,1111/1001,Adult Social Care and Health,ASCH,Third Party Payments,EGA,03/09/2021,06-10524,"3,659.76",Hatzfeld House Care Home
Nottinghamshire County Council,1111/1001,Adult Social Care and Health,ASCH,Third Party Payments,EGA,03/09/2021,06-10525,"2,384.00",Haywood Oaks Care Home
Nottinghamshire County Council,1111/1001,Adult Social Care and Health,ASCH,Third Party Payments,EGA,03/09/2021,06-10526,"7,257.24",The Hollies
Nottinghamshire County Council,1111/1001,Adult Social Care and Health,ASCH,Third Party Payments,EGA,03/09/2021,06-10527,"4,519.76",Holme Lodge (Valorum Care Ltd )
Nottinghamshire County Council,1111/1001,Adult Social Care and Health,ASCH,Third Party Payments,EGA,03/09/2021,06-10528,"2,244.00",Hawthorne Nursing Home
Nottinghamshire County Council,1111/1001,Adult Social Care and Health,ASCH,Third Party Payments,EGA,03/09/2021,06-10529,"2,590.72",Hawthorne Nursing Home
Nottinghamshire County Council,1111/1001,Adult Social Care and Health,ASCH,Third Party Payments,EGA,03/09/2021,06-10530,"3,314.48",Heathfield Gardens (Potensial)
Nottinghamshire County Council,1111/1001,Adult Social Care and Health,ASCH,Third Party Payments,EGA,03/09/2021,06-10531,"2,985.71",Hatzfeld House Care Home
Nottinghamshire County Council,1111/1001,Adult Social Care and Health,ASCH,Third Party Payments,EGA,03/09/2021,06-10532,"2,384.00",Haywood Oaks Care Home
Nottinghamshire County Council,1111/1001,Adult Social Care and Health,ASCH,Third Party Payments,EGA,03/09/2021,06-10533,"2,384.00",Haywood Oaks Care Home
Nottinghamshire County Council,1111/1001,Adult Social Care and Health,ASCH,Third Party Payments,EGA,03/09/2021,06-10534,"2,384.00",Haywood Oaks Care Home
Nottinghamshire County Council,1111/1001,Adult Social Care and Health,ASCH,Third Party Payments,EGA,03/09/2021,06-10535,"3,990.00",Holme Lodge (Valorum Care Ltd )
Nottinghamshire County Council,1111/1001,Adult Social Care and Health,ASCH,Third Party Payments,EGA,03/09/2021,06-10536,"3,701.48",Holme Lodge (Valorum Care Ltd )
Nottinghamshire County Council,1111/1001,Adult Social Care and Health,ASCH,Third Party Payments,EGA,03/09/2021,06-10537,"2,516.00",Hawthorne Nursing Home
Nottinghamshire County Council,1111/1001,Adult Social Care and Health,ASCH,Third Party Payments,EGA,03/09/2021,06-10538,"2,516.00",Hawthorne Nursing Home
Nottinghamshire County Council,1111/1001,Adult Social Care and Health,ASCH,Third Party Payments,EGA,03/09/2021,06-10539,"2,244.00",Hawthorne Nursing Home
Nottinghamshire County Council,1111/1001,Adult Social Care and Health,ASCH,Third Party Payments,EGA,03/09/2021,06-10540,"2,456.00",Highfields Care Home
Nottinghamshire County Council,1111/1001,Adult Social Care and Health,ASCH,Third Party Payments,EGA,03/09/2021,06-10541,"2,314.00",Highfields Care Home
Nottinghamshire County Council,1111/1001,Adult Social Care and Health,ASCH,Third Party Payments,EGA,03/09/2021,06-10542,"2,384.00",Haywood Oaks Care Home
Nottinghamshire County Council,1111/1001,Adult Social Care and Health,ASCH,Third Party Payments,EGA,03/09/2021,06-10543,"5,197.60",Hill House Care Home
Nottinghamshire County Council,1111/1001,Adult Social Care and Health,ASCH,Third Party Payments,EGA,03/09/2021,06-10544,"9,309.80",Hillside House (United Health)
Nottinghamshire County Council,1111/1001,Adult Social Care and Health,ASCH,Third Party Payments,EGA,03/09/2021,06-10545,"2,314.00",Hall Park Care Home
Nottinghamshire County Council,1111/1001,Adult Social Care and Health,ASCH,Third Party Payments,EGA,03/09/2021,06-10546,"4,500.40",Holme Lodge (Valorum Care Ltd )
Nottinghamshire County Council,1111/1001,Adult Social Care and Health,ASCH,Third Party Payments,EGA,03/09/2021,06-10547,"2,850.48",Holme Lodge (Valorum Care Ltd )
Nottinghamshire County Council,1111/1001,Adult Social Care and Health,ASCH,Third Party Payments,EGA,03/09/2021,06-10548,875,Hillside House (United Health)
Nottinghamshire County Council,1111/1001,Adult Social Care and Health,ASCH,Third Party Payments,EGA,03/09/2021,06-10549,"2,614.00",Hall Park Care Home
Nottinghamshire County Council,1111/1001,Adult Social Care and Health,ASCH,Third Party Payments,EGA,03/09/2021,06-10550,"2,384.00",Haywood Oaks Care Home
Nottinghamshire County Council,1111/1001,Adult Social Care and Health,ASCH,Third Party Payments,EGA,03/09/2021,06-10551,"7,809.56",The Hollies
Nottinghamshire County Council,1111/1001,Adult Social Care and Health,ASCH,Third Party Payments,EGA,03/09/2021,06-10552,"4,351.56",Holme Lodge (Valorum Care Ltd )
Nottinghamshire County Council,1111/1001,Adult Social Care and Health,ASCH,Third Party Payments,EGA,03/09/2021,06-10553,"3,022.60",Hazelwood Gardens Care Ltd
Nottinghamshire County Council,1111/1001,Adult Social Care and Health,ASCH,Third Party Payments,EGA,03/09/2021,06-10554,696,Lawn Park (Four Seasons)
Nottinghamshire County Council,1111/1001,Adult Social Care and Health,ASCH,Third Party Payments,EGA,03/09/2021,06-10556,"13,155.76",Levitt Mill (Craegmoor)
Nottinghamshire County Council,1111/1001,Adult Social Care and Health,ASCH,Third Party Payments,EGA,03/09/2021,06-10557,"2,452.00",Lancaster Grange Newark
Nottinghamshire County Council,1111/1001,Adult Social Care and Health,ASCH,Third Party Payments,EGA,03/09/2021,06-10558,628,Lawn Park (Four Seasons)
Nottinghamshire County Council,1111/1001,Adult Social Care and Health,ASCH,Third Party Payments,EGA,03/09/2021,06-10559,"2,512.00",Lawn Park (Four Seasons)
Nottinghamshire County Council,1111/1001,Adult Social Care and Health,ASCH,Third Party Payments,EGA,03/09/2021,06-10560,"22,994.40",Landermeads Nursing Home
Nottinghamshire County Council,1111/1001,Adult Social Care and Health,ASCH,Third Party Payments,EGA,03/09/2021,06-10564,"2,402.68",Long Meadow Care Home (Roseberry Ca
Nottinghamshire County Council,1111/1001,Adult Social Care and Health,ASCH,Third Party Payments,EGA,03/09/2021,06-10565,"13,337.72",Longley Park
Nottinghamshire County Council,1111/1001,Adult Social Care and Health,ASCH,Third Party Payments,EGA,03/09/2021,06-10566,"14,591.20",Longley Park
Nottinghamshire County Council,1111/1001,Adult Social Care and Health,ASCH,Third Party Payments,EGA,03/09/2021,06-10567,"2,440.00",Lancaster Grange Newark
Nottinghamshire County Council,1111/1001,Adult Social Care and Health,ASCH,Third Party Payments,EGA,03/09/2021,06-10568,"2,402.68",Kilburn Care Centre (Kilburn Care L
Nottinghamshire County Council,1111/1001,Adult Social Care and Health,ASCH,Third Party Payments,EGA,03/09/2021,06-10569,"1,192.00",Lound Hall Nursing Home (MPS)
Nottinghamshire County Council,1111/1001,Adult Social Care and Health,ASCH,Third Party Payments,EGA,03/09/2021,06-10570,"3,409.14",Jubilee Court (Runwood)
Nottinghamshire County Council,1111/1001,Adult Social Care and Health,ASCH,Third Party Payments,EGA,03/09/2021,06-10571,"4,052.00",Lowmoor Nursing Home
Nottinghamshire County Council,1111/1001,Adult Social Care and Health,ASCH,Third Party Payments,EGA,03/09/2021,06-10572,"13,626.28",Longley Park
Nottinghamshire County Council,1111/1001,Adult Social Care and Health,ASCH,Third Party Payments,EGA,03/09/2021,06-10574,520,Leawood Manor (Runwood)
Nottinghamshire County Council,1111/1001,Adult Social Care and Health,ASCH,Third Party Payments,EGA,03/09/2021,06-10576,"1,062.29",Jubilee Court (Runwood)
Nottinghamshire County Council,1111/1001,Adult Social Care and Health,ASCH,Third Party Payments,EGA,03/09/2021,06-10579,"6,536.40",Lester Court (Accomplish)
Nottinghamshire County Council,1111/1001,Adult Social Care and Health,ASCH,Third Party Payments,EGA,03/09/2021,06-10580,"4,421.56",Knebworth Care Home (Care UK)
Nottinghamshire County Council,1111/1001,Adult Social Care and Health,ASCH,Third Party Payments,EGA,03/09/2021,06-10581,"11,265.64",Larwood House T/A Potens
Nottinghamshire County Council,1111/1001,Adult Social Care and Health,ASCH,Third Party Payments,EGA,03/09/2021,06-10582,"2,928.32",Langdale Lodge Ltd
Nottinghamshire County Council,1111/1001,Adult Social Care and Health,ASCH,Third Party Payments,EGA,03/09/2021,06-10583,"8,891.12",Lodge Farm
Nottinghamshire County Council,1111/1001,Adult Social Care and Health,ASCH,Third Party Payments,EGA,03/09/2021,06-10584,"4,704.00",Lancaster Grange Newark
Nottinghamshire County Council,1111/1001,Adult Social Care and Health,ASCH,Third Party Payments,EGA,03/09/2021,06-10585,"2,512.00",Lawn Park (Four Seasons)
Nottinghamshire County Council,1111/1001,Adult Social Care and Health,ASCH,Third Party Payments,EGA,03/09/2021,06-10586,"1,220.00",Nottingham Care Village Ltd
Nottinghamshire County Council,1111/1001,Adult Social Care and Health,ASCH,Third Party Payments,EGA,03/09/2021,06-10587,"2,244.00",Nightingale Nursing & Care Home
Nottinghamshire County Council,1111/1001,Adult Social Care and Health,ASCH,Third Party Payments,EGA,03/09/2021,06-10588,"6,010.86",The Manor Residential Home (Arnold)
Nottinghamshire County Council,1111/1001,Adult Social Care and Health,ASCH,Third Party Payments,EGA,03/09/2021,06-10589,"2,516.00",Millington Spring Care Centre Ltd
Nottinghamshire County Council,1111/1001,Adult Social Care and Health,ASCH,Third Party Payments,EGA,03/09/2021,06-10590,"3,148.00",Newton House Nursing Home
Nottinghamshire County Council,1111/1001,Adult Social Care and Health,ASCH,Third Party Payments,EGA,03/09/2021,06-10591,"2,516.00",Nightingale Nursing & Care Home
Nottinghamshire County Council,1111/1001,Adult Social Care and Health,ASCH,Third Party Payments,EGA,03/09/2021,06-10592,"2,516.00",Nightingale Nursing & Care Home
Nottinghamshire County Council,1111/1001,Adult Social Care and Health,ASCH,Third Party Payments,EGA,03/09/2021,06-10593,"2,244.00",Nightingale Nursing & Care Home
Nottinghamshire County Council,1111/1001,Adult Social Care and Health,ASCH,Third Party Payments,EGA,03/09/2021,06-10594,"3,558.32",Newland Hurst
Nottinghamshire County Council,1111/1001,Adult Social Care and Health,ASCH,Third Party Payments,EGA,03/09/2021,06-10595,"4,043.73",McMorrow House Care Home(Hegarty Ca
Nottinghamshire County Council,1111/1001,Adult Social Care and Health,ASCH,Third Party Payments,EGA,03/09/2021,06-10596,"1,220.00",Nottingham Care Village Ltd
Nottinghamshire County Council,1111/1001,Adult Social Care and Health,ASCH,Third Party Payments,EGA,03/09/2021,06-10597,"6,090.86",Nightingale Nursing & Care Home
Nottinghamshire County Council,1111/1001,Adult Social Care and Health,ASCH,Third Party Payments,EGA,03/09/2021,06-10598,"16,266.20",Manswick Care Home(Rhodsac Comm Liv
Nottinghamshire County Council,1111/1001,Adult Social Care and Health,ASCH,Third Party Payments,EGA,03/09/2021,06-10599,"2,244.00",Nightingale Nursing & Care Home
Nottinghamshire County Council,1111/1001,Adult Social Care and Health,ASCH,Third Party Payments,EGA,03/09/2021,06-10600,"6,648.56",Manswick Care Home(Rhodsac Comm Liv
Nottinghamshire County Council,1111/1001,Adult Social Care and Health,ASCH,Third Party Payments,EGA,03/09/2021,06-10601,"2,516.00",Nightingale Nursing & Care Home
Nottinghamshire County Council,1111/1001,Adult Social Care and Health,ASCH,Third Party Payments,EGA,03/09/2021,06-10602,"2,516.00",Nightingale Nursing & Care Home
Nottinghamshire County Council,1111/1001,Adult Social Care and Health,ASCH,Third Party Payments,EGA,03/09/2021,06-10603,"2,244.00",Nightingale Nursing & Care Home
Nottinghamshire County Council,1111/1001,Adult Social Care and Health,ASCH,Third Party Payments,EGA,03/09/2021,06-10604,"1,192.00",Meadow Lodge (Beeston)
Nottinghamshire County Council,1111/1001,Adult Social Care and Health,ASCH,Third Party Payments,EGA,03/09/2021,06-10605,"3,498.86",Magnolia House Care Home & Haigh He
Nottinghamshire County Council,1111/1001,Adult Social Care and Health,ASCH,Third Party Payments,EGA,03/09/2021,06-10606,"2,244.00",Nightingale Nursing & Care Home
Nottinghamshire County Council,1111/1001,Adult Social Care and Health,ASCH,Third Party Payments,EGA,03/09/2021,06-10607,641.14,Nightingale Nursing & Care Home
Nottinghamshire County Council,1111/1001,Adult Social Care and Health,ASCH,Third Party Payments,EGA,03/09/2021,06-10610,"4,342.86",Ashlands Road (NCHA)
Nottinghamshire County Council,1111/1001,Adult Social Care and Health,ASCH,Third Party Payments,EGA,03/09/2021,06-10611,"2,244.00",Millington Spring Care Centre Ltd
Nottinghamshire County Council,1111/1001,Adult Social Care and Health,ASCH,Third Party Payments,EGA,03/09/2021,06-10612,"2,516.00",Millington Spring Care Centre Ltd
Nottinghamshire County Council,1111/1001,Adult Social Care and Health,ASCH,Third Party Payments,EGA,03/09/2021,06-10613,"2,244.00",Nightingale Nursing & Care Home
Nottinghamshire County Council,1111/1001,Adult Social Care and Health,ASCH,Third Party Payments,EGA,03/09/2021,06-10614,"2,244.00",Nightingale Nursing & Care Home
Nottinghamshire County Council,1111/1001,Adult Social Care and Health,ASCH,Third Party Payments,EGA,03/09/2021,06-10615,"6,710.00",Maun View (Runwood)
Nottinghamshire County Council,1111/1001,Adult Social Care and Health,ASCH,Third Party Payments,EGA,03/09/2021,06-10616,"2,244.00",Millington Spring Care Centre Ltd
Nottinghamshire County Council,1111/1001,Adult Social Care and Health,ASCH,Third Party Payments,EGA,03/09/2021,06-10617,"2,016.00",Moorgate Hollow Care Home
Nottinghamshire County Council,1111/1001,Adult Social Care and Health,ASCH,Third Party Payments,EGA,03/09/2021,06-10618,"2,244.00",Millington Spring Care Centre Ltd
Nottinghamshire County Council,1111/1001,Adult Social Care and Health,ASCH,Third Party Payments,EGA,03/09/2021,06-10619,"2,516.00",Millington Spring Care Centre Ltd
Nottinghamshire County Council,1111/1001,Adult Social Care and Health,ASCH,Third Party Payments,EGA,03/09/2021,06-10620,"2,516.00",Millington Spring Care Centre Ltd
Nottinghamshire County Council,1111/1001,Adult Social Care and Health,ASCH,Third Party Payments,EGA,03/09/2021,06-10621,718.86,Millington Spring Care Centre Ltd
Nottinghamshire County Council,1111/1001,Adult Social Care and Health,ASCH,Third Party Payments,EGA,03/09/2021,06-10622,"3,119.28",Joseph Cox Charity
Nottinghamshire County Council,1111/1001,Adult Social Care and Health,ASCH,Third Party Payments,EGA,03/09/2021,06-10623,"2,244.00",Nightingale Nursing & Care Home
Nottinghamshire County Council,1111/1001,Adult Social Care and Health,ASCH,Third Party Payments,EGA,03/09/2021,06-10624,"2,244.00",Nightingale Nursing & Care Home
Nottinghamshire County Council,1111/1001,Adult Social Care and Health,ASCH,Third Party Payments,EGA,03/09/2021,06-10625,"4,720.68",Oak Lodge (Linkage)
Nottinghamshire County Council,1111/1001,Adult Social Care and Health,ASCH,Third Party Payments,EGA,03/09/2021,06-10626,"2,384.00",Old Vicarage (Worksop)(Mauricare Lt
Nottinghamshire County Council,1111/1001,Adult Social Care and Health,ASCH,Third Party Payments,EGA,03/09/2021,06-10627,"2,384.00",Old Vicarage (Worksop)(Mauricare Lt
Nottinghamshire County Council,1111/1001,Adult Social Care and Health,ASCH,Third Party Payments,EGA,03/09/2021,06-10628,"4,462.71",Park House Nursing Home (Eastgate)
Nottinghamshire County Council,1111/1001,Adult Social Care and Health,ASCH,Third Party Payments,EGA,03/09/2021,06-10629,"2,874.60",Oliver House Kirk Hallam Ltd
Nottinghamshire County Council,1111/1001,Adult Social Care and Health,ASCH,Third Party Payments,EGA,03/09/2021,06-10630,"2,384.00",Old Vicarage (Worksop)(Mauricare Lt
Nottinghamshire County Council,1111/1001,Adult Social Care and Health,ASCH,Third Party Payments,EGA,03/09/2021,06-10631,"6,000.00",Pathfinders Neurological Care Centr
Nottinghamshire County Council,1111/1001,Adult Social Care and Health,ASCH,Third Party Payments,EGA,03/09/2021,06-10632,"2,402.68",Oaklands Care Centre (Halcyon)
Nottinghamshire County Council,1111/1001,Adult Social Care and Health,ASCH,Third Party Payments,EGA,03/09/2021,06-10633,"2,562.68",Oliver House Kirk Hallam Ltd
Nottinghamshire County Council,1111/1001,Adult Social Care and Health,ASCH,Third Party Payments,EGA,03/09/2021,06-10634,"2,384.00",Old Vicarage (Worksop)(Mauricare Lt
Nottinghamshire County Council,1111/1001,Adult Social Care and Health,ASCH,Third Party Payments,EGA,03/09/2021,06-10635,"2,384.00",Old Vicarage (Worksop)(Mauricare Lt
Nottinghamshire County Council,1111/1001,Adult Social Care and Health,ASCH,Third Party Payments,EGA,03/09/2021,06-10636,"11,789.16",Portland Residential College
Nottinghamshire County Council,1111/1001,Adult Social Care and Health,ASCH,Third Party Payments,EGA,03/09/2021,06-10637,"44,510.59",Old Vicarage (Ollerton) (Creative)
Nottinghamshire County Council,1111/1001,Adult Social Care and Health,ASCH,Third Party Payments,EGA,03/09/2021,06-10638,720,Portland Residential College
Nottinghamshire County Council,1111/1001,Adult Social Care and Health,ASCH,Third Party Payments,EGA,03/09/2021,06-10639,"1,440.00",Portland Residential College
Nottinghamshire County Council,1111/1001,Adult Social Care and Health,ASCH,Third Party Payments,EGA,03/09/2021,06-10640,"2,384.00",Old Vicarage (Worksop)(Mauricare Lt
Nottinghamshire County Council,1111/1001,Adult Social Care and Health,ASCH,Third Party Payments,EGA,03/09/2021,06-10641,"2,384.00",Old Vicarage (Worksop)(Mauricare Lt
Nottinghamshire County Council,1111/1001,Adult Social Care and Health,ASCH,Third Party Payments,EGA,03/09/2021,06-10642,"2,384.00",Old Vicarage (Worksop)(Mauricare Lt
Nottinghamshire County Council,1111/1001,Adult Social Care and Health,ASCH,Third Party Payments,EGA,03/09/2021,06-10643,"1,050.00",Portland Residential College
Nottinghamshire County Council,1111/1001,Adult Social Care and Health,ASCH,Third Party Payments,EGA,03/09/2021,06-10644,"2,384.00",Old Vicarage (Worksop)(Mauricare Lt
Nottinghamshire County Council,1111/1001,Adult Social Care and Health,ASCH,Third Party Payments,EGA,03/09/2021,06-10645,"2,384.00",Old Vicarage (Worksop)(Mauricare Lt
Nottinghamshire County Council,1111/1001,Adult Social Care and Health,ASCH,Third Party Payments,EGA,03/09/2021,06-10646,"1,368.00",Orchard House
Nottinghamshire County Council,1111/1001,Adult Social Care and Health,ASCH,Third Party Payments,EGA,03/09/2021,06-10647,"2,160.00",Portland Residential College
Nottinghamshire County Council,1111/1001,Adult Social Care and Health,ASCH,Third Party Payments,EGA,03/09/2021,06-10648,660,Portland Residential College
Nottinghamshire County Council,1111/1001,Adult Social Care and Health,ASCH,Third Party Payments,EGA,03/09/2021,06-10649,"2,516.12",Oaklands Care Centre (Halcyon)
Nottinghamshire County Council,1111/1001,Adult Social Care and Health,ASCH,Third Party Payments,EGA,03/09/2021,06-10650,660,Portland Residential College
Nottinghamshire County Council,1111/1001,Adult Social Care and Health,ASCH,Third Party Payments,EGA,03/09/2021,06-10651,"2,384.00",Old Vicarage (Worksop)(Mauricare Lt
Nottinghamshire County Council,1111/1001,Adult Social Care and Health,ASCH,Third Party Payments,EGA,03/09/2021,06-10652,"1,440.00",Portland Residential College
Nottinghamshire County Council,1111/1001,Adult Social Care and Health,ASCH,Third Party Payments,EGA,03/09/2021,06-10654,"55,028.57",Pathfinders Neurological Care Centr
Nottinghamshire County Council,1111/1001,Adult Social Care and Health,ASCH,Third Party Payments,EGA,03/09/2021,06-10655,"12,899.20",Pathfinders Neurological Care Centr
Nottinghamshire County Council,1111/1001,Adult Social Care and Health,ASCH,Third Party Payments,EGA,03/09/2021,06-10656,"2,244.00",The Rookery
Nottinghamshire County Council,1111/1001,Adult Social Care and Health,ASCH,Third Party Payments,EGA,03/09/2021,06-10657,"1,220.00",Red Rose N H (Red Homes)
Nottinghamshire County Council,1111/1001,Adult Social Care and Health,ASCH,Third Party Payments,EGA,03/09/2021,06-10658,"6,146.72","""[Redacted]"""
Nottinghamshire County Council,1111/1001,Adult Social Care and Health,ASCH,Third Party Payments,EGA,03/09/2021,06-10659,"1,192.00",Rose Farm Care Home (RS Care Homes
Nottinghamshire County Council,1111/1001,Adult Social Care and Health,ASCH,Third Party Payments,EGA,03/09/2021,06-10660,"2,244.00",The Rookery
Nottinghamshire County Council,1111/1001,Adult Social Care and Health,ASCH,Third Party Payments,EGA,03/09/2021,06-10661,"2,244.00",The Rookery
Nottinghamshire County Council,1111/1001,Adult Social Care and Health,ASCH,Third Party Payments,EGA,03/09/2021,06-10662,"1,220.00",Red Rose N H (Red Homes)
Nottinghamshire County Council,1111/1001,Adult Social Care and Health,ASCH,Third Party Payments,EGA,03/09/2021,06-10663,"2,512.00",Richmond Residential Home (Rosecare
Nottinghamshire County Council,1111/1001,Adult Social Care and Health,ASCH,Third Party Payments,EGA,03/09/2021,06-10664,"10,046.86",Red Oaks Care Home Ltd
Nottinghamshire County Council,1111/1001,Adult Social Care and Health,ASCH,Third Party Payments,EGA,03/09/2021,06-10665,"9,100.32",Ridgeway House (Choice Ltd)
Nottinghamshire County Council,1111/1001,Adult Social Care and Health,ASCH,Third Party Payments,EGA,03/09/2021,06-10666,"2,234.36",The Rookery
Nottinghamshire County Council,1111/1001,Adult Social Care and Health,ASCH,Third Party Payments,EGA,03/09/2021,06-10667,"2,244.00",The Rookery
Nottinghamshire County Council,1111/1001,Adult Social Care and Health,ASCH,Third Party Payments,EGA,03/09/2021,06-10668,"2,384.00",Red Oaks Care Home Ltd
Nottinghamshire County Council,1111/1001,Adult Social Care and Health,ASCH,Third Party Payments,EGA,03/09/2021,06-10669,"2,043.12",Randolph House Carehome (Knightscar
Nottinghamshire County Council,1111/1001,Adult Social Care and Health,ASCH,Third Party Payments,EGA,03/09/2021,06-10670,"2,244.00",The Rookery
Nottinghamshire County Council,1111/1001,Adult Social Care and Health,ASCH,Third Party Payments,EGA,03/09/2021,06-10671,"2,244.00",The Rookery
Nottinghamshire County Council,1111/1001,Adult Social Care and Health,ASCH,Third Party Payments,EGA,03/09/2021,06-10672,"2,244.00",The Rookery
Nottinghamshire County Council,1111/1001,Adult Social Care and Health,ASCH,Third Party Payments,EGA,03/09/2021,06-10673,"9,536.00",Red Oaks Care Home Ltd
Nottinghamshire County Council,1111/1001,Adult Social Care and Health,ASCH,Third Party Payments,EGA,03/09/2021,06-10674,"1,560.00",Radcliffe Manor House
Nottinghamshire County Council,1111/1001,Adult Social Care and Health,ASCH,Third Party Payments,EGA,03/09/2021,06-10675,"1,220.00",Red Rose N H (Red Homes)
Nottinghamshire County Council,1111/1001,Adult Social Care and Health,ASCH,Third Party Payments,EGA,03/09/2021,06-10676,"2,512.00",South Moor Lodge
Nottinghamshire County Council,1111/1001,Adult Social Care and Health,ASCH,Third Party Payments,EGA,03/09/2021,06-10677,"2,720.00",South Moor Lodge
Nottinghamshire County Council,1111/1001,Adult Social Care and Health,ASCH,Third Party Payments,EGA,03/09/2021,06-10678,"2,512.00",South Moor Lodge
Nottinghamshire County Council,1111/1001,Adult Social Care and Health,ASCH,Third Party Payments,EGA,03/09/2021,06-10679,"1,256.00",South Moor Lodge
Nottinghamshire County Council,1111/1001,Adult Social Care and Health,ASCH,Third Party Payments,EGA,03/09/2021,06-10680,"1,256.00",South Moor Lodge
Nottinghamshire County Council,1111/1001,Adult Social Care and Health,ASCH,Third Party Payments,EGA,03/09/2021,06-10681,"1,192.00",Spring Water Lod (HC One)
Nottinghamshire County Council,1111/1001,Adult Social Care and Health,ASCH,Third Party Payments,EGA,03/09/2021,06-10682,"2,440.00",Shortwood House Rest Home
Nottinghamshire County Council,1111/1001,Adult Social Care and Health,ASCH,Third Party Payments,EGA,03/09/2021,06-10683,"2,512.00",South Moor Lodge
Nottinghamshire County Council,1111/1001,Adult Social Care and Health,ASCH,Third Party Payments,EGA,03/09/2021,06-10684,"2,512.00",South Moor Lodge
Nottinghamshire County Council,1111/1001,Adult Social Care and Health,ASCH,Third Party Payments,EGA,03/09/2021,06-10685,"1,256.00",South Moor Lodge
Nottinghamshire County Council,1111/1001,Adult Social Care and Health,ASCH,Third Party Payments,EGA,03/09/2021,06-10686,"3,877.43",Silverwood Care H (HC One)
Nottinghamshire County Council,1111/1001,Adult Social Care and Health,ASCH,Third Party Payments,EGA,03/09/2021,06-10687,"2,440.00",Shortwood House Rest Home
Nottinghamshire County Council,1111/1001,Adult Social Care and Health,ASCH,Third Party Payments,EGA,03/09/2021,06-10688,"2,512.00",South Moor Lodge
Nottinghamshire County Council,1111/1001,Adult Social Care and Health,ASCH,Third Party Payments,EGA,03/09/2021,06-10689,"2,512.00",South Moor Lodge
Nottinghamshire County Council,1111/1001,Adult Social Care and Health,ASCH,Third Party Payments,EGA,03/09/2021,06-10690,930.96,South Moor Lodge
Nottinghamshire County Council,1111/1001,Adult Social Care and Health,ASCH,Third Party Payments,EGA,03/09/2021,06-10691,"2,384.00",Spring Water Lod (HC One)
Nottinghamshire County Council,1111/1001,Adult Social Care and Health,ASCH,Third Party Payments,EGA,03/09/2021,06-10692,"2,440.00",Shortwood House Rest Home
Nottinghamshire County Council,1111/1001,Adult Social Care and Health,ASCH,Third Party Payments,EGA,03/09/2021,06-10693,"2,512.00",South Moor Lodge
Nottinghamshire County Council,1111/1001,Adult Social Care and Health,ASCH,Third Party Payments,EGA,03/09/2021,06-10694,"7,644.32",Sandpiper (Accomplish Group Care Lt
Nottinghamshire County Council,1111/1001,Adult Social Care and Health,ASCH,Third Party Payments,EGA,03/09/2021,06-10695,"2,440.00",Shortwood House Rest Home
Nottinghamshire County Council,1111/1001,Adult Social Care and Health,ASCH,Third Party Payments,EGA,03/09/2021,06-10696,"2,512.00",South Moor Lodge
Nottinghamshire County Council,1111/1001,Adult Social Care and Health,ASCH,Third Party Payments,EGA,03/09/2021,06-10697,"2,512.00",South Moor Lodge
Nottinghamshire County Council,1111/1001,Adult Social Care and Health,ASCH,Third Party Payments,EGA,03/09/2021,06-10698,"2,512.00",South Moor Lodge
Nottinghamshire County Council,1111/1001,Adult Social Care and Health,ASCH,Third Party Payments,EGA,03/09/2021,06-10699,"1,256.00",South Moor Lodge
Nottinghamshire County Council,1111/1001,Adult Social Care and Health,ASCH,Third Party Payments,EGA,03/09/2021,06-10700,"2,354.00",Sycamore House
Nottinghamshire County Council,1111/1001,Adult Social Care and Health,ASCH,Third Party Payments,EGA,03/09/2021,06-10701,"2,440.00",St Peters Residential Home
Nottinghamshire County Council,1111/1001,Adult Social Care and Health,ASCH,Third Party Payments,EGA,03/09/2021,06-10702,"3,860.00",St Peters Residential Home
Nottinghamshire County Council,1111/1001,Adult Social Care and Health,ASCH,Third Party Payments,EGA,03/09/2021,06-10703,"2,460.00",St Peters Residential Home
Nottinghamshire County Council,1111/1001,Adult Social Care and Health,ASCH,Third Party Payments,EGA,03/09/2021,06-10704,610,Red Firs Care Home T/A Strawberry F
Nottinghamshire County Council,1111/1001,Adult Social Care and Health,ASCH,Third Party Payments,EGA,03/09/2021,06-10705,"2,394.00",Sycamore House
Nottinghamshire County Council,1111/1001,Adult Social Care and Health,ASCH,Third Party Payments,EGA,03/09/2021,06-10706,"2,419.52",St Peters Residential Home
Nottinghamshire County Council,1111/1001,Adult Social Care and Health,ASCH,Third Party Payments,EGA,03/09/2021,06-10707,538.29,Sutton Court Care Home (Ashmere)
Nottinghamshire County Council,1111/1001,Adult Social Care and Health,ASCH,Third Party Payments,EGA,03/09/2021,06-10708,"4,427.43",Stoneyford C (HC One)
Nottinghamshire County Council,1111/1001,Adult Social Care and Health,ASCH,Third Party Payments,EGA,03/09/2021,06-10709,"1,045.71",Red Firs Care Home T/A Strawberry F
Nottinghamshire County Council,1111/1001,Adult Social Care and Health,ASCH,Third Party Payments,EGA,03/09/2021,06-10710,"1,256.00",St Saviours Care Home
Nottinghamshire County Council,1111/1001,Adult Social Care and Health,ASCH,Third Party Payments,EGA,03/09/2021,06-10711,"1,122.00",Sycamores CC (Four Seasons)
Nottinghamshire County Council,1111/1001,Adult Social Care and Health,ASCH,Third Party Payments,EGA,03/09/2021,06-10712,"2,520.00",St Peters Residential Home
Nottinghamshire County Council,1111/1001,Adult Social Care and Health,ASCH,Third Party Payments,EGA,03/09/2021,06-10713,"1,256.00",St Saviours Care Home
Nottinghamshire County Council,1111/1001,Adult Social Care and Health,ASCH,Third Party Payments,EGA,03/09/2021,06-10714,"2,020.00",Sycamores CC (Four Seasons)
Nottinghamshire County Council,1111/1001,Adult Social Care and Health,ASCH,Third Party Payments,EGA,03/09/2021,06-10715,"1,830.00",Red Firs Care Home T/A Strawberry F
Nottinghamshire County Council,1111/1001,Adult Social Care and Health,ASCH,Third Party Payments,EGA,03/09/2021,06-10716,784.29,Red Firs Care Home T/A Strawberry F
Nottinghamshire County Council,1111/1001,Adult Social Care and Health,ASCH,Third Party Payments,EGA,03/09/2021,06-10717,"3,751.43",St Marys Nursing Home (Broadoak)
Nottinghamshire County Council,1111/1001,Adult Social Care and Health,ASCH,Third Party Payments,EGA,03/09/2021,06-10718,"1,256.00",St Saviours Care Home
Nottinghamshire County Council,1111/1001,Adult Social Care and Health,ASCH,Third Party Payments,EGA,03/09/2021,06-10719,"2,480.00",St Peters Residential Home
Nottinghamshire County Council,1111/1001,Adult Social Care and Health,ASCH,Third Party Payments,EGA,03/09/2021,06-10720,"4,408.36",St Catherines
Nottinghamshire County Council,1111/1001,Adult Social Care and Health,ASCH,Third Party Payments,EGA,03/09/2021,06-10721,"1,256.00",St Saviours Care Home
Nottinghamshire County Council,1111/1001,Adult Social Care and Health,ASCH,Third Party Payments,EGA,03/09/2021,06-10722,"6,638.86",Sutton Manor (Ashmere)
Nottinghamshire County Council,1111/1001,Adult Social Care and Health,ASCH,Third Party Payments,EGA,03/09/2021,06-10723,"2,440.00",St Peters Residential Home
Nottinghamshire County Council,1111/1001,Adult Social Care and Health,ASCH,Third Party Payments,EGA,03/09/2021,06-10724,"1,256.00",St Saviours Care Home
Nottinghamshire County Council,1111/1001,Adult Social Care and Health,ASCH,Third Party Payments,EGA,03/09/2021,06-10725,610,Red Firs Care Home T/A Strawberry F
Nottinghamshire County Council,1111/1001,Adult Social Care and Health,ASCH,Third Party Payments,EGA,03/09/2021,06-10726,"3,768.00",Sutton Manor (Ashmere)
Nottinghamshire County Council,1111/1001,Adult Social Care and Health,ASCH,Third Party Payments,EGA,03/09/2021,06-10727,"2,242.85",Sutton Court Care Home (Ashmere)
Nottinghamshire County Council,1111/1001,Adult Social Care and Health,ASCH,Third Party Payments,EGA,03/09/2021,06-10728,"1,368.00",Sutton Lodge Nursing Home (Ashmere)
Nottinghamshire County Council,1111/1001,Adult Social Care and Health,ASCH,Third Party Payments,EGA,03/09/2021,06-10729,"2,864.00",Woodleigh Christian Care Home
Nottinghamshire County Council,1111/1001,Adult Social Care and Health,ASCH,Third Party Payments,EGA,03/09/2021,06-10730,"2,512.00",Woodleigh Christian Care Home
Nottinghamshire County Council,1111/1001,Adult Social Care and Health,ASCH,Third Party Payments,EGA,03/09/2021,06-10731,"2,512.00",Woodleigh Christian Care Home
Nottinghamshire County Council,1111/1001,Adult Social Care and Health,ASCH,Third Party Payments,EGA,03/09/2021,06-10732,"7,288.32",York House
Nottinghamshire County Council,1111/1001,Adult Social Care and Health,ASCH,Third Party Payments,EGA,03/09/2021,06-10733,"2,736.00",Tuxford Manor Care Home
Nottinghamshire County Council,1111/1001,Adult Social Care and Health,ASCH,Third Party Payments,EGA,03/09/2021,06-10734,"1,256.00",Westvilla Nursing Home
Nottinghamshire County Council,1111/1001,Adult Social Care and Health,ASCH,Third Party Payments,EGA,03/09/2021,06-10735,"1,192.00",Westwood (Runwood)
Nottinghamshire County Council,1111/1001,Adult Social Care and Health,ASCH,Third Party Payments,EGA,03/09/2021,06-10736,"1,192.00",Tudor Grange(Four Seasons)
Nottinghamshire County Council,1111/1001,Adult Social Care and Health,ASCH,Third Party Payments,EGA,03/09/2021,06-10737,"8,911.20",Nunn & William Court (Broadoak Grou
Nottinghamshire County Council,1111/1001,Adult Social Care and Health,ASCH,Third Party Payments,EGA,03/09/2021,06-10738,"2,704.00",Woodthorpe Manor Nursing Home
Nottinghamshire County Council,1111/1001,Adult Social Care and Health,ASCH,Third Party Payments,EGA,03/09/2021,06-10739,"2,764.00",Woodthorpe Manor Nursing Home
Nottinghamshire County Council,1111/1001,Adult Social Care and Health,ASCH,Third Party Payments,EGA,03/09/2021,06-10740,"2,772.00",Woodthorpe Manor Nursing Home
Nottinghamshire County Council,1111/1001,Adult Social Care and Health,ASCH,Third Party Payments,EGA,03/09/2021,06-10741,"2,402.68",Victoria Court Residential Home
Nottinghamshire County Council,1111/1001,Adult Social Care and Health,ASCH,Third Party Payments,EGA,03/09/2021,06-10742,"1,220.00",Victoria Care Home (Dukeries)
Nottinghamshire County Council,1111/1001,Adult Social Care and Health,ASCH,Third Party Payments,EGA,03/09/2021,06-10743,"1,220.00",Troc Residential Home (Reason Care)
Nottinghamshire County Council,1111/1001,Adult Social Care and Health,ASCH,Third Party Payments,EGA,03/09/2021,06-10744,"1,256.00",Westvilla Nursing Home
Nottinghamshire County Council,1111/1001,Adult Social Care and Health,ASCH,Third Party Payments,EGA,03/09/2021,06-10745,"1,220.00",Troc Residential Home (Reason Care)
Nottinghamshire County Council,1111/1001,Adult Social Care and Health,ASCH,Third Party Payments,EGA,03/09/2021,06-10746,"19,460.00",Winslow Hospital (St Andrews Health
Nottinghamshire County Council,1111/1001,Adult Social Care and Health,ASCH,Third Party Payments,EGA,03/09/2021,06-10747,"12,379.64",Nunn & William Court (Broadoak Grou
Nottinghamshire County Council,1111/1001,Adult Social Care and Health,ASCH,Third Party Payments,EGA,03/09/2021,06-10748,"5,522.76",Nunn & William Court (Broadoak Grou
Nottinghamshire County Council,1111/1001,Adult Social Care and Health,ASCH,Third Party Payments,EGA,03/09/2021,06-10749,"2,784.00",Woodleigh Christian Care Home
Nottinghamshire County Council,1111/1001,Adult Social Care and Health,ASCH,Third Party Payments,EGA,03/09/2021,06-10750,"2,512.00",Woodleigh Christian Care Home
Nottinghamshire County Council,1111/1001,Adult Social Care and Health,ASCH,Third Party Payments,EGA,03/09/2021,06-10751,"2,716.00",Woodleigh Christian Care Home
Nottinghamshire County Council,1111/1001,Adult Social Care and Health,ASCH,Third Party Payments,EGA,03/09/2021,06-10752,"5,280.72",Whitwell Park Care Home Ltd(Placeme
Nottinghamshire County Council,1111/1001,Adult Social Care and Health,ASCH,Third Party Payments,EGA,03/09/2021,06-10753,"3,921.43",Wilford View
Nottinghamshire County Council,1111/1001,Adult Social Care and Health,ASCH,Third Party Payments,EGA,03/09/2021,06-10754,"9,561.04",Yarningdale Health Care
